Workbook

Sheet Hammer Curves
A9: 12 Notes | B9: FW Max
A10: A1 | B10: 41.3 | C10: =C118 -> 11 | D10: 10.9 | E10: 10.8 | F10: 10.7 | G10: 10.6 | H10: 10.5 | I10: 10.4 | J10: 10.3 | K10: 10.2 | L10: 10.1 | M10: 10 | N10: 9.9 | O10: 9.8 | P10: 9.7 | Q10: 9.6 | R10: 9.5 | S10: 9.4 | T10: 9.3 | U10: 9.2 | V10: 9.1 | W10: 9 | X10: 8.9 | Y10: 8.8 | Z10: 8.7 | AA10: 8.6 | AB10: 8.5 | AC10: 8.4 | AD10: 8.3 | AE10: 8.2 | AF10: 8.1 | AG10: 8 | AH10: 7.9 | AI10: 7.8 | AJ10: 7.7 | AK10: 7.6
A11: E20 | B11: 36.4 | C11: =C138 -> 10.2 | D11: 10.1 | E11: 10 | F11: 9.9 | G11: 9.8 | H11: 9.7 | I11: 9.6 | J11: 9.5 | K11: 9.4 | L11: 9.3 | M11: 9.2 | N11: 9.1 | O11: 9 | P11: 8.9 | Q11: 8.8 | R11: 8.7 | S11: 8.6 | T11: 8.5 | U11: 8.4 | V11: 8.3 | W11: 8.2 | X11: 8.1 | Y11: 8 | Z11: 7.9 | AA11: 7.8 | AB11: 7.7 | AC11: 7.6 | AD11: 7.5 | AE11: 7.4 | AF11: 7.3 | AG11: 7.2 | AH11: 7.1 | AI11: 7 | AJ11: 6.9 | AK11: 6.8
A12: F21 | B12: 36.1 | C12: =C138 -> 10.2 | D12: 10.1 | E12: 10 | F12: 9.9 | G12: 9.8 | H12: 9.7 | I12: 9.6 | J12: 9.5 | K12: 9.4 | L12: 9.3 | M12: 9.2 | N12: 9.1 | O12: 9 | P12: 8.9 | Q12: 8.8 | R12: 8.7 | S12: 8.6 | T12: 8.5 | U12: 8.4 | V12: 8.3 | W12: 8.2 | X12: 8.1 | Y12: 8 | Z12: 7.9 | AA12: 7.8 | AB12: 7.7 | AC12: 7.6 | AD12: 7.5 | AE12: 7.4 | AF12: 7.3 | AG12: 7.2 | AH12: 7.1 | AI12: 7 | AJ12: 6.9 | AK12: 6.8
A13: A#26 | B13: 34.6 | C13: =C143 -> 10 | D13: 9.9 | E13: 9.8 | F13: 9.7 | G13: 9.6 | H13: 9.5 | I13: 9.4 | J13: 9.3 | K13: 9.2 | L13: 9.1 | M13: 9 | N13: 8.9 | O13: 8.8 | P13: 8.7 | Q13: 8.6 | R13: 8.5 | S13: 8.4 | T13: 8.3 | U13: 8.2 | V13: 8.1 | W13: 8 | X13: 7.9 | Y13: 7.8 | Z13: 7.7 | AA13: 7.6 | AB13: 7.5 | AC13: 7.4 | AD13: 7.3 | AE13: 7.2 | AF13: 7.1 | AG13: 7 | AH13: 6.9 | AI13: 6.8 | AJ13: 6.7 | AK13: 6.6
A14: B27 | B14: 34.3 | C14: =C144 -> 10 | D14: 9.9 | E14: 9.8 | F14: 9.7 | G14: 9.6 | H14: 9.5 | I14: 9.4 | J14: 9.3 | K14: 9.2 | L14: 9.1 | M14: 9 | N14: 8.9 | O14: 8.8 | P14: 8.7 | Q14: 8.6 | R14: 8.5 | S14: 8.4 | T14: 8.3 | U14: 8.2 | V14: 8.1 | W14: 8 | X14: 7.9 | Y14: 7.8 | Z14: 7.7 | AA14: 7.6 | AB14: 7.5 | AC14: 7.4 | AD14: 7.3 | AE14: 7.2 | AF14: 7.1 | AG14: 7 | AH14: 6.9 | AI14: 6.8 | AJ14: 6.7 | AK14: 6.6
A15: C40 | B15: 30 | C15: =C157 -> 9.3 | D15: 9.2 | E15: 9.1 | F15: 9 | G15: 8.9 | H15: 8.8 | I15: 8.7 | J15: 8.6 | K15: 8.5 | L15: 8.4 | M15: 8.3 | N15: 8.2 | O15: 8.1 | P15: 8 | Q15: 7.9 | R15: 7.8 | S15: 7.7 | T15: 7.6 | U15: 7.5 | V15: 7.4 | W15: 7.3 | X15: 7.2 | Y15: 7.1 | Z15: 7 | AA15: 6.9 | AB15: 6.8 | AC15: 6.7 | AD15: 6.6 | AE15: 6.5 | AF15: 6.4 | AG15: 6.3 | AH15: 6.2 | AI15: 6.1 | AJ15: 6 | AK15: 5.9
A16: E44 | B16: 28.5 | C16: =C161 -> 9.1 | D16: 9 | E16: 8.9 | F16: 8.8 | G16: 8.7 | H16: 8.6 | I16: 8.5 | J16: 8.4 | K16: 8.3 | L16: 8.2 | M16: 8.1 | N16: 8 | O16: 7.9 | P16: 7.8 | Q16: 7.7 | R16: 7.6 | S16: 7.5 | T16: 7.4 | U16: 7.3 | V16: 7.2 | W16: 7.1 | X16: 7 | Y16: 6.9 | Z16: 6.8 | AA16: 6.7 | AB16: 6.6 | AC16: 6.5 | AD16: 6.4 | AE16: 6.3 | AF16: 6.2 | AG16: 6.1 | AH16: 6 | AI16: 5.9 | AJ16: 5.8 | AK16: 5.7
A17: A49 | B17: 26.4 | C17: =C166 -> 8.8 | D17: 8.7 | E17: 8.6 | F17: 8.5 | G17: 8.4 | H17: 8.3 | I17: 8.2 | J17: 8.1 | K17: 8 | L17: 7.9 | M17: 7.8 | N17: 7.7 | O17: 7.6 | P17: 7.5 | Q17: 7.4 | R17: 7.3 | S17: 7.2 | T17: 7.1 | U17: 7 | V17: 6.9 | W17: 6.8 | X17: 6.7 | Y17: 6.6 | Z17: 6.5 | AA17: 6.4 | AB17: 6.3 | AC17: 6.2 | AD17: 6.1 | AE17: 6 | AF17: 5.9 | AG17: 5.8 | AH17: 5.7 | AI17: 5.6 | AJ17: 5.5 | AK17: 5.4
A18: A61 | B18: 20.8 | C18: =C178 -> 7.9 | D18: 7.8 | E18: 7.7 | F18: 7.6 | G18: 7.5 | H18: 7.4 | I18: 7.3 | J18: 7.2 | K18: 7.1 | L18: 7 | M18: 6.9 | N18: 6.8 | O18: 6.7 | P18: 6.6 | Q18: 6.5 | R18: 6.4 | S18: 6.3 | T18: 6.2 | U18: 6.1 | V18: 6 | W18: 5.9 | X18: 5.8 | Y18: 5.7 | Z18: 5.6 | AA18: 5.5 | AB18: 5.4 | AC18: 5.3 | AD18: 5.2 | AE18: 5.1 | AF18: 5 | AG18: 4.9 | AH18: 4.8 | AI18: 4.7 | AJ18: 4.6 | AK18: 4.5
A19: C64 | B19: 19.1 | C19: =C181 -> 7.6 | D19: 7.5 | E19: 7.4 | F19: 7.3 | G19: 7.2 | H19: 7.1 | I19: 7 | J19: 6.9 | K19: 6.8 | L19: 6.7 | M19: 6.6 | N19: 6.5 | O19: 6.4 | P19: 6.3 | Q19: 6.2 | R19: 6.1 | S19: 6 | T19: 5.9 | U19: 5.8 | V19: 5.7 | W19: 5.6 | X19: 5.5 | Y19: 5.4 | Z19: 5.3 | AA19: 5.2 | AB19: 5.1 | AC19: 5 | AD19: 4.9 | AE19: 4.8 | AF19: 4.7 | AG19: 4.6 | AH19: 4.5 | AI19: 4.4 | AJ19: 4.3 | AK19: 4.2
A20: C76 | B20: 11.6 | C20: =C193 -> 6.5 | D20: 6.4 | E20: 6.3 | F20: 6.2 | G20: 6.1 | H20: 6 | I20: 5.9 | J20: 5.8 | K20: 5.7 | L20: 5.6 | M20: 5.5 | N20: 5.4 | O20: 5.3 | P20: 5.2 | Q20: 5.1 | R20: 5 | S20: 4.9 | T20: 4.8 | U20: 4.7 | V20: 4.6 | W20: 4.5 | X20: 4.4 | Y20: 4.3 | Z20: 4.2 | AA20: 4.1 | AB20: 4 | AC20: 3.9 | AD20: 3.8 | AE20: 3.7 | AF20: 3.6 | AG20: 3.5 | AH20: 3.4 | AI20: 3.3 | AJ20: 3.2 | AK20: 3.1
A21: C 88 | B21: 3.7 | C21: 4.8 | D21: 4.7 | E21: 4.6 | F21: 4.5 | G21: 4.4 | H21: 4.3 | I21: 4.2 | J21: 4.1 | K21: 4 | L21: 3.9 | M21: 3.8 | N21: 3.7 | O21: 3.6 | P21: 3.5 | Q21: 3.4 | R21: 3.3 | S21: 3.2 | T21: 3.1 | U21: 3 | V21: 2.9 | W21: 2.8 | X21: 2.7 | Y21: 2.6 | Z21: 2.5 | AA21: 2.4 | AB21: 2.3 | AC21: 2.2 | AD21: 2.1 | AE21: 2 | AF21: 1.9 | AG21: 1.8 | AH21: 1.7 | AI21: 1.6 | AJ21: 1.5 | AK21: 1.4
A26: 12 Notes | B26: FW Max
A27: A 1 | B27: 41.3 | C27: =C10+1.6 -> 12.6 | D27: =D10+1.6 -> 12.5 | E27: =E10+1.6 -> 12.4 | F27: 12.3 | G27: 12.2 | H27: 12.1 | I27: 12 | J27: 11.9 | K27: 11.8 | L27: 11.7 | M27: 11.6 | N27: 11.5 | O27: 11.4 | P27: 11.3 | Q27: 11.2 | R27: 11.1 | S27: 11 | T27: 10.9 | U27: 10.8 | V27: 10.7 | W27: 10.6 | X27: 10.5 | Y27: 10.4 | Z27: 10.3 | AA27: 10.2 | AB27: 10.1 | AC27: 10 | AD27: 9.9 | AE27: 9.8 | AF27: 9.7 | AG27: 9.6 | AH27: 9.5 | AI27: 9.4 | AJ27: 9.3 | AK27: 9.2
A28: E 20 | B28: 36.4 | C28: =C11+1.6 -> 11.8 | D28: 11.7 | E28: 11.6 | F28: 11.5 | G28: 11.4 | H28: 11.3 | I28: 11.2 | J28: 11.1 | K28: 11 | L28: 10.9 | M28: 10.8 | N28: 10.7 | O28: 10.6 | P28: 10.5 | Q28: 10.4 | R28: 10.3 | S28: =S11+1.6 -> 10.2 | T28: 10.1 | U28: 10 | V28: 9.9 | W28: 9.8 | X28: 9.7 | Y28: 9.6 | Z28: 9.5 | AA28: 9.4 | AB28: 9.3 | AC28: 9.2 | AD28: 9.1 | AE28: 9 | AF28: 8.9 | AG28: 8.8 | AH28: 8.7 | AI28: 8.6 | AJ28: 8.5 | AK28: 8.4
A29: F 21 | B29: 36.1 | C29: 11.8 | D29: 11.7 | E29: 11.6 | F29: 11.5 | G29: 11.4 | H29: 11.3 | I29: 11.2 | J29: 11.1 | K29: 11 | L29: 10.9 | M29: 10.8 | N29: 10.7 | O29: 10.6 | P29: 10.5 | Q29: 10.4 | R29: 10.3 | S29: =S12+1.6 -> 10.2 | T29: 10.1 | U29: 10 | V29: 9.9 | W29: 9.8 | X29: 9.7 | Y29: 9.6 | Z29: 9.5 | AA29: 9.4 | AB29: 9.3 | AC29: 9.2 | AD29: 9.1 | AE29: 9 | AF29: 8.9 | AG29: 8.8 | AH29: 8.7 | AI29: 8.6 | AJ29: 8.5 | AK29: 8.4
A30: A# 26 | B30: 34.6 | C30: 11.6 | D30: 11.5 | E30: 11.4 | F30: 11.3 | G30: 11.2 | H30: 11.1 | I30: 11 | J30: 10.9 | K30: 10.8 | L30: 10.7 | M30: 10.6 | N30: 10.5 | O30: 10.4 | P30: 10.3 | Q30: 10.2 | R30: 10.1 | S30: =S13+1.6 -> 10 | T30: 9.9 | U30: 9.8 | V30: 9.7 | W30: 9.6 | X30: 9.5 | Y30: 9.4 | Z30: 9.3 | AA30: 9.2 | AB30: 9.1 | AC30: 9 | AD30: 8.9 | AE30: 8.8 | AF30: 8.7 | AG30: 8.6 | AH30: 8.5 | AI30: 8.4 | AJ30: 8.3 | AK30: 8.2
A31: B 27 | B31: 34.3 | C31: 11.6 | D31: 11.5 | E31: 11.4 | F31: 11.3 | G31: 11.2 | H31: 11.1 | I31: 11 | J31: 10.9 | K31: 10.8 | L31: 10.7 | M31: 10.6 | N31: 10.5 | O31: 10.4 | P31: 10.3 | Q31: 10.2 | R31: 10.1 | S31: =S14+1.6 -> 10 | T31: 9.9 | U31: 9.8 | V31: 9.7 | W31: 9.6 | X31: 9.5 | Y31: 9.4 | Z31: 9.3 | AA31: 9.2 | AB31: 9.1 | AC31: 9 | AD31: 8.9 | AE31: 8.8 | AF31: 8.7 | AG31: 8.6 | AH31: 8.5 | AI31: 8.4 | AJ31: 8.3 | AK31: 8.2
A32: C 40 | B32: 30 | C32: 10.9 | D32: 10.8 | E32: 10.7 | F32: 10.6 | G32: 10.5 | H32: 10.4 | I32: 10.3 | J32: 10.2 | K32: 10.1 | L32: 10 | M32: 9.9 | N32: 9.8 | O32: 9.7 | P32: 9.6 | Q32: 9.5 | R32: 9.4 | S32: =S15+1.6 -> 9.3 | T32: 9.2 | U32: 9.1 | V32: 9 | W32: 8.9 | X32: 8.8 | Y32: 8.7 | Z32: 8.6 | AA32: 8.5 | AB32: 8.4 | AC32: 8.3 | AD32: 8.2 | AE32: 8.1 | AF32: 8 | AG32: 7.9 | AH32: 7.8 | AI32: 7.7 | AJ32: 7.6 | AK32: 7.5
A33: E 44 | B33: 28.5 | C33: 10.7 | D33: 10.6 | E33: 10.5 | F33: 10.4 | G33: 10.3 | H33: 10.2 | I33: 10.1 | J33: 10 | K33: 9.9 | L33: 9.8 | M33: 9.7 | N33: 9.6 | O33: 9.5 | P33: 9.4 | Q33: 9.3 | R33: 9.2 | S33: =S16+1.6 -> 9.1 | T33: 9 | U33: 8.9 | V33: 8.8 | W33: 8.7 | X33: 8.6 | Y33: 8.5 | Z33: 8.4 | AA33: 8.3 | AB33: 8.2 | AC33: 8.1 | AD33: 8 | AE33: 7.9 | AF33: 7.8 | AG33: 7.7 | AH33: 7.6 | AI33: 7.5 | AJ33: 7.4 | AK33: 7.3
A34: A 49 | B34: 26.4 | C34: 10.4 | D34: 10.3 | E34: 10.2 | F34: 10.1 | G34: 10 | H34: 9.9 | I34: 9.8 | J34: 9.7 | K34: 9.6 | L34: 9.5 | M34: 9.4 | N34: 9.3 | O34: 9.2 | P34: 9.1 | Q34: 9 | R34: 8.9 | S34: =S17+1.6 -> 8.8 | T34: 8.7 | U34: 8.6 | V34: 8.5 | W34: 8.4 | X34: 8.3 | Y34: 8.2 | Z34: 8.1 | AA34: 8 | AB34: 7.9 | AC34: 7.8 | AD34: 7.7 | AE34: 7.6 | AF34: 7.5 | AG34: 7.4 | AH34: 7.3 | AI34: 7.2 | AJ34: 7.1 | AK34: 7
A35: A 61 | B35: 20.8 | C35: 9.5 | D35: 9.4 | E35: 9.3 | F35: 9.2 | G35: 9.1 | H35: 9 | I35: 8.9 | J35: 8.8 | K35: 8.7 | L35: 8.6 | M35: 8.5 | N35: 8.4 | O35: 8.3 | P35: 8.2 | Q35: 8.1 | R35: 8 | S35: =S18+1.6 -> 7.9 | T35: 7.8 | U35: 7.7 | V35: 7.6 | W35: 7.5 | X35: 7.4 | Y35: 7.3 | Z35: 7.2 | AA35: 7.1 | AB35: 7 | AC35: 6.9 | AD35: 6.8 | AE35: 6.7 | AF35: 6.6 | AG35: 6.5 | AH35: 6.4 | AI35: 6.3 | AJ35: 6.2 | AK35: 6.1
A36: C 64 | B36: 19.1 | C36: 9.2 | D36: 9.1 | E36: 9 | F36: 8.9 | G36: 8.8 | H36: 8.7 | I36: 8.6 | J36: 8.5 | K36: 8.4 | L36: 8.3 | M36: 8.2 | N36: 8.1 | O36: 8 | P36: 7.9 | Q36: 7.8 | R36: 7.7 | S36: =S19+1.6 -> 7.6 | T36: 7.5 | U36: 7.4 | V36: 7.3 | W36: 7.2 | X36: 7.1 | Y36: 7 | Z36: 6.9 | AA36: 6.8 | AB36: 6.7 | AC36: 6.6 | AD36: 6.5 | AE36: 6.4 | AF36: 6.3 | AG36: 6.2 | AH36: 6.1 | AI36: 6 | AJ36: 5.9 | AK36: 5.8
A37: C 76 | B37: 11.6 | C37: 8.1 | D37: 8 | E37: 7.9 | F37: 7.8 | G37: 7.7 | H37: 7.6 | I37: 7.5 | J37: 7.4 | K37: 7.3 | L37: 7.2 | M37: 7.1 | N37: 7 | O37: 6.9 | P37: 6.8 | Q37: 6.7 | R37: 6.6 | S37: =S20+1.6 -> 6.5 | T37: 6.4 | U37: 6.3 | V37: 6.2 | W37: 6.1 | X37: 6 | Y37: 5.9 | Z37: 5.8 | AA37: 5.7 | AB37: 5.6 | AC37: 5.5 | AD37: 5.4 | AE37: 5.3 | AF37: 5.2 | AG37: 5.1 | AH37: 5 | AI37: 4.9 | AJ37: 4.8 | AK37: 4.7
A38: C 88 | B38: 3.7 | C38: 6.4 | D38: 6.3 | E38: 6.2 | F38: 6.1 | G38: 6 | H38: 5.9 | I38: 5.8 | J38: 5.7 | K38: 5.6 | L38: 5.5 | M38: 5.4 | N38: 5.3 | O38: 5.2 | P38: 5.1 | Q38: 5 | R38: 4.9 | S38: =S21+1.6 -> 4.8 | T38: 4.7 | U38: 4.6 | V38: 4.5 | W38: 4.4 | X38: 4.3 | Y38: 4.2 | Z38: 4.1 | AA38: 4 | AB38: 3.9 | AC38: 3.8 | AD38: 3.7 | AE38: 3.6 | AF38: 3.5 | AG38: 3.4 | AH38: 3.3 | AI38: 3.2 | AJ38: 3.1 | AK38: 3
A118: A 1 | C118: 11 | D118: 10.9 | E118: 10.8 | F118: 10.7 | G118: 10.6 | H118: 10.5 | I118: 10.4 | J118: 10.3 | K118: 10.2 | L118: 10.1 | M118: 10 | N118: 9.9 | O118: 9.8 | P118: 9.7 | Q118: 9.6 | R118: 9.5 | S118: 9.4 | T118: 9.3 | U118: 9.2 | V118: 9.1 | W118: 9 | X118: 8.9 | Y118: 8.8 | Z118: 8.7 | AA118: 8.6 | AB118: 8.5 | AC118: 8.4 | AD118: 8.3 | AE118: 8.2 | AF118: 8.1 | AG118: 8 | AH118: 7.9 | AI118: 7.8 | AJ118: 7.7 | AK118: 7.6
A119: A# 2 | C119: 11 | D119: 10.9 | E119: 10.8 | F119: 10.7 | G119: 10.6 | H119: 10.5 | I119: 10.4 | J119: 10.3 | K119: 10.2 | L119: 10.1 | M119: 10 | N119: 9.9 | O119: 9.8 | P119: 9.7 | Q119: 9.6 | R119: 9.5 | S119: 9.4 | T119: 9.3 | U119: 9.2 | V119: 9.1 | W119: 9 | X119: 8.9 | Y119: 8.8 | Z119: 8.7 | AA119: 8.6 | AB119: 8.5 | AC119: 8.4 | AD119: 8.3 | AE119: 8.2 | AF119: 8.1 | AG119: 8 | AH119: 7.9 | AI119: 7.8 | AJ119: 7.7 | AK119: 7.6
A120: B 3 | C120: 11 | D120: 10.9 | E120: 10.8 | F120: 10.7 | G120: 10.6 | H120: 10.5 | I120: 10.4 | J120: 10.3 | K120: 10.2 | L120: 10.1 | M120: 10 | N120: 9.9 | O120: 9.8 | P120: 9.7 | Q120: 9.6 | R120: 9.5 | S120: 9.4 | T120: 9.3 | U120: 9.2 | V120: 9.1 | W120: 9 | X120: 8.9 | Y120: 8.8 | Z120: 8.7 | AA120: 8.6 | AB120: 8.5 | AC120: 8.4 | AD120: 8.3 | AE120: 8.2 | AF120: 8.1 | AG120: 8 | AH120: 7.9 | AI120: 7.8 | AJ120: 7.7 | AK120: 7.6
A121: C 4 | C121: 10.9 | D121: 10.8 | E121: 10.7 | F121: 10.6 | G121: 10.5 | H121: 10.4 | I121: 10.3 | J121: 10.2 | K121: 10.1 | L121: 10 | M121: 9.9 | N121: 9.8 | O121: 9.7 | P121: 9.6 | Q121: 9.5 | R121: 9.4 | S121: 9.3 | T121: 9.2 | U121: 9.1 | V121: 9 | W121: 8.9 | X121: 8.8 | Y121: 8.7 | Z121: 8.6 | AA121: 8.5 | AB121: 8.4 | AC121: 8.3 | AD121: 8.2 | AE121: 8.1 | AF121: 8 | AG121: 7.9 | AH121: 7.8 | AI121: 7.7 | AJ121: 7.6 | AK121: 7.5
A122: C# 5 | C122: 10.9 | D122: 10.8 | E122: 10.7 | F122: 10.6 | G122: 10.5 | H122: 10.4 | I122: 10.3 | J122: 10.2 | K122: 10.1 | L122: 10 | M122: 9.9 | N122: 9.8 | O122: 9.7 | P122: 9.6 | Q122: 9.5 | R122: 9.4 | S122: 9.3 | T122: 9.2 | U122: 9.1 | V122: 9 | W122: 8.9 | X122: 8.8 | Y122: 8.7 | Z122: 8.6 | AA122: 8.5 | AB122: 8.4 | AC122: 8.3 | AD122: 8.2 | AE122: 8.1 | AF122: 8 | AG122: 7.9 | AH122: 7.8 | AI122: 7.7 | AJ122: 7.6 | AK122: 7.5
A123: D 6 | C123: 10.8 | D123: 10.7 | E123: 10.6 | F123: 10.5 | G123: 10.4 | H123: 10.3 | I123: 10.2 | J123: 10.1 | K123: 10 | L123: 9.9 | M123: 9.8 | N123: 9.7 | O123: 9.6 | P123: 9.5 | Q123: 9.4 | R123: 9.3 | S123: 9.2 | T123: 9.1 | U123: 9 | V123: 8.9 | W123: 8.8 | X123: 8.7 | Y123: 8.6 | Z123: 8.5 | AA123: 8.4 | AB123: 8.3 | AC123: 8.2 | AD123: 8.1 | AE123: 8 | AF123: 7.9 | AG123: 7.8 | AH123: 7.7 | AI123: 7.6 | AJ123: 7.5 | AK123: 7.4
A124: D# 7 | C124: 10.8 | D124: 10.7 | E124: 10.6 | F124: 10.5 | G124: 10.4 | H124: 10.3 | I124: 10.2 | J124: 10.1 | K124: 10 | L124: 9.9 | M124: 9.8 | N124: 9.7 | O124: 9.6 | P124: 9.5 | Q124: 9.4 | R124: 9.3 | S124: 9.2 | T124: 9.1 | U124: 9 | V124: 8.9 | W124: 8.8 | X124: 8.7 | Y124: 8.6 | Z124: 8.5 | AA124: 8.4 | AB124: 8.3 | AC124: 8.2 | AD124: 8.1 | AE124: 8 | AF124: 7.9 | AG124: 7.8 | AH124: 7.7 | AI124: 7.6 | AJ124: 7.5 | AK124: 7.4
A125: E 8 | C125: 10.8 | D125: 10.7 | E125: 10.6 | F125: 10.5 | G125: 10.4 | H125: 10.3 | I125: 10.2 | J125: 10.1 | K125: 10 | L125: 9.9 | M125: 9.8 | N125: 9.7 | O125: 9.6 | P125: 9.5 | Q125: 9.4 | R125: 9.3 | S125: 9.2 | T125: 9.1 | U125: 9 | V125: 8.9 | W125: 8.8 | X125: 8.7 | Y125: 8.6 | Z125: 8.5 | AA125: 8.4 | AB125: 8.3 | AC125: 8.2 | AD125: 8.1 | AE125: 8 | AF125: 7.9 | AG125: 7.8 | AH125: 7.7 | AI125: 7.6 | AJ125: 7.5 | AK125: 7.4
A126: F 9 | C126: 10.7 | D126: 10.6 | E126: 10.5 | F126: 10.4 | G126: 10.3 | H126: 10.2 | I126: 10.1 | J126: 10 | K126: 9.9 | L126: 9.8 | M126: 9.7 | N126: 9.6 | O126: 9.5 | P126: 9.4 | Q126: 9.3 | R126: 9.2 | S126: 9.1 | T126: 9 | U126: 8.9 | V126: 8.8 | W126: 8.7 | X126: 8.6 | Y126: 8.5 | Z126: 8.4 | AA126: 8.3 | AB126: 8.2 | AC126: 8.1 | AD126: 8 | AE126: 7.9 | AF126: 7.8 | AG126: 7.7 | AH126: 7.6 | AI126: 7.5 | AJ126: 7.4 | AK126: 7.3
A127: F# 10 | C127: 10.7 | D127: 10.6 | E127: 10.5 | F127: 10.4 | G127: 10.3 | H127: 10.2 | I127: 10.1 | J127: 10 | K127: 9.9 | L127: 9.8 | M127: 9.7 | N127: 9.6 | O127: 9.5 | P127: 9.4 | Q127: 9.3 | R127: 9.2 | S127: 9.1 | T127: 9 | U127: 8.9 | V127: 8.8 | W127: 8.7 | X127: 8.6 | Y127: 8.5 | Z127: 8.4 | AA127: 8.3 | AB127: 8.2 | AC127: 8.1 | AD127: 8 | AE127: 7.9 | AF127: 7.8 | AG127: 7.7 | AH127: 7.6 | AI127: 7.5 | AJ127: 7.4 | AK127: 7.3
A128: G 11 | C128: 10.6 | D128: 10.5 | E128: 10.4 | F128: 10.3 | G128: 10.2 | H128: 10.1 | I128: 10 | J128: 9.9 | K128: 9.8 | L128: 9.7 | M128: 9.6 | N128: 9.5 | O128: 9.4 | P128: 9.3 | Q128: 9.2 | R128: 9.1 | S128: 9 | T128: 8.9 | U128: 8.8 | V128: 8.7 | W128: 8.6 | X128: 8.5 | Y128: 8.4 | Z128: 8.3 | AA128: 8.2 | AB128: 8.1 | AC128: 8 | AD128: 7.9 | AE128: 7.8 | AF128: 7.7 | AG128: 7.6 | AH128: 7.5 | AI128: 7.4 | AJ128: 7.3 | AK128: 7.2
A129: G# 12 | C129: 10.6 | D129: 10.5 | E129: 10.4 | F129: 10.3 | G129: 10.2 | H129: 10.1 | I129: 10 | J129: 9.9 | K129: 9.8 | L129: 9.7 | M129: 9.6 | N129: 9.5 | O129: 9.4 | P129: 9.3 | Q129: 9.2 | R129: 9.1 | S129: 9 | T129: 8.9 | U129: 8.8 | V129: 8.7 | W129: 8.6 | X129: 8.5 | Y129: 8.4 | Z129: 8.3 | AA129: 8.2 | AB129: 8.1 | AC129: 8 | AD129: 7.9 | AE129: 7.8 | AF129: 7.7 | AG129: 7.6 | AH129: 7.5 | AI129: 7.4 | AJ129: 7.3 | AK129: 7.2
A130: A 13 | C130: 10.6 | D130: 10.5 | E130: 10.4 | F130: 10.3 | G130: 10.2 | H130: 10.1 | I130: 10 | J130: 9.9 | K130: 9.8 | L130: 9.7 | M130: 9.6 | N130: 9.5 | O130: 9.4 | P130: 9.3 | Q130: 9.2 | R130: 9.1 | S130: 9 | T130: 8.9 | U130: 8.8 | V130: 8.7 | W130: 8.6 | X130: 8.5 | Y130: 8.4 | Z130: 8.3 | AA130: 8.2 | AB130: 8.1 | AC130: 8 | AD130: 7.9 | AE130: 7.8 | AF130: 7.7 | AG130: 7.6 | AH130: 7.5 | AI130: 7.4 | AJ130: 7.3 | AK130: 7.2
A131: A# 14 | C131: 10.5 | D131: 10.4 | E131: 10.3 | F131: 10.2 | G131: 10.1 | H131: 10 | I131: 9.9 | J131: 9.8 | K131: 9.7 | L131: 9.6 | M131: 9.5 | N131: 9.4 | O131: 9.3 | P131: 9.2 | Q131: 9.1 | R131: 9 | S131: 8.9 | T131: 8.8 | U131: 8.7 | V131: 8.6 | W131: 8.5 | X131: 8.4 | Y131: 8.3 | Z131: 8.2 | AA131: 8.1 | AB131: 8 | AC131: 7.9 | AD131: 7.8 | AE131: 7.7 | AF131: 7.6 | AG131: 7.5 | AH131: 7.4 | AI131: 7.3 | AJ131: 7.2 | AK131: 7.1
A132: B 15 | C132: 10.5 | D132: 10.4 | E132: 10.3 | F132: 10.2 | G132: 10.1 | H132: 10 | I132: 9.9 | J132: 9.8 | K132: 9.7 | L132: 9.6 | M132: 9.5 | N132: 9.4 | O132: 9.3 | P132: 9.2 | Q132: 9.1 | R132: 9 | S132: 8.9 | T132: 8.8 | U132: 8.7 | V132: 8.6 | W132: 8.5 | X132: 8.4 | Y132: 8.3 | Z132: 8.2 | AA132: 8.1 | AB132: 8 | AC132: 7.9 | AD132: 7.8 | AE132: 7.7 | AF132: 7.6 | AG132: 7.5 | AH132: 7.4 | AI132: 7.3 | AJ132: 7.2 | AK132: 7.1
A133: C 16 | C133: 10.4 | D133: 10.3 | E133: 10.2 | F133: 10.1 | G133: 10 | H133: 9.9 | I133: 9.8 | J133: 9.7 | K133: 9.6 | L133: 9.5 | M133: 9.4 | N133: 9.3 | O133: 9.2 | P133: 9.1 | Q133: 9 | R133: 8.9 | S133: 8.8 | T133: 8.7 | U133: 8.6 | V133: 8.5 | W133: 8.4 | X133: 8.3 | Y133: 8.2 | Z133: 8.1 | AA133: 8 | AB133: 7.9 | AC133: 7.8 | AD133: 7.7 | AE133: 7.6 | AF133: 7.5 | AG133: 7.4 | AH133: 7.3 | AI133: 7.2 | AJ133: 7.1 | AK133: 7
A134: C# 17 | C134: 10.4 | D134: 10.3 | E134: 10.2 | F134: 10.1 | G134: 10 | H134: 9.9 | I134: 9.8 | J134: 9.7 | K134: 9.6 | L134: 9.5 | M134: 9.4 | N134: 9.3 | O134: 9.2 | P134: 9.1 | Q134: 9 | R134: 8.9 | S134: 8.8 | T134: 8.7 | U134: 8.6 | V134: 8.5 | W134: 8.4 | X134: 8.3 | Y134: 8.2 | Z134: 8.1 | AA134: 8 | AB134: 7.9 | AC134: 7.8 | AD134: 7.7 | AE134: 7.6 | AF134: 7.5 | AG134: 7.4 | AH134: 7.3 | AI134: 7.2 | AJ134: 7.1 | AK134: 7
A135: D 18 | C135: 10.4 | D135: 10.3 | E135: 10.2 | F135: 10.1 | G135: 10 | H135: 9.9 | I135: 9.8 | J135: 9.7 | K135: 9.6 | L135: 9.5 | M135: 9.4 | N135: 9.3 | O135: 9.2 | P135: 9.1 | Q135: 9 | R135: 8.9 | S135: 8.8 | T135: 8.7 | U135: 8.6 | V135: 8.5 | W135: 8.4 | X135: 8.3 | Y135: 8.2 | Z135: 8.1 | AA135: 8 | AB135: 7.9 | AC135: 7.8 | AD135: 7.7 | AE135: 7.6 | AF135: 7.5 | AG135: 7.4 | AH135: 7.3 | AI135: 7.2 | AJ135: 7.1 | AK135: 7
A136: D# 19 | C136: 10.3 | D136: 10.2 | E136: 10.1 | F136: 10 | G136: 9.9 | H136: 9.8 | I136: 9.7 | J136: 9.6 | K136: 9.5 | L136: 9.4 | M136: 9.3 | N136: 9.2 | O136: 9.1 | P136: 9 | Q136: 8.9 | R136: 8.8 | S136: 8.7 | T136: 8.6 | U136: 8.5 | V136: 8.4 | W136: 8.3 | X136: 8.2 | Y136: 8.1 | Z136: 8 | AA136: 7.9 | AB136: 7.8 | AC136: 7.7 | AD136: 7.6 | AE136: 7.5 | AF136: 7.4 | AG136: 7.3 | AH136: 7.2 | AI136: 7.1 | AJ136: 7 | AK136: 6.9
A137: E 20 | C137: 10.3 | D137: 10.2 | E137: 10.1 | F137: 10 | G137: 9.9 | H137: 9.8 | I137: 9.7 | J137: 9.6 | K137: 9.5 | L137: 9.4 | M137: 9.3 | N137: 9.2 | O137: 9.1 | P137: 9 | Q137: 8.9 | R137: 8.8 | S137: 8.7 | T137: 8.6 | U137: 8.5 | V137: 8.4 | W137: 8.3 | X137: 8.2 | Y137: 8.1 | Z137: 8 | AA137: 7.9 | AB137: 7.8 | AC137: 7.7 | AD137: 7.6 | AE137: 7.5 | AF137: 7.4 | AG137: 7.3 | AH137: 7.2 | AI137: 7.1 | AJ137: 7 | AK137: 6.9
A138: F 21 | C138: 10.2 | D138: 10.1 | E138: 10 | F138: 9.9 | G138: 9.8 | H138: 9.7 | I138: 9.6 | J138: 9.5 | K138: 9.4 | L138: 9.3 | M138: 9.2 | N138: 9.1 | O138: 9 | P138: 8.9 | Q138: 8.8 | R138: 8.7 | S138: 8.6 | T138: 8.5 | U138: 8.4 | V138: 8.3 | W138: 8.2 | X138: 8.1 | Y138: 8 | Z138: 7.9 | AA138: 7.8 | AB138: 7.7 | AC138: 7.6 | AD138: 7.5 | AE138: 7.4 | AF138: 7.3 | AG138: 7.2 | AH138: 7.1 | AI138: 7 | AJ138: 6.9 | AK138: 6.8
A139: F# 22 | C139: 10.2 | D139: 10.1 | E139: 10 | F139: 9.9 | G139: 9.8 | H139: 9.7 | I139: 9.6 | J139: 9.5 | K139: 9.4 | L139: 9.3 | M139: 9.2 | N139: 9.1 | O139: 9 | P139: 8.9 | Q139: 8.8 | R139: 8.7 | S139: 8.6 | T139: 8.5 | U139: 8.4 | V139: 8.3 | W139: 8.2 | X139: 8.1 | Y139: 8 | Z139: 7.9 | AA139: 7.8 | AB139: 7.7 | AC139: 7.6 | AD139: 7.5 | AE139: 7.4 | AF139: 7.3 | AG139: 7.2 | AH139: 7.1 | AI139: 7 | AJ139: 6.9 | AK139: 6.8
A140: G 23 | C140: 10.1 | D140: 10 | E140: 9.9 | F140: 9.8 | G140: 9.7 | H140: 9.6 | I140: 9.5 | J140: 9.4 | K140: 9.3 | L140: 9.2 | M140: 9.1 | N140: 9 | O140: 8.9 | P140: 8.8 | Q140: 8.7 | R140: 8.6 | S140: 8.5 | T140: 8.4 | U140: 8.3 | V140: 8.2 | W140: 8.1 | X140: 8 | Y140: 7.9 | Z140: 7.8 | AA140: 7.7 | AB140: 7.6 | AC140: 7.5 | AD140: 7.4 | AE140: 7.3 | AF140: 7.2 | AG140: 7.1 | AH140: 7 | AI140: 6.9 | AJ140: 6.8 | AK140: 6.7
A141: G# 24 | C141: 10.1 | D141: 10 | E141: 9.9 | F141: 9.8 | G141: 9.7 | H141: 9.6 | I141: 9.5 | J141: 9.4 | K141: 9.3 | L141: 9.2 | M141: 9.1 | N141: 9 | O141: 8.9 | P141: 8.8 | Q141: 8.7 | R141: 8.6 | S141: 8.5 | T141: 8.4 | U141: 8.3 | V141: 8.2 | W141: 8.1 | X141: 8 | Y141: 7.9 | Z141: 7.8 | AA141: 7.7 | AB141: 7.6 | AC141: 7.5 | AD141: 7.4 | AE141: 7.3 | AF141: 7.2 | AG141: 7.1 | AH141: 7 | AI141: 6.9 | AJ141: 6.8 | AK141: 6.7
A142: A 25 | C142: 10 | D142: 9.9 | E142: 9.8 | F142: 9.7 | G142: 9.6 | H142: 9.5 | I142: 9.4 | J142: 9.3 | K142: 9.2 | L142: 9.1 | M142: 9 | N142: 8.9 | O142: 8.8 | P142: 8.7 | Q142: 8.6 | R142: 8.5 | S142: 8.4 | T142: 8.3 | U142: 8.2 | V142: 8.1 | W142: 8 | X142: 7.9 | Y142: 7.8 | Z142: 7.7 | AA142: 7.6 | AB142: 7.5 | AC142: 7.4 | AD142: 7.3 | AE142: 7.2 | AF142: 7.1 | AG142: 7 | AH142: 6.9 | AI142: 6.8 | AJ142: 6.7 | AK142: 6.6
A143: A# 26 | C143: 10 | D143: 9.9 | E143: 9.8 | F143: 9.7 | G143: 9.6 | H143: 9.5 | I143: 9.4 | J143: 9.3 | K143: 9.2 | L143: 9.1 | M143: 9 | N143: 8.9 | O143: 8.8 | P143: 8.7 | Q143: 8.6 | R143: 8.5 | S143: 8.4 | T143: 8.3 | U143: 8.2 | V143: 8.1 | W143: 8 | X143: 7.9 | Y143: 7.8 | Z143: 7.7 | AA143: 7.6 | AB143: 7.5 | AC143: 7.4 | AD143: 7.3 | AE143: 7.2 | AF143: 7.1 | AG143: 7 | AH143: 6.9 | AI143: 6.8 | AJ143: 6.7 | AK143: 6.6
A144: B 27 | C144: 10 | D144: 9.9 | E144: 9.8 | F144: 9.7 | G144: 9.6 | H144: 9.5 | I144: 9.4 | J144: 9.3 | K144: 9.2 | L144: 9.1 | M144: 9 | N144: 8.9 | O144: 8.8 | P144: 8.7 | Q144: 8.6 | R144: 8.5 | S144: 8.4 | T144: 8.3 | U144: 8.2 | V144: 8.1 | W144: 8 | X144: 7.9 | Y144: 7.8 | Z144: 7.7 | AA144: 7.6 | AB144: 7.5 | AC144: 7.4 | AD144: 7.3 | AE144: 7.2 | AF144: 7.1 | AG144: 7 | AH144: 6.9 | AI144: 6.8 | AJ144: 6.7 | AK144: 6.6
A145: C 28 | C145: 9.9 | D145: 9.8 | E145: 9.7 | F145: 9.6 | G145: 9.5 | H145: 9.4 | I145: 9.3 | J145: 9.2 | K145: 9.1 | L145: 9 | M145: 8.9 | N145: 8.8 | O145: 8.7 | P145: 8.6 | Q145: 8.5 | R145: 8.4 | S145: 8.3 | T145: 8.2 | U145: 8.1 | V145: 8 | W145: 7.9 | X145: 7.8 | Y145: 7.7 | Z145: 7.6 | AA145: 7.5 | AB145: 7.4 | AC145: 7.3 | AD145: 7.2 | AE145: 7.1 | AF145: 7 | AG145: 6.9 | AH145: 6.8 | AI145: 6.7 | AJ145: 6.6 | AK145: 6.5
A146: C# 29 | C146: 9.9 | D146: 9.8 | E146: 9.7 | F146: 9.6 | G146: 9.5 | H146: 9.4 | I146: 9.3 | J146: 9.2 | K146: 9.1 | L146: 9 | M146: 8.9 | N146: 8.8 | O146: 8.7 | P146: 8.6 | Q146: 8.5 | R146: 8.4 | S146: 8.3 | T146: 8.2 | U146: 8.1 | V146: 8 | W146: 7.9 | X146: 7.8 | Y146: 7.7 | Z146: 7.6 | AA146: 7.5 | AB146: 7.4 | AC146: 7.3 | AD146: 7.2 | AE146: 7.1 | AF146: 7 | AG146: 6.9 | AH146: 6.8 | AI146: 6.7 | AJ146: 6.6 | AK146: 6.5
A147: D 30 | C147: 9.8 | D147: 9.7 | E147: 9.6 | F147: 9.5 | I147: 9.2 | J147: 9.1 | K147: 9 | L147: 8.9 | M147: 8.8 | N147: 8.7 | O147: 8.6 | P147: 8.5 | Q147: 8.4 | R147: 8.3 | S147: 8.2 | T147: 8.1 | U147: 8 | V147: 7.9 | W147: 7.8 | X147: 7.7 | Y147: 7.6 | Z147: 7.5 | AA147: 7.4 | AB147: 7.3 | AC147: 7.2 | AD147: 7.1 | AE147: 7 | AF147: 6.9 | AG147: 6.8 | AH147: 6.7 | AI147: 6.6 | AJ147: 6.5 | AK147: 6.4
A148: D# 31 | C148: 9.8 | D148: 9.7 | E148: 9.6 | F148: 9.5 | G148: 93 | H148: 9.3 | I148: 9.2 | J148: 9.1 | K148: 9 | L148: 8.9 | M148: 8.8 | N148: 8.7 | O148: 8.6 | P148: 8.5 | Q148: 8.4 | R148: 8.3 | S148: 8.2 | T148: 8.1 | U148: 8 | V148: 7.9 | W148: 7.8 | X148: 7.7 | Y148: 7.6 | Z148: 7.5 | AA148: 7.4 | AB148: 7.3 | AC148: 7.2 | AD148: 7.1 | AE148: 7 | AF148: 6.9 | AG148: 6.8 | AH148: 6.7 | AI148: 6.6 | AJ148: 6.5 | AK148: 6.4
A149: E 32 | C149: 9.7 | D149: 9.6 | E149: 9.5 | F149: 9.4 | G149: 9.3 | H149: 9.2 | I149: 9.1 | J149: 9 | K149: 8.9 | L149: 8.8 | M149: 8.7 | N149: 8.6 | O149: 8.5 | P149: 8.4 | Q149: 8.3 | R149: 8.2 | S149: 8.1 | T149: 8 | U149: 7.9 | V149: 7.8 | W149: 7.7 | X149: 7.6 | Y149: 7.5 | Z149: 7.4 | AA149: 7.3 | AB149: 7.2 | AC149: 7.1 | AD149: 7 | AE149: 6.9 | AF149: 6.8 | AG149: 6.7 | AH149: 6.6 | AI149: 6.5 | AJ149: 6.4 | AK149: 6.3
A150: F 33 | C150: 9.7 | D150: 9.6 | E150: 9.5 | F150: 9.4 | G150: 9.3 | H150: 9.2 | I150: 9.1 | J150: 9 | K150: 8.9 | L150: 8.8 | M150: 8.7 | N150: 8.6 | O150: 8.5 | P150: 8.4 | Q150: 8.3 | R150: 8.2 | S150: 8.1 | T150: 8 | U150: 7.9 | V150: 7.8 | W150: 7.7 | X150: 7.6 | Y150: 7.5 | Z150: 7.4 | AA150: 7.3 | AB150: 7.2 | AC150: 7.1 | AD150: 7 | AE150: 6.9 | AF150: 6.8 | AG150: 6.7 | AH150: 6.6 | AI150: 6.5 | AJ150: 6.4 | AK150: 6.3
A151: F# 34 | C151: 9.6 | D151: 9.5 | E151: 9.4 | F151: 9.3 | G151: 9.2 | H151: 9.1 | I151: 9 | J151: 8.9 | K151: 8.8 | L151: 8.7 | M151: 8.6 | N151: 8.5 | O151: 8.4 | P151: 8.3 | Q151: 8.2 | R151: 8.1 | S151: 8 | T151: 7.9 | U151: 7.8 | V151: 7.7 | W151: 7.6 | X151: 7.5 | Y151: 7.4 | Z151: 7.3 | AA151: 7.2 | AB151: 7.1 | AC151: 7 | AD151: 6.9 | AE151: 6.8 | AF151: 6.7 | AG151: 6.6 | AH151: 6.5 | AI151: 6.4 | AJ151: 6.3 | AK151: 6.2
A152: G 35 | C152: 9.6 | D152: 9.5 | E152: 9.4 | F152: 9.3 | G152: 9.2 | H152: 9.1 | I152: 9 | J152: 8.9 | K152: 8.8 | L152: 8.7 | M152: 8.6 | N152: 8.5 | O152: 8.4 | P152: 8.3 | Q152: 8.2 | R152: 8.1 | S152: 8 | T152: 7.9 | U152: 7.8 | V152: 7.7 | W152: 7.6 | X152: 7.5 | Y152: 7.4 | Z152: 7.3 | AA152: 7.2 | AB152: 7.1 | AC152: 7 | AD152: 6.9 | AE152: 6.8 | AF152: 6.7 | AG152: 6.6 | AH152: 6.5 | AI152: 6.4 | AJ152: 6.3 | AK152: 6.2
A153: G# 36 | C153: 9.5 | D153: 9.4 | E153: 9.3 | F153: 9.2 | G153: 9.1 | H153: 9 | I153: 8.9 | J153: 8.8 | K153: 8.7 | L153: 8.6 | M153: 8.5 | N153: 8.4 | O153: 8.3 | P153: 8.2 | Q153: 8.1 | R153: 8 | S153: 7.9 | T153: 7.8 | U153: 7.7 | V153: 7.6 | W153: 7.5 | X153: 7.4 | Y153: 7.3 | Z153: 7.2 | AA153: 7.1 | AB153: 7 | AC153: 6.9 | AD153: 6.8 | AE153: 6.7 | AF153: 6.6 | AG153: 6.5 | AH153: 6.4 | AI153: 6.3 | AJ153: 6.2 | AK153: 6.1
A154: A 37 | C154: 9.5 | D154: 9.4 | E154: 9.3 | F154: 9.2 | G154: 9.1 | H154: 9 | I154: 8.9 | J154: 8.8 | K154: 8.7 | L154: 8.6 | M154: 8.5 | N154: 8.4 | O154: 8.3 | P154: 8.2 | Q154: 8.1 | R154: 8 | S154: 7.9 | T154: 7.8 | U154: 7.7 | V154: 7.6 | W154: 7.5 | X154: 7.4 | Y154: 7.3 | Z154: 7.2 | AA154: 7.1 | AB154: 7 | AC154: 6.9 | AD154: 6.8 | AE154: 6.7 | AF154: 6.6 | AG154: 6.5 | AH154: 6.4 | AI154: 6.3 | AJ154: 6.2 | AK154: 6.1
A155: A# 38 | C155: 9.4 | D155: 9.3 | E155: 9.2 | F155: 9.1 | G155: 9 | H155: 8.9 | I155: 8.8 | J155: 8.7 | K155: 8.6 | L155: 8.5 | M155: 8.4 | N155: 8.3 | O155: 8.2 | P155: 8.1 | Q155: 8 | R155: 7.9 | S155: 7.8 | T155: 7.7 | U155: 7.6 | V155: 7.5 | W155: 7.4 | X155: 7.3 | Y155: 7.2 | Z155: 7.1 | AA155: 7 | AB155: 6.9 | AC155: 6.8 | AD155: 6.7 | AE155: 6.6 | AF155: 6.5 | AG155: 6.4 | AH155: 6.3 | AI155: 6.2 | AJ155: 6.1 | AK155: 6
A156: B 39 | C156: 9.4 | D156: 9.3 | E156: 9.2 | F156: 9.1 | G156: 9 | H156: 8.9 | I156: 8.8 | J156: 8.7 | K156: 8.6 | L156: 8.5 | M156: 8.4 | N156: 8.3 | O156: 8.2 | P156: 8.1 | Q156: 8 | R156: 7.9 | S156: 7.8 | T156: 7.7 | U156: 7.6 | V156: 7.5 | W156: 7.4 | X156: 7.3 | Y156: 7.2 | Z156: 7.1 | AA156: 7 | AB156: 6.9 | AC156: 6.8 | AD156: 6.7 | AE156: 6.6 | AF156: 6.5 | AG156: 6.4 | AH156: 6.3 | AI156: 6.2 | AJ156: 6.1 | AK156: 6
A157: C 40 | C157: 9.3 | D157: 9.2 | E157: 9.1 | F157: 9 | G157: 8.9 | H157: 8.8 | I157: 8.7 | J157: 8.6 | K157: 8.5 | L157: 8.4 | M157: 8.3 | N157: 8.2 | O157: 8.1 | P157: 8 | Q157: 7.9 | R157: 7.8 | S157: 7.7 | T157: 7.6 | U157: 7.5 | V157: 7.4 | W157: 7.3 | X157: 7.2 | Y157: 7.1 | Z157: 7 | AA157: 6.9 | AB157: 6.8 | AC157: 6.7 | AD157: 6.6 | AE157: 6.5 | AF157: 6.4 | AG157: 6.3 | AH157: 6.2 | AI157: 6.1 | AJ157: 6 | AK157: 5.9
A158: C# 41 | C158: 9.3 | D158: 9.2 | E158: 9.1 | F158: 9 | G158: 8.9 | H158: 8.8 | I158: 8.7 | J158: 8.6 | K158: 8.5 | L158: 8.4 | M158: 8.3 | N158: 8.2 | O158: 8.1 | P158: 8 | Q158: 7.9 | R158: 7.8 | S158: 7.7 | T158: 7.6 | U158: 7.5 | V158: 7.4 | W158: 7.3 | X158: 7.2 | Y158: 7.1 | Z158: 7 | AA158: 6.9 | AB158: 6.8 | AC158: 6.7 | AD158: 6.6 | AE158: 6.5 | AF158: 6.4 | AG158: 6.3 | AH158: 6.2 | AI158: 6.1 | AJ158: 6 | AK158: 5.9
A159: D 42 | C159: 9.2 | D159: 9.1 | E159: 9 | F159: 8.9 | G159: 8.8 | H159: 8.7 | I159: 8.6 | J159: 8.5 | K159: 8.4 | L159: 8.3 | M159: 8.2 | N159: 8.1 | O159: 8 | P159: 7.9 | Q159: 7.8 | R159: 7.7 | S159: 7.6 | T159: 7.5 | U159: 7.4 | V159: 7.3 | W159: 7.2 | X159: 7.1 | Y159: 7 | Z159: 6.9 | AA159: 6.8 | AB159: 6.7 | AC159: 6.6 | AD159: 6.5 | AE159: 6.4 | AF159: 6.3 | AG159: 6.2 | AH159: 6.1 | AI159: 6 | AJ159: 5.9 | AK159: 5.8
A160: D# 43 | C160: 9.1 | D160: 9 | E160: 8.9 | F160: 8.8 | G160: 8.7 | H160: 8.6 | I160: 8.5 | J160: 8.4 | K160: 8.3 | L160: 8.2 | M160: 8.1 | N160: 8 | O160: 7.9 | P160: 7.8 | Q160: 7.7 | R160: 7.6 | S160: 7.5 | T160: 7.4 | U160: 7.3 | V160: 7.2 | W160: 7.1 | X160: 7 | Y160: 6.9 | Z160: 6.8 | AA160: 6.7 | AB160: 6.6 | AC160: 6.5 | AD160: 6.4 | AE160: 6.3 | AF160: 6.2 | AG160: 6.1 | AH160: 6 | AI160: 5.9 | AJ160: 5.8 | AK160: 5.7
A161: E 44 | C161: 9.1 | D161: 9 | E161: 8.9 | F161: 8.8 | G161: 8.7 | H161: 8.6 | I161: 8.5 | J161: 8.4 | K161: 8.3 | L161: 8.2 | M161: 8.1 | N161: 8 | O161: 7.9 | P161: 7.8 | Q161: 7.7 | R161: 7.6 | S161: 7.5 | T161: 7.4 | U161: 7.3 | V161: 7.2 | W161: 7.1 | X161: 7 | Y161: 6.9 | Z161: 6.8 | AA161: 6.7 | AB161: 6.6 | AC161: 6.5 | AD161: 6.4 | AE161: 6.3 | AF161: 6.2 | AG161: 6.1 | AH161: 6 | AI161: 5.9 | AJ161: 5.8 | AK161: 5.7
A162: F 45 | C162: 9 | D162: 8.9 | E162: 8.8 | F162: 8.7 | G162: 8.6 | H162: 8.5 | I162: 8.4 | J162: 8.3 | K162: 8.2 | L162: 8.1 | M162: 8 | N162: 7.9 | O162: 7.8 | P162: 7.7 | Q162: 7.6 | R162: 7.5 | S162: 7.4 | T162: 7.3 | U162: 7.2 | V162: 7.1 | W162: 7 | X162: 6.9 | Y162: 6.8 | Z162: 6.7 | AA162: 6.6 | AB162: 6.5 | AC162: 6.4 | AD162: 6.3 | AE162: 6.2 | AF162: 6.1 | AG162: 6 | AH162: 5.9 | AI162: 5.8 | AJ162: 5.7 | AK162: 5.6
A163: F# 46 | C163: 8.9 | D163: 8.8 | E163: 8.7 | F163: 8.6 | G163: 8.5 | H163: 8.4 | I163: 8.3 | J163: 8.2 | K163: 8.1 | L163: 8 | M163: 7.9 | N163: 7.8 | O163: 7.7 | P163: 7.6 | Q163: 7.5 | R163: 7.4 | S163: 7.3 | T163: 7.2 | U163: 7.1 | V163: 7 | W163: 6.9 | X163: 6.8 | Y163: 6.7 | Z163: 6.6 | AA163: 6.5 | AB163: 6.4 | AC163: 6.3 | AD163: 6.2 | AE163: 6.1 | AF163: 6 | AG163: 5.9 | AH163: 5.8 | AI163: 5.7 | AJ163: 5.6 | AK163: 5.5
A164: G 47 | C164: 8.9 | D164: 8.8 | E164: 8.7 | F164: 8.6 | G164: 8.5 | H164: 8.4 | I164: 8.3 | J164: 8.2 | K164: 8.1 | L164: 8 | M164: 7.9 | N164: 7.8 | O164: 7.7 | P164: 7.6 | Q164: 7.5 | R164: 7.4 | S164: 7.3 | T164: 7.2 | U164: 7.1 | V164: 7 | W164: 6.9 | X164: 6.8 | Y164: 6.7 | Z164: 6.6 | AA164: 6.5 | AB164: 6.4 | AC164: 6.3 | AD164: 6.2 | AE164: 6.1 | AF164: 6 | AG164: 5.9 | AH164: 5.8 | AI164: 5.7 | AJ164: 5.6 | AK164: 5.5
A165: G# 48 | C165: 8.8 | D165: 8.7 | E165: 8.6 | F165: 8.5 | G165: 8.4 | H165: 8.3 | I165: 8.2 | J165: 8.1 | K165: 8 | L165: 7.9 | M165: 7.8 | N165: 7.7 | O165: 7.6 | P165: 7.5 | Q165: 7.4 | R165: 7.3 | S165: 7.2 | T165: 7.1 | U165: 7 | V165: 6.9 | W165: 6.8 | X165: 6.7 | Y165: 6.6 | Z165: 6.5 | AA165: 6.4 | AB165: 6.3 | AC165: 6.2 | AD165: 6.1 | AE165: 6 | AF165: 5.9 | AG165: 5.8 | AH165: 5.7 | AI165: 5.6 | AJ165: 5.5 | AK165: 5.4
A166: A 49 | C166: 8.8 | D166: 8.7 | E166: 8.6 | F166: 8.5 | G166: 8.4 | H166: 8.3 | I166: 8.2 | J166: 8.1 | K166: 8 | L166: 7.9 | M166: 7.8 | N166: 7.7 | O166: 7.6 | P166: 7.5 | Q166: 7.4 | R166: 7.3 | S166: 7.2 | T166: 7.1 | U166: 7 | V166: 6.9 | W166: 6.8 | X166: 6.7 | Y166: 6.6 | Z166: 6.5 | AA166: 6.4 | AB166: 6.3 | AC166: 6.2 | AD166: 6.1 | AE166: 6 | AF166: 5.9 | AG166: 5.8 | AH166: 5.7 | AI166: 5.6 | AJ166: 5.5 | AK166: 5.4
A167: A# 50 | C167: 8.7 | D167: 8.6 | E167: 8.5 | F167: 8.4 | G167: 8.3 | H167: 8.2 | I167: 8.1 | J167: 8 | K167: 7.9 | L167: 7.8 | M167: 7.7 | N167: 7.6 | O167: 7.5 | P167: 7.4 | Q167: 7.3 | R167: 7.2 | S167: 7.1 | T167: 7 | U167: 6.9 | V167: 6.8 | W167: 6.7 | X167: 6.6 | Y167: 6.5 | Z167: 6.4 | AA167: 6.3 | AB167: 6.2 | AC167: 6.1 | AD167: 6 | AE167: 5.9 | AF167: 5.8 | AG167: 5.7 | AH167: 5.6 | AI167: 5.5 | AJ167: 5.4 | AK167: 5.3
A168: B 51 | C168: 8.6 | D168: 8.5 | E168: 8.4 | F168: 8.3 | G168: 8.2 | H168: 8.1 | I168: 8 | J168: 7.9 | K168: 7.8 | L168: 7.7 | M168: 7.6 | N168: 7.5 | O168: 7.4 | P168: 7.3 | Q168: 7.2 | R168: 7.1 | S168: 7 | T168: 6.9 | U168: 6.8 | V168: 6.7 | W168: 6.6 | X168: 6.5 | Y168: 6.4 | Z168: 6.3 | AA168: 6.2 | AB168: 6.1 | AC168: 6 | AD168: 5.9 | AE168: 5.8 | AF168: 5.7 | AG168: 5.6 | AH168: 5.5 | AI168: 5.4 | AJ168: 5.3 | AK168: 5.2
A169: C 52 | C169: 8.6 | D169: 8.5 | E169: 8.4 | F169: 8.3 | G169: 8.2 | H169: 8.1 | I169: 8 | J169: 7.9 | K169: 7.8 | L169: 7.7 | M169: 7.6 | N169: 7.5 | O169: 7.4 | P169: 7.3 | Q169: 7.2 | R169: 7.1 | S169: 7 | T169: 6.9 | U169: 6.8 | V169: 6.7 | W169: 6.6 | X169: 6.5 | Y169: 6.4 | Z169: 6.3 | AA169: 6.2 | AB169: 6.1 | AC169: 6 | AD169: 5.9 | AE169: 5.8 | AF169: 5.7 | AG169: 5.6 | AH169: 5.5 | AI169: 5.4 | AJ169: 5.3 | AK169: 5.2
A170: C# 53 | C170: 8.5 | D170: 8.4 | E170: 8.3 | F170: 8.2 | G170: 8.1 | H170: 8 | I170: 7.9 | J170: 7.8 | K170: 7.7 | L170: 7.6 | M170: 7.5 | N170: 7.4 | O170: 7.3 | P170: 7.2 | Q170: 7.1 | R170: 7 | S170: 6.9 | T170: 6.8 | U170: 6.7 | V170: 6.6 | W170: 6.5 | X170: 6.4 | Y170: 6.3 | Z170: 6.2 | AA170: 6.1 | AB170: 6 | AC170: 5.9 | AD170: 5.8 | AE170: 5.7 | AF170: 5.6 | AG170: 5.5 | AH170: 5.4 | AI170: 5.3 | AJ170: 5.2 | AK170: 5.1
A171: D 54 | C171: 8.4 | D171: 8.3 | E171: 8.2 | F171: 8.1 | G171: 8 | H171: 7.9 | I171: 7.8 | J171: 7.7 | K171: 7.6 | L171: 7.5 | M171: 7.4 | N171: 7.3 | O171: 7.2 | P171: 7.1 | Q171: 7 | R171: 6.9 | S171: 6.8 | T171: 6.7 | U171: 6.6 | V171: 6.5 | W171: 6.4 | X171: 6.3 | Y171: 6.2 | Z171: 6.1 | AA171: 6 | AB171: 5.9 | AC171: 5.8 | AD171: 5.7 | AE171: 5.6 | AF171: 5.5 | AG171: 5.4 | AH171: 5.3 | AI171: 5.2 | AJ171: 5.1 | AK171: 5
A172: D# 55 | C172: 8.3 | D172: 8.2 | E172: 8.1 | F172: 8 | G172: 7.9 | H172: 7.8 | I172: 7.7 | J172: 7.6 | K172: 7.5 | L172: 7.4 | M172: 7.3 | N172: 7.2 | O172: 7.1 | P172: 7 | Q172: 6.9 | R172: 6.8 | S172: 6.7 | T172: 6.6 | U172: 6.5 | V172: 6.4 | W172: 6.3 | X172: 6.2 | Y172: 6.1 | Z172: 6 | AA172: 5.9 | AB172: 5.8 | AC172: 5.7 | AD172: 5.6 | AE172: 5.5 | AF172: 5.4 | AG172: 5.3 | AH172: 5.2 | AI172: 5.1 | AJ172: 5 | AK172: 4.9
A173: E 56 | C173: 8.3 | D173: 8.2 | E173: 8.1 | F173: 8 | G173: 7.9 | H173: 7.8 | I173: 7.7 | J173: 7.6 | K173: 7.5 | L173: 7.4 | M173: 7.3 | N173: 7.2 | O173: 7.1 | P173: 7 | Q173: 6.9 | R173: 6.8 | S173: 6.7 | T173: 6.6 | U173: 6.5 | V173: 6.4 | W173: 6.3 | X173: 6.2 | Y173: 6.1 | Z173: 6 | AA173: 5.9 | AB173: 5.8 | AC173: 5.7 | AD173: 5.6 | AE173: 5.5 | AF173: 5.4 | AG173: 5.3 | AH173: 5.2 | AI173: 5.1 | AJ173: 5 | AK173: 4.9
A174: F 57 | C174: 8.2 | D174: 8.1 | E174: 8 | F174: 7.9 | G174: 7.8 | H174: 7.7 | I174: 7.6 | J174: 7.5 | K174: 7.4 | L174: 7.3 | M174: 7.2 | N174: 7.1 | O174: 7 | P174: 6.9 | Q174: 6.8 | R174: 6.7 | S174: 6.6 | T174: 6.5 | U174: 6.4 | V174: 6.3 | W174: 6.2 | X174: 6.1 | Y174: 6 | Z174: 5.9 | AA174: 5.8 | AB174: 5.7 | AC174: 5.6 | AD174: 5.5 | AE174: 5.4 | AF174: 5.3 | AG174: 5.2 | AH174: 5.1 | AI174: 5 | AJ174: 4.9 | AK174: 4.8
A175: F# 58 | C175: 8.1 | D175: 8 | E175: 7.9 | F175: 7.8 | G175: 7.7 | H175: 7.6 | I175: 7.5 | J175: 7.4 | K175: 7.3 | L175: 7.2 | M175: 7.1 | N175: 7 | O175: 6.9 | P175: 6.8 | Q175: 6.7 | R175: 6.6 | S175: 6.5 | T175: 6.4 | U175: 6.3 | V175: 6.2 | W175: 6.1 | X175: 6 | Y175: 5.9 | Z175: 5.8 | AA175: 5.7 | AB175: 5.6 | AC175: 5.5 | AD175: 5.4 | AE175: 5.3 | AF175: 5.2 | AG175: 5.1 | AH175: 5 | AI175: 4.9 | AJ175: 4.8 | AK175: 4.7
A176: G 59 | C176: 8 | D176: 7.9 | E176: 7.8 | F176: 7.7 | G176: 7.6 | H176: 7.5 | I176: 7.4 | J176: 7.3 | K176: 7.2 | L176: 7.1 | M176: 7 | N176: 6.9 | O176: 6.8 | P176: 6.7 | Q176: 6.6 | R176: 6.5 | S176: 6.4 | T176: 6.3 | U176: 6.2 | V176: 6.1 | W176: 6 | X176: 5.9 | Y176: 5.8 | Z176: 5.7 | AA176: 5.6 | AB176: 5.5 | AC176: 5.4 | AD176: 5.3 | AE176: 5.2 | AF176: 5.1 | AG176: 5 | AH176: 4.9 | AI176: 4.8 | AJ176: 4.7 | AK176: 4.6
A177: G# 60 | C177: 8 | D177: 7.9 | E177: 7.8 | F177: 7.7 | G177: 7.6 | H177: 7.5 | I177: 7.4 | J177: 7.3 | K177: 7.2 | L177: 7.1 | M177: 7 | N177: 6.9 | O177: 6.8 | P177: 6.7 | Q177: 6.6 | R177: 6.5 | S177: 6.4 | T177: 6.3 | U177: 6.2 | V177: 6.1 | W177: 6 | X177: 5.9 | Y177: 5.8 | Z177: 5.7 | AA177: 5.6 | AB177: 5.5 | AC177: 5.4 | AD177: 5.3 | AE177: 5.2 | AF177: 5.1 | AG177: 5 | AH177: 4.9 | AI177: 4.8 | AJ177: 4.7 | AK177: 4.6
A178: A 61 | C178: 7.9 | D178: 7.8 | E178: 7.7 | F178: 7.6 | G178: 7.5 | H178: 7.4 | I178: 7.3 | J178: 7.2 | K178: 7.1 | L178: 7 | M178: 6.9 | N178: 6.8 | O178: 6.7 | P178: 6.6 | Q178: 6.5 | R178: 6.4 | S178: 6.3 | T178: 6.2 | U178: 6.1 | V178: 6 | W178: 5.9 | X178: 5.8 | Y178: 5.7 | Z178: 5.6 | AA178: 5.5 | AB178: 5.4 | AC178: 5.3 | AD178: 5.2 | AE178: 5.1 | AF178: 5 | AG178: 4.9 | AH178: 4.8 | AI178: 4.7 | AJ178: 4.6 | AK178: 4.5
A179: A# 62 | C179: 7.8 | D179: 7.7 | E179: 7.6 | F179: 7.5 | G179: 7.4 | H179: 7.3 | I179: 7.2 | J179: 7.1 | K179: 7 | L179: 6.9 | M179: 6.8 | N179: 6.7 | O179: 6.6 | P179: 6.5 | Q179: 6.4 | R179: 6.3 | S179: 6.2 | T179: 6.1 | U179: 6 | V179: 5.9 | W179: 5.8 | X179: 5.7 | Y179: 5.6 | Z179: 5.5 | AA179: 5.4 | AB179: 5.3 | AC179: 5.2 | AD179: 5.1 | AE179: 5 | AF179: 4.9 | AG179: 4.8 | AH179: 4.7 | AI179: 4.6 | AJ179: 4.5 | AK179: 4.4
A180: B 63 | C180: 7.7 | D180: 7.6 | E180: 7.5 | F180: 7.4 | G180: 7.3 | H180: 7.2 | I180: 7.1 | J180: 7 | K180: 6.9 | L180: 6.8 | M180: 6.7 | N180: 6.6 | O180: 6.5 | P180: 6.4 | Q180: 6.3 | R180: 6.2 | S180: 6.1 | T180: 6 | U180: 5.9 | V180: 5.8 | W180: 5.7 | X180: 5.6 | Y180: 5.5 | Z180: 5.4 | AA180: 5.3 | AB180: 5.2 | AC180: 5.1 | AD180: 5 | AE180: 4.9 | AF180: 4.8 | AG180: 4.7 | AH180: 4.6 | AI180: 4.5 | AJ180: 4.4 | AK180: 4.3
A181: C 64 | C181: 7.6 | D181: 7.5 | E181: 7.4 | F181: 7.3 | G181: 7.2 | H181: 7.1 | I181: 7 | J181: 6.9 | K181: 6.8 | L181: 6.7 | M181: 6.6 | N181: 6.5 | O181: 6.4 | P181: 6.3 | Q181: 6.2 | R181: 6.1 | S181: 6 | T181: 5.9 | U181: 5.8 | V181: 5.7 | W181: 5.6 | X181: 5.5 | Y181: 5.4 | Z181: 5.3 | AA181: 5.2 | AB181: 5.1 | AC181: 5 | AD181: 4.9 | AE181: 4.8 | AF181: 4.7 | AG181: 4.6 | AH181: 4.5 | AI181: 4.4 | AJ181: 4.3 | AK181: 4.2
A182: C# 65 | C182: 7.5 | D182: 7.4 | E182: 7.3 | F182: 7.2 | G182: 7.1 | H182: 7 | I182: 6.9 | J182: 6.8 | K182: 6.7 | L182: 6.6 | M182: 6.5 | N182: 6.4 | O182: 6.3 | P182: 6.2 | Q182: 6.1 | R182: 6 | S182: 5.9 | T182: 5.8 | U182: 5.7 | V182: 5.6 | W182: 5.5 | X182: 5.4 | Y182: 5.3 | Z182: 5.2 | AA182: 5.1 | AB182: 5 | AC182: 4.9 | AD182: 4.8 | AE182: 4.7 | AF182: 4.6 | AG182: 4.5 | AH182: 4.4 | AI182: 4.3 | AJ182: 4.2 | AK182: 4.1
A183: D 66 | C183: 7.5 | D183: 7.4 | E183: 7.3 | F183: 7.2 | G183: 7.1 | H183: 7 | I183: 6.9 | J183: 6.8 | K183: 6.7 | L183: 6.6 | M183: 6.5 | N183: 6.4 | O183: 6.3 | P183: 6.2 | Q183: 6.1 | R183: 6 | S183: 5.9 | T183: 5.8 | U183: 5.7 | V183: 5.6 | W183: 5.5 | X183: 5.4 | Y183: 5.3 | Z183: 5.2 | AA183: 5.1 | AB183: 5 | AC183: 4.9 | AD183: 4.8 | AE183: 4.7 | AF183: 4.6 | AG183: 4.5 | AH183: 4.4 | AI183: 4.3 | AJ183: 4.2 | AK183: 4.1
A184: D# 67 | C184: 7.4 | D184: 7.3 | E184: 7.2 | F184: 7.1 | G184: 7 | H184: 6.9 | I184: 6.8 | J184: 6.7 | K184: 6.6 | L184: 6.5 | M184: 6.4 | N184: 6.3 | O184: 6.2 | P184: 6.1 | Q184: 6 | R184: 5.9 | S184: 5.8 | T184: 5.7 | U184: 5.6 | V184: 5.5 | W184: 5.4 | X184: 5.3 | Y184: 5.2 | Z184: 5.1 | AA184: 5 | AB184: 4.9 | AC184: 4.8 | AD184: 4.7 | AE184: 4.6 | AF184: 4.5 | AG184: 4.4 | AH184: 4.3 | AI184: 4.2 | AJ184: 4.1 | AK184: 4
A185: E 68 | C185: 7.3 | D185: 7.2 | E185: 7.1 | F185: 7 | G185: 6.9 | H185: 6.8 | I185: 6.7 | J185: 6.6 | K185: 6.5 | L185: 6.4 | M185: 6.3 | N185: 6.2 | O185: 6.1 | P185: 6 | Q185: 5.9 | R185: 5.8 | S185: 5.7 | T185: 5.6 | U185: 5.5 | V185: 5.4 | W185: 5.3 | X185: 5.2 | Y185: 5.1 | Z185: 5 | AA185: 4.9 | AB185: 4.8 | AC185: 4.7 | AD185: 4.6 | AE185: 4.5 | AF185: 4.4 | AG185: 4.3 | AH185: 4.2 | AI185: 4.1 | AJ185: 4 | AK185: 3.9
A186: F 69 | C186: 7.2 | D186: 7.1 | E186: 7 | F186: 6.9 | G186: 6.8 | H186: 6.7 | I186: 6.6 | J186: 6.5 | K186: 6.4 | L186: 6.3 | M186: 6.2 | N186: 6.1 | O186: 6 | P186: 5.9 | Q186: 5.8 | R186: 5.7 | S186: 5.6 | T186: 5.5 | U186: 5.4 | V186: 5.3 | W186: 5.2 | X186: 5.1 | Y186: 5 | Z186: 4.9 | AA186: 4.8 | AB186: 4.7 | AC186: 4.6 | AD186: 4.5 | AE186: 4.4 | AF186: 4.3 | AG186: 4.2 | AH186: 4.1 | AI186: 4 | AJ186: 3.9 | AK186: 3.8
A187: F# 70 | C187: 7.1 | D187: 7 | E187: 6.9 | F187: 6.8 | G187: 6.7 | H187: 6.6 | I187: 6.5 | J187: 6.4 | K187: 6.3 | L187: 6.2 | M187: 6.1 | N187: 6 | O187: 5.9 | P187: 5.8 | Q187: 5.7 | R187: 5.6 | S187: 5.5 | T187: 5.4 | U187: 5.3 | V187: 5.2 | W187: 5.1 | X187: 5 | Y187: 4.9 | Z187: 4.8 | AA187: 4.7 | AB187: 4.6 | AC187: 4.5 | AD187: 4.4 | AE187: 4.3 | AF187: 4.2 | AG187: 4.1 | AH187: 4 | AI187: 3.9 | AJ187: 3.8 | AK187: 3.7
A188: G 71 | C188: 7 | D188: 6.9 | E188: 6.8 | F188: 6.7 | G188: 6.6 | H188: 6.5 | I188: 6.4 | J188: 6.3 | K188: 6.2 | L188: 6.1 | M188: 6 | N188: 5.9 | O188: 5.8 | P188: 5.7 | Q188: 5.6 | R188: 5.5 | S188: 5.4 | T188: 5.3 | U188: 5.2 | V188: 5.1 | W188: 5 | X188: 4.9 | Y188: 4.8 | Z188: 4.7 | AA188: 4.6 | AB188: 4.5 | AC188: 4.4 | AD188: 4.3 | AE188: 4.2 | AF188: 4.1 | AG188: 4 | AH188: 3.9 | AI188: 3.8 | AJ188: 3.7 | AK188: 3.6
A189: G# 72 | C189: 6.9 | D189: 6.8 | E189: 6.7 | F189: 6.6 | G189: 6.5 | H189: 6.4 | I189: 6.3 | J189: 6.2 | K189: 6.1 | L189: 6 | M189: 5.9 | N189: 5.8 | O189: 5.7 | P189: 5.6 | Q189: 5.5 | R189: 5.4 | S189: 5.3 | T189: 5.2 | U189: 5.1 | V189: 5 | W189: 4.9 | X189: 4.8 | Y189: 4.7 | Z189: 4.6 | AA189: 4.5 | AB189: 4.4 | AC189: 4.3 | AD189: 4.2 | AE189: 4.1 | AF189: 4 | AG189: 3.9 | AH189: 3.8 | AI189: 3.7 | AJ189: 3.6 | AK189: 3.5
A190: A 73 | C190: 6.8 | D190: 6.7 | E190: 6.6 | F190: 6.5 | G190: 6.4 | H190: 6.3 | I190: 6.2 | J190: 6.1 | K190: 6 | L190: 5.9 | M190: 5.8 | N190: 5.7 | O190: 5.6 | P190: 5.5 | Q190: 5.4 | R190: 5.3 | S190: 5.2 | T190: 5.1 | U190: 5 | V190: 4.9 | W190: 4.8 | X190: 4.7 | Y190: 4.6 | Z190: 4.5 | AA190: 4.4 | AB190: 4.3 | AC190: 4.2 | AD190: 4.1 | AE190: 4 | AF190: 3.9 | AG190: 3.8 | AH190: 3.7 | AI190: 3.6 | AJ190: 3.5 | AK190: 3.4
A191: A# 74 | C191: 6.7 | D191: 6.6 | E191: 6.5 | F191: 6.4 | G191: 6.3 | H191: 6.2 | I191: 6.1 | J191: 6 | K191: 5.9 | L191: 5.8 | M191: 5.7 | N191: 5.6 | O191: 5.5 | P191: 5.4 | Q191: 5.3 | R191: 5.2 | S191: 5.1 | T191: 5 | U191: 4.9 | V191: 4.8 | W191: 4.7 | X191: 4.6 | Y191: 4.5 | Z191: 4.4 | AA191: 4.3 | AB191: 4.2 | AC191: 4.1 | AD191: 4 | AE191: 3.9 | AF191: 3.8 | AG191: 3.7 | AH191: 3.6 | AI191: 3.5 | AJ191: 3.4 | AK191: 3.3
A192: B 75 | C192: 6.6 | D192: 6.5 | E192: 6.4 | F192: 6.3 | G192: 6.2 | H192: 6.1 | I192: 6 | J192: 5.9 | K192: 5.8 | L192: 5.7 | M192: 5.6 | N192: 5.5 | O192: 5.4 | P192: 5.3 | Q192: 5.2 | R192: 5.1 | S192: 5 | T192: 4.9 | U192: 4.8 | V192: 4.7 | W192: 4.6 | X192: 4.5 | Y192: 4.4 | Z192: 4.3 | AA192: 4.2 | AB192: 4.1 | AC192: 4 | AD192: 3.9 | AE192: 3.8 | AF192: 3.7 | AG192: 3.6 | AH192: 3.5 | AI192: 3.4 | AJ192: 3.3 | AK192: 3.2
A193: C 76 | C193: 6.5 | D193: 6.4 | E193: 6.3 | F193: 6.2 | G193: 6.1 | H193: 6 | I193: 5.9 | J193: 5.8 | K193: 5.7 | L193: 5.6 | M193: 5.5 | N193: 5.4 | O193: 5.3 | P193: 5.2 | Q193: 5.1 | R193: 5 | S193: 4.9 | T193: 4.8 | U193: 4.7 | V193: 4.6 | W193: 4.5 | X193: 4.4 | Y193: 4.3 | Z193: 4.2 | AA193: 4.1 | AB193: 4 | AC193: 3.9 | AD193: 3.8 | AE193: 3.7 | AF193: 3.6 | AG193: 3.5 | AH193: 3.4 | AI193: 3.3 | AJ193: 3.2 | AK193: 3.1
A194: C# 77 | C194: 6.4 | D194: 6.3 | E194: 6.2 | F194: 6.1 | G194: 6 | H194: 5.9 | I194: 5.8 | J194: 5.7 | K194: 5.6 | L194: 5.5 | M194: 5.4 | N194: 5.3 | O194: 5.2 | P194: 5.1 | Q194: 5 | R194: 4.9 | S194: 4.8 | T194: 4.7 | U194: 4.6 | V194: 4.5 | W194: 4.4 | X194: 4.3 | Y194: 4.2 | Z194: 4.1 | AA194: 4 | AB194: 3.9 | AC194: 3.8 | AD194: 3.7 | AE194: 3.6 | AF194: 3.5 | AG194: 3.4 | AH194: 3.3 | AI194: 3.2 | AJ194: 3.1 | AK194: 3
A195: D 78 | C195: 6.3 | D195: 6.2 | E195: 6.1 | F195: 6 | G195: 5.9 | H195: 5.8 | I195: 5.7 | J195: 5.6 | K195: 5.5 | L195: 5.4 | M195: 5.3 | N195: 5.2 | O195: 5.1 | P195: 5 | Q195: 4.9 | R195: 4.8 | S195: 4.7 | T195: 4.6 | U195: 4.5 | V195: 4.4 | W195: 4.3 | X195: 4.2 | Y195: 4.1 | Z195: 4 | AA195: 3.9 | AB195: 3.8 | AC195: 3.7 | AD195: 3.6 | AE195: 3.5 | AF195: 3.4 | AG195: 3.3 | AH195: 3.2 | AI195: 3.1 | AJ195: 3 | AK195: 2.9
A196: D# 79 | C196: 6.2 | D196: 6.1 | E196: 6 | F196: 5.9 | G196: 5.8 | H196: 5.7 | I196: 5.6 | J196: 5.5 | K196: 5.4 | L196: 5.3 | M196: 5.2 | N196: 5.1 | O196: 5 | P196: 4.9 | Q196: 4.8 | R196: 4.7 | S196: 4.6 | T196: 4.5 | U196: 4.4 | V196: 4.3 | W196: 4.2 | X196: 4.1 | Y196: 4 | Z196: 3.9 | AA196: 3.8 | AB196: 3.7 | AC196: 3.6 | AD196: 3.5 | AE196: 3.4 | AF196: 3.3 | AG196: 3.2 | AH196: 3.1 | AI196: 3 | AJ196: 2.9 | AK196: 2.8
A197: E 80 | C197: 6.1 | D197: 6 | E197: 5.9 | F197: 5.8 | G197: 5.7 | H197: 5.6 | I197: 5.5 | J197: 5.4 | K197: 5.3 | L197: 5.2 | M197: 5.1 | N197: 5 | O197: 4.9 | P197: 4.8 | Q197: 4.7 | R197: 4.6 | S197: 4.5 | T197: 4.4 | U197: 4.3 | V197: 4.2 | W197: 4.1 | X197: 4 | Y197: 3.9 | Z197: 3.8 | AA197: 3.7 | AB197: 3.6 | AC197: 3.5 | AD197: 3.4 | AE197: 3.3 | AF197: 3.2 | AG197: 3.1 | AH197: 3 | AI197: 2.9 | AJ197: 2.8 | AK197: 2.7
A198: F 81 | C198: 6 | D198: 5.9 | E198: 5.8 | F198: 5.7 | G198: 5.6 | H198: 5.5 | I198: 5.4 | J198: 5.3 | K198: 5.2 | L198: 5.1 | M198: 5 | N198: 4.9 | O198: 4.8 | P198: 4.7 | Q198: 4.6 | R198: 4.5 | S198: 4.4 | T198: 4.3 | U198: 4.2 | V198: 4.1 | W198: 4 | X198: 3.9 | Y198: 3.8 | Z198: 3.7 | AA198: 3.6 | AB198: 3.5 | AC198: 3.4 | AD198: 3.3 | AE198: 3.2 | AF198: 3.1 | AG198: 3 | AH198: 2.9 | AI198: 2.8 | AJ198: 2.7 | AK198: 2.6
A199: F# 82 | C199: 5.9 | D199: 5.8 | E199: 5.7 | F199: 5.6 | G199: 5.5 | H199: 5.4 | I199: 5.3 | J199: 5.2 | K199: 5.1 | L199: 5 | M199: 4.9 | N199: 4.8 | O199: 4.7 | P199: 4.6 | Q199: 4.5 | R199: 4.4 | S199: 4.3 | T199: 4.2 | U199: 4.1 | V199: 4 | W199: 3.9 | X199: 3.8 | Y199: 3.7 | Z199: 3.6 | AA199: 3.5 | AB199: 3.4 | AC199: 3.3 | AD199: 3.2 | AE199: 3.1 | AF199: 3 | AG199: 2.9 | AH199: 2.8 | AI199: 2.7 | AJ199: 2.6 | AK199: 2.5
A200: G 83 | C200: 5.8 | D200: 5.7 | E200: 5.6 | F200: 5.5 | G200: 5.4 | H200: 5.3 | I200: 5.2 | J200: 5.1 | K200: 5 | L200: 4.9 | M200: 4.8 | N200: 4.7 | O200: 4.6 | P200: 4.5 | Q200: 4.4 | R200: 4.3 | S200: 4.2 | T200: 4.1 | U200: 4 | V200: 3.9 | W200: 3.8 | X200: 3.7 | Y200: 3.6 | Z200: 3.5 | AA200: 3.4 | AB200: 3.3 | AC200: 3.2 | AD200: 3.1 | AE200: 3 | AF200: 2.9 | AG200: 2.8 | AH200: 2.7 | AI200: 2.6 | AJ200: 2.5 | AK200: 2.4
A201: G# 84 | C201: 5.7 | D201: 5.6 | E201: 5.5 | F201: 5.4 | G201: 5.3 | H201: 5.2 | I201: 5.1 | J201: 5 | K201: 4.9 | L201: 4.8 | M201: 4.7 | N201: 4.6 | O201: 4.5 | P201: 4.4 | Q201: 4.3 | R201: 4.2 | S201: 4.1 | T201: 4 | U201: 3.9 | V201: 3.8 | W201: 3.7 | X201: 3.6 | Y201: 3.5 | Z201: 3.4 | AA201: 3.3 | AB201: 3.2 | AC201: 3.1 | AD201: 3 | AE201: 2.9 | AF201: 2.8 | AG201: 2.7 | AH201: 2.6 | AI201: 2.5 | AJ201: 2.4 | AK201: 2.3
A202: A 85 | C202: 5.6 | D202: 5.5 | E202: 5.4 | F202: 5.3 | G202: 5.2 | H202: 5.1 | I202: 5 | J202: 4.9 | K202: 4.8 | L202: 4.7 | M202: 4.6 | N202: 4.5 | O202: 4.4 | P202: 4.3 | Q202: 4.2 | R202: 4.1 | S202: 4 | T202: 3.9 | U202: 3.8 | V202: 3.7 | W202: 3.6 | X202: 3.5 | Y202: 3.4 | Z202: 3.3 | AA202: 3.2 | AB202: 3.1 | AC202: 3 | AD202: 2.9 | AE202: 2.8 | AF202: 2.7 | AG202: 2.6 | AH202: 2.5 | AI202: 2.4 | AJ202: 2.3 | AK202: 2.2
A203: A# 86 | C203: 5.5 | D203: 5.4 | E203: 5.3 | F203: 5.2 | G203: 5.1 | H203: 5 | I203: 4.9 | J203: 4.8 | K203: 4.7 | L203: 4.6 | M203: 4.5 | N203: 4.4 | O203: 4.3 | P203: 4.2 | Q203: 4.1 | R203: 4 | S203: 3.9 | T203: 3.8 | U203: 3.7 | V203: 3.6 | W203: 3.5 | X203: 3.4 | Y203: 3.3 | Z203: 3.2 | AA203: 3.1 | AB203: 3 | AC203: 2.9 | AD203: 2.8 | AE203: 2.7 | AF203: 2.6 | AG203: 2.5 | AH203: 2.4 | AI203: 2.3 | AJ203: 2.2 | AK203: 2.1
A204: B 87 | C204: 5.4 | D204: 5.3 | E204: 5.2 | F204: 5.1 | G204: 5 | H204: 4.9 | I204: 4.8 | J204: 4.7 | K204: 4.6 | L204: 4.5 | M204: 4.4 | N204: 4.3 | O204: 4.2 | P204: 4.1 | Q204: 4 | R204: 3.9 | S204: 3.8 | T204: 3.7 | U204: 3.6 | V204: 3.5 | W204: 3.4 | X204: 3.3 | Y204: 3.2 | Z204: 3.1 | AA204: 3 | AB204: 2.9 | AC204: 2.8 | AD204: 2.7 | AE204: 2.6 | AF204: 2.5 | AG204: 2.4 | AH204: 2.3 | AI204: 2.2 | AJ204: 2.1 | AK204: 2
A205: C 88 | C205: 4.8 | D205: 4.7 | E205: 4.6 | F205: 4.5 | G205: 4.4 | H205: 4.3 | I205: 4.2 | J205: 4.1 | K205: 4 | L205: 3.9 | M205: 3.8 | N205: 3.7 | O205: 3.6 | P205: 3.5 | Q205: 3.4 | R205: 3.3 | S205: 3.2 | T205: 3.1 | U205: 3 | V205: 2.9 | W205: 2.8 | X205: 2.7 | Y205: 2.6 | Z205: 2.5 | AA205: 2.4 | AB205: 2.3 | AC205: 2.2 | AD205: 2.1 | AE205: 2 | AF205: 1.9 | AG205: 1.8 | AH205: 1.7 | AI205: 1.6 | AJ205: 1.5 | AK205: 1.4
A208: 5.74
A209: A 1 | C209: =((1/$A$208) * ($AN$210 - 50)) +C118 -> 2.289198606 | D209: 2.189198606 | E209: 2.089198606 | F209: 1.989198606 | G209: 1.889198606 | H209: 1.789198606 | I209: 1.689198606 | J209: 1.589198606 | K209: 1.489198606 | L209: 1.389198606 | M209: 1.289198606 | N209: 1.189198606 | O209: 1.089198606 | P209: 0.9891986063 | Q209: 0.8891986063 | R209: 0.7891986063 | S209: 0.6891986063 | T209: 0.5891986063 | U209: 0.4891986063 | V209: 0.3891986063 | W209: 0.2891986063 | X209: 0.1891986063 | Y209: 0.08919860627 | Z209: -0.01080139373 | AA209: -0.1108013937 | AB209: -0.2108013937 | AC209: -0.3108013937 | AD209: -0.4108013937 | AE209: -0.5108013937 | AF209: -0.6108013937 | AG209: -0.7108013937 | AH209: -0.8108013937 | AI209: -0.9108013937 | AJ209: -1.010801394 | AK209: -1.110801394
A210: A# 2 | C210: =((1/$A$208) * (AN211 - 50)) +C119 -> 2.289198606 | D210: =((1/$A$208) * ($AN$210 - 50)) +D119 -> 2.189198606 | E210: 2.089198606 | F210: 1.989198606 | G210: 1.889198606 | H210: 1.789198606 | I210: 1.689198606 | J210: 1.589198606 | K210: 1.489198606 | L210: 1.389198606 | M210: 1.289198606 | N210: 1.189198606 | O210: 1.089198606 | P210: 0.9891986063 | Q210: 0.8891986063 | R210: 0.7891986063 | S210: 0.6891986063 | T210: 0.5891986063 | U210: 0.4891986063 | V210: 0.3891986063 | W210: 0.2891986063 | X210: 0.1891986063 | Y210: 0.08919860627 | Z210: -0.01080139373 | AA210: -0.1108013937 | AB210: -0.2108013937 | AC210: -0.3108013937 | AD210: -0.4108013937 | AE210: -0.5108013937 | AF210: -0.6108013937 | AG210: -0.7108013937 | AH210: -0.8108013937 | AI210: -0.9108013937 | AJ210: -1.010801394 | AK210: -1.110801394
A211: B 3 | C211: 2.289198606 | D211: =((1/$A$208) * ($AN$210 - 50)) +D120 -> 2.189198606 | E211: 2.089198606 | F211: 1.989198606 | G211: 1.889198606 | H211: 1.789198606 | I211: 1.689198606 | J211: 1.589198606 | K211: 1.489198606 | L211: 1.389198606 | M211: 1.289198606 | N211: 1.189198606 | O211: 1.089198606 | P211: 0.9891986063 | Q211: 0.8891986063 | R211: 0.7891986063 | S211: 0.6891986063 | T211: 0.5891986063 | U211: 0.4891986063 | V211: 0.3891986063 | W211: 0.2891986063 | X211: 0.1891986063 | Y211: 0.08919860627 | Z211: -0.01080139373 | AA211: -0.1108013937 | AB211: -0.2108013937 | AC211: -0.3108013937 | AD211: -0.4108013937 | AE211: -0.5108013937 | AF211: -0.6108013937 | AG211: -0.7108013937 | AH211: -0.8108013937 | AI211: -0.9108013937 | AJ211: -1.010801394 | AK211: -1.110801394
A212: C 4 | C212: 2.189198606 | D212: =((1/$A$208) * ($AN$210 - 50)) +D121 -> 2.089198606 | E212: 1.989198606 | F212: 1.889198606 | G212: 1.789198606 | H212: 1.689198606 | I212: 1.589198606 | J212: 1.489198606 | K212: 1.389198606 | L212: 1.289198606 | M212: 1.189198606 | N212: 1.089198606 | O212: 0.9891986063 | P212: 0.8891986063 | Q212: 0.7891986063 | R212: 0.6891986063 | S212: 0.5891986063 | T212: 0.4891986063 | U212: 0.3891986063 | V212: 0.2891986063 | W212: 0.1891986063 | X212: 0.08919860627 | Y212: -0.01080139373 | Z212: -0.1108013937 | AA212: -0.2108013937 | AB212: -0.3108013937 | AC212: -0.4108013937 | AD212: -0.5108013937 | AE212: -0.6108013937 | AF212: -0.7108013937 | AG212: -0.8108013937 | AH212: -0.9108013937 | AI212: -1.010801394 | AJ212: -1.110801394 | AK212: -1.210801394
A213: C# 5 | C213: 2.189198606 | D213: =((1/$A$208) * ($AN$210 - 50)) +D122 -> 2.089198606 | E213: 1.989198606 | F213: 1.889198606 | G213: 1.789198606 | H213: 1.689198606 | I213: 1.589198606 | J213: 1.489198606 | K213: 1.389198606 | L213: 1.289198606 | M213: 1.189198606 | N213: 1.089198606 | O213: 0.9891986063 | P213: 0.8891986063 | Q213: 0.7891986063 | R213: 0.6891986063 | S213: 0.5891986063 | T213: 0.4891986063 | U213: 0.3891986063 | V213: 0.2891986063 | W213: 0.1891986063 | X213: 0.08919860627 | Y213: -0.01080139373 | Z213: -0.1108013937 | AA213: -0.2108013937 | AB213: -0.3108013937 | AC213: -0.4108013937 | AD213: -0.5108013937 | AE213: -0.6108013937 | AF213: -0.7108013937 | AG213: -0.8108013937 | AH213: -0.9108013937 | AI213: -1.010801394 | AJ213: -1.110801394 | AK213: -1.210801394
A214: D 6 | C214: 2.089198606 | D214: =((1/$A$208) * ($AN$210 - 50)) +D123 -> 1.989198606 | E214: 1.889198606 | F214: 1.789198606 | G214: 1.689198606 | H214: 1.589198606 | I214: 1.489198606 | J214: 1.389198606 | K214: 1.289198606 | L214: 1.189198606 | M214: 1.089198606 | N214: 0.9891986063 | O214: 0.8891986063 | P214: 0.7891986063 | Q214: 0.6891986063 | R214: 0.5891986063 | S214: 0.4891986063 | T214: 0.3891986063 | U214: 0.2891986063 | V214: 0.1891986063 | W214: 0.08919860627 | X214: -0.01080139373 | Y214: -0.1108013937 | Z214: -0.2108013937 | AA214: -0.3108013937 | AB214: -0.4108013937 | AC214: -0.5108013937 | AD214: -0.6108013937 | AE214: -0.7108013937 | AF214: -0.8108013937 | AG214: -0.9108013937 | AH214: -1.010801394 | AI214: -1.110801394 | AJ214: -1.210801394 | AK214: -1.310801394
A215: D# 7 | C215: 2.089198606 | D215: =((1/$A$208) * ($AN$210 - 50)) +D124 -> 1.989198606 | E215: 1.889198606 | F215: 1.789198606 | G215: 1.689198606 | H215: 1.589198606 | I215: 1.489198606 | J215: 1.389198606 | K215: 1.289198606 | L215: 1.189198606 | M215: 1.089198606 | N215: 0.9891986063 | O215: 0.8891986063 | P215: 0.7891986063 | Q215: 0.6891986063 | R215: 0.5891986063 | S215: 0.4891986063 | T215: 0.3891986063 | U215: 0.2891986063 | V215: 0.1891986063 | W215: 0.08919860627 | X215: -0.01080139373 | Y215: -0.1108013937 | Z215: -0.2108013937 | AA215: -0.3108013937 | AB215: -0.4108013937 | AC215: -0.5108013937 | AD215: -0.6108013937 | AE215: -0.7108013937 | AF215: -0.8108013937 | AG215: -0.9108013937 | AH215: -1.010801394 | AI215: -1.110801394 | AJ215: -1.210801394 | AK215: -1.310801394
A216: E 8 | C216: 2.089198606 | D216: =((1/$A$208) * ($AN$210 - 50)) +D125 -> 1.989198606 | E216: 1.889198606 | F216: 1.789198606 | G216: 1.689198606 | H216: 1.589198606 | I216: 1.489198606 | J216: 1.389198606 | K216: 1.289198606 | L216: 1.189198606 | M216: 1.089198606 | N216: 0.9891986063 | O216: 0.8891986063 | P216: 0.7891986063 | Q216: 0.6891986063 | R216: 0.5891986063 | S216: 0.4891986063 | T216: 0.3891986063 | U216: 0.2891986063 | V216: 0.1891986063 | W216: 0.08919860627 | X216: -0.01080139373 | Y216: -0.1108013937 | Z216: -0.2108013937 | AA216: -0.3108013937 | AB216: -0.4108013937 | AC216: -0.5108013937 | AD216: -0.6108013937 | AE216: -0.7108013937 | AF216: -0.8108013937 | AG216: -0.9108013937 | AH216: -1.010801394 | AI216: -1.110801394 | AJ216: -1.210801394 | AK216: -1.310801394
A217: F 9 | C217: 1.989198606 | D217: =((1/$A$208) * ($AN$210 - 50)) +D126 -> 1.889198606 | E217: 1.789198606 | F217: 1.689198606 | G217: 1.589198606 | H217: 1.489198606 | I217: 1.389198606 | J217: 1.289198606 | K217: 1.189198606 | L217: 1.089198606 | M217: 0.9891986063 | N217: 0.8891986063 | O217: 0.7891986063 | P217: 0.6891986063 | Q217: 0.5891986063 | R217: 0.4891986063 | S217: 0.3891986063 | T217: 0.2891986063 | U217: 0.1891986063 | V217: 0.08919860627 | W217: -0.01080139373 | X217: -0.1108013937 | Y217: -0.2108013937 | Z217: -0.3108013937 | AA217: -0.4108013937 | AB217: -0.5108013937 | AC217: -0.6108013937 | AD217: -0.7108013937 | AE217: -0.8108013937 | AF217: -0.9108013937 | AG217: -1.010801394 | AH217: -1.110801394 | AI217: -1.210801394 | AJ217: -1.310801394 | AK217: -1.410801394
A218: F# 10 | C218: 1.989198606 | D218: =((1/$A$208) * ($AN$210 - 50)) +D127 -> 1.889198606 | E218: 1.789198606 | F218: 1.689198606 | G218: 1.589198606 | H218: 1.489198606 | I218: 1.389198606 | J218: 1.289198606 | K218: 1.189198606 | L218: 1.089198606 | M218: 0.9891986063 | N218: 0.8891986063 | O218: 0.7891986063 | P218: 0.6891986063 | Q218: 0.5891986063 | R218: 0.4891986063 | S218: 0.3891986063 | T218: 0.2891986063 | U218: 0.1891986063 | V218: 0.08919860627 | W218: -0.01080139373 | X218: -0.1108013937 | Y218: -0.2108013937 | Z218: -0.3108013937 | AA218: -0.4108013937 | AB218: -0.5108013937 | AC218: -0.6108013937 | AD218: -0.7108013937 | AE218: -0.8108013937 | AF218: -0.9108013937 | AG218: -1.010801394 | AH218: -1.110801394 | AI218: -1.210801394 | AJ218: -1.310801394 | AK218: -1.410801394
A219: G 11 | C219: 1.889198606 | D219: =((1/$A$208) * ($AN$210 - 50)) +D128 -> 1.789198606 | E219: 1.689198606 | F219: 1.589198606 | G219: 1.489198606 | H219: 1.389198606 | I219: 1.289198606 | J219: 1.189198606 | K219: 1.089198606 | L219: 0.9891986063 | M219: 0.8891986063 | N219: 0.7891986063 | O219: 0.6891986063 | P219: 0.5891986063 | Q219: 0.4891986063 | R219: 0.3891986063 | S219: 0.2891986063 | T219: 0.1891986063 | U219: 0.08919860627 | V219: -0.01080139373 | W219: -0.1108013937 | X219: -0.2108013937 | Y219: -0.3108013937 | Z219: -0.4108013937 | AA219: -0.5108013937 | AB219: -0.6108013937 | AC219: -0.7108013937 | AD219: -0.8108013937 | AE219: -0.9108013937 | AF219: -1.010801394 | AG219: -1.110801394 | AH219: -1.210801394 | AI219: -1.310801394 | AJ219: -1.410801394 | AK219: -1.510801394
A220: G# 12 | C220: 1.889198606 | D220: =((1/$A$208) * ($AN$210 - 50)) +D129 -> 1.789198606 | E220: 1.689198606 | F220: 1.589198606 | G220: 1.489198606 | H220: 1.389198606 | I220: 1.289198606 | J220: 1.189198606 | K220: 1.089198606 | L220: 0.9891986063 | M220: 0.8891986063 | N220: 0.7891986063 | O220: 0.6891986063 | P220: 0.5891986063 | Q220: 0.4891986063 | R220: 0.3891986063 | S220: 0.2891986063 | T220: 0.1891986063 | U220: 0.08919860627 | V220: -0.01080139373 | W220: -0.1108013937 | X220: -0.2108013937 | Y220: -0.3108013937 | Z220: -0.4108013937 | AA220: -0.5108013937 | AB220: -0.6108013937 | AC220: -0.7108013937 | AD220: -0.8108013937 | AE220: -0.9108013937 | AF220: -1.010801394 | AG220: -1.110801394 | AH220: -1.210801394 | AI220: -1.310801394 | AJ220: -1.410801394 | AK220: -1.510801394
A221: A 13 | C221: 1.889198606 | D221: =((1/$A$208) * ($AN$210 - 50)) +D130 -> 1.789198606 | E221: 1.689198606 | F221: 1.589198606 | G221: 1.489198606 | H221: 1.389198606 | I221: 1.289198606 | J221: 1.189198606 | K221: 1.089198606 | L221: 0.9891986063 | M221: 0.8891986063 | N221: 0.7891986063 | O221: 0.6891986063 | P221: 0.5891986063 | Q221: 0.4891986063 | R221: 0.3891986063 | S221: 0.2891986063 | T221: 0.1891986063 | U221: 0.08919860627 | V221: -0.01080139373 | W221: -0.1108013937 | X221: -0.2108013937 | Y221: -0.3108013937 | Z221: -0.4108013937 | AA221: -0.5108013937 | AB221: -0.6108013937 | AC221: -0.7108013937 | AD221: -0.8108013937 | AE221: -0.9108013937 | AF221: -1.010801394 | AG221: -1.110801394 | AH221: -1.210801394 | AI221: -1.310801394 | AJ221: -1.410801394 | AK221: -1.510801394
A222: A# 14 | C222: 1.789198606 | D222: =((1/$A$208) * ($AN$210 - 50)) +D131 -> 1.689198606 | E222: 1.589198606 | F222: 1.489198606 | G222: 1.389198606 | H222: 1.289198606 | I222: 1.189198606 | J222: 1.089198606 | K222: 0.9891986063 | L222: 0.8891986063 | M222: 0.7891986063 | N222: 0.6891986063 | O222: 0.5891986063 | P222: 0.4891986063 | Q222: 0.3891986063 | R222: 0.2891986063 | S222: 0.1891986063 | T222: 0.08919860627 | U222: -0.01080139373 | V222: -0.1108013937 | W222: -0.2108013937 | X222: -0.3108013937 | Y222: -0.4108013937 | Z222: -0.5108013937 | AA222: -0.6108013937 | AB222: -0.7108013937 | AC222: -0.8108013937 | AD222: -0.9108013937 | AE222: -1.010801394 | AF222: -1.110801394 | AG222: -1.210801394 | AH222: -1.310801394 | AI222: -1.410801394 | AJ222: -1.510801394 | AK222: -1.610801394
A223: B 15 | C223: 1.789198606 | D223: =((1/$A$208) * ($AN$210 - 50)) +D132 -> 1.689198606 | E223: 1.589198606 | F223: 1.489198606 | G223: 1.389198606 | H223: 1.289198606 | I223: 1.189198606 | J223: 1.089198606 | K223: 0.9891986063 | L223: 0.8891986063 | M223: 0.7891986063 | N223: 0.6891986063 | O223: 0.5891986063 | P223: 0.4891986063 | Q223: 0.3891986063 | R223: 0.2891986063 | S223: 0.1891986063 | T223: 0.08919860627 | U223: -0.01080139373 | V223: -0.1108013937 | W223: -0.2108013937 | X223: -0.3108013937 | Y223: -0.4108013937 | Z223: -0.5108013937 | AA223: -0.6108013937 | AB223: -0.7108013937 | AC223: -0.8108013937 | AD223: -0.9108013937 | AE223: -1.010801394 | AF223: -1.110801394 | AG223: -1.210801394 | AH223: -1.310801394 | AI223: -1.410801394 | AJ223: -1.510801394 | AK223: -1.610801394
A224: C 16 | C224: 1.689198606 | D224: =((1/$A$208) * ($AN$210 - 50)) +D133 -> 1.589198606 | E224: 1.489198606 | F224: 1.389198606 | G224: 1.289198606 | H224: 1.189198606 | I224: 1.089198606 | J224: 0.9891986063 | K224: 0.8891986063 | L224: 0.7891986063 | M224: 0.6891986063 | N224: 0.5891986063 | O224: 0.4891986063 | P224: 0.3891986063 | Q224: 0.2891986063 | R224: 0.1891986063 | S224: 0.08919860627 | T224: -0.01080139373 | U224: -0.1108013937 | V224: -0.2108013937 | W224: -0.3108013937 | X224: -0.4108013937 | Y224: -0.5108013937 | Z224: -0.6108013937 | AA224: -0.7108013937 | AB224: -0.8108013937 | AC224: -0.9108013937 | AD224: -1.010801394 | AE224: -1.110801394 | AF224: -1.210801394 | AG224: -1.310801394 | AH224: -1.410801394 | AI224: -1.510801394 | AJ224: -1.610801394 | AK224: -1.710801394
A225: C# 17 | C225: 1.689198606 | D225: =((1/$A$208) * ($AN$210 - 50)) +D134 -> 1.589198606 | E225: 1.489198606 | F225: 1.389198606 | G225: 1.289198606 | H225: 1.189198606 | I225: 1.089198606 | J225: 0.9891986063 | K225: 0.8891986063 | L225: 0.7891986063 | M225: 0.6891986063 | N225: 0.5891986063 | O225: 0.4891986063 | P225: 0.3891986063 | Q225: 0.2891986063 | R225: 0.1891986063 | S225: 0.08919860627 | T225: -0.01080139373 | U225: -0.1108013937 | V225: -0.2108013937 | W225: -0.3108013937 | X225: -0.4108013937 | Y225: -0.5108013937 | Z225: -0.6108013937 | AA225: -0.7108013937 | AB225: -0.8108013937 | AC225: -0.9108013937 | AD225: -1.010801394 | AE225: -1.110801394 | AF225: -1.210801394 | AG225: -1.310801394 | AH225: -1.410801394 | AI225: -1.510801394 | AJ225: -1.610801394 | AK225: -1.710801394
A226: D 18 | C226: 1.689198606 | D226: =((1/$A$208) * ($AN$210 - 50)) +D135 -> 1.589198606 | E226: 1.489198606 | F226: 1.389198606 | G226: 1.289198606 | H226: 1.189198606 | I226: 1.089198606 | J226: 0.9891986063 | K226: 0.8891986063 | L226: 0.7891986063 | M226: 0.6891986063 | N226: 0.5891986063 | O226: 0.4891986063 | P226: 0.3891986063 | Q226: 0.2891986063 | R226: 0.1891986063 | S226: 0.08919860627 | T226: -0.01080139373 | U226: -0.1108013937 | V226: -0.2108013937 | W226: -0.3108013937 | X226: -0.4108013937 | Y226: -0.5108013937 | Z226: -0.6108013937 | AA226: -0.7108013937 | AB226: -0.8108013937 | AC226: -0.9108013937 | AD226: -1.010801394 | AE226: -1.110801394 | AF226: -1.210801394 | AG226: -1.310801394 | AH226: -1.410801394 | AI226: -1.510801394 | AJ226: -1.610801394 | AK226: -1.710801394
A227: D# 19 | C227: 1.589198606 | D227: =((1/$A$208) * ($AN$210 - 50)) +D136 -> 1.489198606 | E227: 1.389198606 | F227: 1.289198606 | G227: 1.189198606 | H227: 1.089198606 | I227: 0.9891986063 | J227: 0.8891986063 | K227: 0.7891986063 | L227: 0.6891986063 | M227: 0.5891986063 | N227: 0.4891986063 | O227: 0.3891986063 | P227: 0.2891986063 | Q227: 0.1891986063 | R227: 0.08919860627 | S227: -0.01080139373 | T227: -0.1108013937 | U227: -0.2108013937 | V227: -0.3108013937 | W227: -0.4108013937 | X227: -0.5108013937 | Y227: -0.6108013937 | Z227: -0.7108013937 | AA227: -0.8108013937 | AB227: -0.9108013937 | AC227: -1.010801394 | AD227: -1.110801394 | AE227: -1.210801394 | AF227: -1.310801394 | AG227: -1.410801394 | AH227: -1.510801394 | AI227: -1.610801394 | AJ227: -1.710801394 | AK227: -1.810801394
A228: E 20 | C228: 1.589198606 | D228: =((1/$A$208) * ($AN$210 - 50)) +D137 -> 1.489198606 | E228: 1.389198606 | F228: 1.289198606 | G228: 1.189198606 | H228: 1.089198606 | I228: 0.9891986063 | J228: 0.8891986063 | K228: 0.7891986063 | L228: 0.6891986063 | M228: 0.5891986063 | N228: 0.4891986063 | O228: 0.3891986063 | P228: 0.2891986063 | Q228: 0.1891986063 | R228: 0.08919860627 | S228: -0.01080139373 | T228: -0.1108013937 | U228: -0.2108013937 | V228: -0.3108013937 | W228: -0.4108013937 | X228: -0.5108013937 | Y228: -0.6108013937 | Z228: -0.7108013937 | AA228: -0.8108013937 | AB228: -0.9108013937 | AC228: -1.010801394 | AD228: -1.110801394 | AE228: -1.210801394 | AF228: -1.310801394 | AG228: -1.410801394 | AH228: -1.510801394 | AI228: -1.610801394 | AJ228: -1.710801394 | AK228: -1.810801394
A229: F 21 | C229: 1.489198606 | D229: =((1/$A$208) * ($AN$210 - 50)) +D138 -> 1.389198606 | E229: 1.289198606 | F229: 1.189198606 | G229: 1.089198606 | H229: 0.9891986063 | I229: 0.8891986063 | J229: 0.7891986063 | K229: 0.6891986063 | L229: 0.5891986063 | M229: 0.4891986063 | N229: 0.3891986063 | O229: 0.2891986063 | P229: 0.1891986063 | Q229: 0.08919860627 | R229: -0.01080139373 | S229: -0.1108013937 | T229: -0.2108013937 | U229: -0.3108013937 | V229: -0.4108013937 | W229: -0.5108013937 | X229: -0.6108013937 | Y229: -0.7108013937 | Z229: -0.8108013937 | AA229: -0.9108013937 | AB229: -1.010801394 | AC229: -1.110801394 | AD229: -1.210801394 | AE229: -1.310801394 | AF229: -1.410801394 | AG229: -1.510801394 | AH229: -1.610801394 | AI229: -1.710801394 | AJ229: -1.810801394 | AK229: -1.910801394
A230: F# 22 | C230: 1.489198606 | D230: =((1/$A$208) * ($AN$210 - 50)) +D139 -> 1.389198606 | E230: 1.289198606 | F230: 1.189198606 | G230: 1.089198606 | H230: 0.9891986063 | I230: 0.8891986063 | J230: 0.7891986063 | K230: 0.6891986063 | L230: 0.5891986063 | M230: 0.4891986063 | N230: 0.3891986063 | O230: 0.2891986063 | P230: 0.1891986063 | Q230: 0.08919860627 | R230: -0.01080139373 | S230: -0.1108013937 | T230: -0.2108013937 | U230: -0.3108013937 | V230: -0.4108013937 | W230: -0.5108013937 | X230: -0.6108013937 | Y230: -0.7108013937 | Z230: -0.8108013937 | AA230: -0.9108013937 | AB230: -1.010801394 | AC230: -1.110801394 | AD230: -1.210801394 | AE230: -1.310801394 | AF230: -1.410801394 | AG230: -1.510801394 | AH230: -1.610801394 | AI230: -1.710801394 | AJ230: -1.810801394 | AK230: -1.910801394
A231: G 23 | C231: 1.389198606 | D231: =((1/$A$208) * ($AN$210 - 50)) +D140 -> 1.289198606 | E231: 1.189198606 | F231: 1.089198606 | G231: 0.9891986063 | H231: 0.8891986063 | I231: 0.7891986063 | J231: 0.6891986063 | K231: 0.5891986063 | L231: 0.4891986063 | M231: 0.3891986063 | N231: 0.2891986063 | O231: 0.1891986063 | P231: 0.08919860627 | Q231: -0.01080139373 | R231: -0.1108013937 | S231: -0.2108013937 | T231: -0.3108013937 | U231: -0.4108013937 | V231: -0.5108013937 | W231: -0.6108013937 | X231: -0.7108013937 | Y231: -0.8108013937 | Z231: -0.9108013937 | AA231: -1.010801394 | AB231: -1.110801394 | AC231: -1.210801394 | AD231: -1.310801394 | AE231: -1.410801394 | AF231: -1.510801394 | AG231: -1.610801394 | AH231: -1.710801394 | AI231: -1.810801394 | AJ231: -1.910801394 | AK231: -2.010801394
A232: G# 24 | C232: 1.389198606 | D232: =((1/$A$208) * ($AN$210 - 50)) +D141 -> 1.289198606 | E232: 1.189198606 | F232: 1.089198606 | G232: 0.9891986063 | H232: 0.8891986063 | I232: 0.7891986063 | J232: 0.6891986063 | K232: 0.5891986063 | L232: 0.4891986063 | M232: 0.3891986063 | N232: 0.2891986063 | O232: 0.1891986063 | P232: 0.08919860627 | Q232: -0.01080139373 | R232: -0.1108013937 | S232: -0.2108013937 | T232: -0.3108013937 | U232: -0.4108013937 | V232: -0.5108013937 | W232: -0.6108013937 | X232: -0.7108013937 | Y232: -0.8108013937 | Z232: -0.9108013937 | AA232: -1.010801394 | AB232: -1.110801394 | AC232: -1.210801394 | AD232: -1.310801394 | AE232: -1.410801394 | AF232: -1.510801394 | AG232: -1.610801394 | AH232: -1.710801394 | AI232: -1.810801394 | AJ232: -1.910801394 | AK232: -2.010801394
A233: A 25 | C233: 1.289198606 | D233: =((1/$A$208) * ($AN$210 - 50)) +D142 -> 1.189198606 | E233: 1.089198606 | F233: 0.9891986063 | G233: 0.8891986063 | H233: 0.7891986063 | I233: 0.6891986063 | J233: 0.5891986063 | K233: 0.4891986063 | L233: 0.3891986063 | M233: 0.2891986063 | N233: 0.1891986063 | O233: 0.08919860627 | P233: -0.01080139373 | Q233: -0.1108013937 | R233: -0.2108013937 | S233: -0.3108013937 | T233: -0.4108013937 | U233: -0.5108013937 | V233: -0.6108013937 | W233: -0.7108013937 | X233: -0.8108013937 | Y233: -0.9108013937 | Z233: -1.010801394 | AA233: -1.110801394 | AB233: -1.210801394 | AC233: -1.310801394 | AD233: -1.410801394 | AE233: -1.510801394 | AF233: -1.610801394 | AG233: -1.710801394 | AH233: -1.810801394 | AI233: -1.910801394 | AJ233: -2.010801394 | AK233: -2.110801394
A234: A# 26 | C234: 1.289198606 | D234: =((1/$A$208) * ($AN$210 - 50)) +D143 -> 1.189198606 | E234: 1.089198606 | F234: 0.9891986063 | G234: 0.8891986063 | H234: 0.7891986063 | I234: 0.6891986063 | J234: 0.5891986063 | K234: 0.4891986063 | L234: 0.3891986063 | M234: 0.2891986063 | N234: 0.1891986063 | O234: 0.08919860627 | P234: -0.01080139373 | Q234: -0.1108013937 | R234: -0.2108013937 | S234: -0.3108013937 | T234: -0.4108013937 | U234: -0.5108013937 | V234: -0.6108013937 | W234: -0.7108013937 | X234: -0.8108013937 | Y234: -0.9108013937 | Z234: -1.010801394 | AA234: -1.110801394 | AB234: -1.210801394 | AC234: -1.310801394 | AD234: -1.410801394 | AE234: -1.510801394 | AF234: -1.610801394 | AG234: -1.710801394 | AH234: -1.810801394 | AI234: -1.910801394 | AJ234: -2.010801394 | AK234: -2.110801394
A235: B 27 | C235: 1.289198606 | D235: =((1/$A$208) * ($AN$210 - 50)) +D144 -> 1.189198606 | E235: 1.089198606 | F235: 0.9891986063 | G235: 0.8891986063 | H235: 0.7891986063 | I235: 0.6891986063 | J235: 0.5891986063 | K235: 0.4891986063 | L235: 0.3891986063 | M235: 0.2891986063 | N235: 0.1891986063 | O235: 0.08919860627 | P235: -0.01080139373 | Q235: -0.1108013937 | R235: -0.2108013937 | S235: -0.3108013937 | T235: -0.4108013937 | U235: -0.5108013937 | V235: -0.6108013937 | W235: -0.7108013937 | X235: -0.8108013937 | Y235: -0.9108013937 | Z235: -1.010801394 | AA235: -1.110801394 | AB235: -1.210801394 | AC235: -1.310801394 | AD235: -1.410801394 | AE235: -1.510801394 | AF235: -1.610801394 | AG235: -1.710801394 | AH235: -1.810801394 | AI235: -1.910801394 | AJ235: -2.010801394 | AK235: -2.110801394
A236: C 28 | C236: 1.189198606 | D236: =((1/$A$208) * ($AN$210 - 50)) +D145 -> 1.089198606 | E236: 0.9891986063 | F236: 0.8891986063 | G236: 0.7891986063 | H236: 0.6891986063 | I236: 0.5891986063 | J236: 0.4891986063 | K236: 0.3891986063 | L236: 0.2891986063 | M236: 0.1891986063 | N236: 0.08919860627 | O236: -0.01080139373 | P236: -0.1108013937 | Q236: -0.2108013937 | R236: -0.3108013937 | S236: -0.4108013937 | T236: -0.5108013937 | U236: -0.6108013937 | V236: -0.7108013937 | W236: -0.8108013937 | X236: -0.9108013937 | Y236: -1.010801394 | Z236: -1.110801394 | AA236: -1.210801394 | AB236: -1.310801394 | AC236: -1.410801394 | AD236: -1.510801394 | AE236: -1.610801394 | AF236: -1.710801394 | AG236: -1.810801394 | AH236: -1.910801394 | AI236: -2.010801394 | AJ236: -2.110801394 | AK236: -2.210801394
A237: C# 29 | C237: 1.189198606 | D237: =((1/$A$208) * ($AN$210 - 50)) +D146 -> 1.089198606 | E237: 0.9891986063 | F237: 0.8891986063 | G237: 0.7891986063 | H237: 0.6891986063 | I237: 0.5891986063 | J237: 0.4891986063 | K237: 0.3891986063 | L237: 0.2891986063 | M237: 0.1891986063 | N237: 0.08919860627 | O237: -0.01080139373 | P237: -0.1108013937 | Q237: -0.2108013937 | R237: -0.3108013937 | S237: -0.4108013937 | T237: -0.5108013937 | U237: -0.6108013937 | V237: -0.7108013937 | W237: -0.8108013937 | X237: -0.9108013937 | Y237: -1.010801394 | Z237: -1.110801394 | AA237: -1.210801394 | AB237: -1.310801394 | AC237: -1.410801394 | AD237: -1.510801394 | AE237: -1.610801394 | AF237: -1.710801394 | AG237: -1.810801394 | AH237: -1.910801394 | AI237: -2.010801394 | AJ237: -2.110801394 | AK237: -2.210801394
A238: D 30 | C238: 1.089198606 | D238: =((1/$A$208) * ($AN$210 - 50)) +D147 -> 0.9891986063 | E238: 0.8891986063 | F238: 0.7891986063 | G238: -8.710801394 | H238: -8.710801394 | I238: 0.4891986063 | J238: 0.3891986063 | K238: 0.2891986063 | L238: 0.1891986063 | M238: 0.08919860627 | N238: -0.01080139373 | O238: -0.1108013937 | P238: -0.2108013937 | Q238: -0.3108013937 | R238: -0.4108013937 | S238: -0.5108013937 | T238: -0.6108013937 | U238: -0.7108013937 | V238: -0.8108013937 | W238: -0.9108013937 | X238: -1.010801394 | Y238: -1.110801394 | Z238: -1.210801394 | AA238: -1.310801394 | AB238: -1.410801394 | AC238: -1.510801394 | AD238: -1.610801394 | AE238: -1.710801394 | AF238: -1.810801394 | AG238: -1.910801394 | AH238: -2.010801394 | AI238: -2.110801394 | AJ238: -2.210801394 | AK238: -2.310801394
A239: D# 31 | C239: 1.089198606 | D239: =((1/$A$208) * ($AN$210 - 50)) +D148 -> 0.9891986063 | E239: 0.8891986063 | F239: 0.7891986063 | G239: 84.28919861 | H239: 0.5891986063 | I239: 0.4891986063 | J239: 0.3891986063 | K239: 0.2891986063 | L239: 0.1891986063 | M239: 0.08919860627 | N239: -0.01080139373 | O239: -0.1108013937 | P239: -0.2108013937 | Q239: -0.3108013937 | R239: -0.4108013937 | S239: -0.5108013937 | T239: -0.6108013937 | U239: -0.7108013937 | V239: -0.8108013937 | W239: -0.9108013937 | X239: -1.010801394 | Y239: -1.110801394 | Z239: -1.210801394 | AA239: -1.310801394 | AB239: -1.410801394 | AC239: -1.510801394 | AD239: -1.610801394 | AE239: -1.710801394 | AF239: -1.810801394 | AG239: -1.910801394 | AH239: -2.010801394 | AI239: -2.110801394 | AJ239: -2.210801394 | AK239: -2.310801394
A240: E 32 | C240: 0.9891986063 | D240: =((1/$A$208) * ($AN$210 - 50)) +D149 -> 0.8891986063 | E240: 0.7891986063 | F240: 0.6891986063 | G240: 0.5891986063 | H240: 0.4891986063 | I240: 0.3891986063 | J240: 0.2891986063 | K240: 0.1891986063 | L240: 0.08919860627 | M240: -0.01080139373 | N240: -0.1108013937 | O240: -0.2108013937 | P240: -0.3108013937 | Q240: -0.4108013937 | R240: -0.5108013937 | S240: -0.6108013937 | T240: -0.7108013937 | U240: -0.8108013937 | V240: -0.9108013937 | W240: -1.010801394 | X240: -1.110801394 | Y240: -1.210801394 | Z240: -1.310801394 | AA240: -1.410801394 | AB240: -1.510801394 | AC240: -1.610801394 | AD240: -1.710801394 | AE240: -1.810801394 | AF240: -1.910801394 | AG240: -2.010801394 | AH240: -2.110801394 | AI240: -2.210801394 | AJ240: -2.310801394 | AK240: -2.410801394
A241: F 33 | C241: 0.9891986063 | D241: =((1/$A$208) * ($AN$210 - 50)) +D150 -> 0.8891986063 | E241: 0.7891986063 | F241: 0.6891986063 | G241: 0.5891986063 | H241: 0.4891986063 | I241: 0.3891986063 | J241: 0.2891986063 | K241: 0.1891986063 | L241: 0.08919860627 | M241: -0.01080139373 | N241: -0.1108013937 | O241: -0.2108013937 | P241: -0.3108013937 | Q241: -0.4108013937 | R241: -0.5108013937 | S241: -0.6108013937 | T241: -0.7108013937 | U241: -0.8108013937 | V241: -0.9108013937 | W241: -1.010801394 | X241: -1.110801394 | Y241: -1.210801394 | Z241: -1.310801394 | AA241: -1.410801394 | AB241: -1.510801394 | AC241: -1.610801394 | AD241: -1.710801394 | AE241: -1.810801394 | AF241: -1.910801394 | AG241: -2.010801394 | AH241: -2.110801394 | AI241: -2.210801394 | AJ241: -2.310801394 | AK241: -2.410801394
A242: F# 34 | C242: =((1/$A$208) * (AN243 - 50)) +C151 -> 0.8891986063 | D242: =((1/$A$208) * ($AN$210 - 50)) +D151 -> 0.7891986063 | E242: 0.6891986063 | F242: 0.5891986063 | G242: 0.4891986063 | H242: 0.3891986063 | I242: 0.2891986063 | J242: 0.1891986063 | K242: 0.08919860627 | L242: -0.01080139373 | M242: -0.1108013937 | N242: -0.2108013937 | O242: -0.3108013937 | P242: -0.4108013937 | Q242: -0.5108013937 | R242: -0.6108013937 | S242: -0.7108013937 | T242: -0.8108013937 | U242: -0.9108013937 | V242: -1.010801394 | W242: -1.110801394 | X242: -1.210801394 | Y242: -1.310801394 | Z242: -1.410801394 | AA242: -1.510801394 | AB242: -1.610801394 | AC242: -1.710801394 | AD242: -1.810801394 | AE242: -1.910801394 | AF242: -2.010801394 | AG242: -2.110801394 | AH242: -2.210801394 | AI242: -2.310801394 | AJ242: -2.410801394 | AK242: -2.510801394
A243: G 35 | C243: 0.8891986063 | D243: =((1/$A$208) * ($AN$210 - 50)) +D152 -> 0.7891986063 | E243: 0.6891986063 | F243: 0.5891986063 | G243: 0.4891986063 | H243: 0.3891986063 | I243: 0.2891986063 | J243: 0.1891986063 | K243: 0.08919860627 | L243: -0.01080139373 | M243: -0.1108013937 | N243: -0.2108013937 | O243: -0.3108013937 | P243: -0.4108013937 | Q243: -0.5108013937 | R243: -0.6108013937 | S243: -0.7108013937 | T243: -0.8108013937 | U243: -0.9108013937 | V243: -1.010801394 | W243: -1.110801394 | X243: -1.210801394 | Y243: -1.310801394 | Z243: -1.410801394 | AA243: -1.510801394 | AB243: -1.610801394 | AC243: -1.710801394 | AD243: -1.810801394 | AE243: -1.910801394 | AF243: -2.010801394 | AG243: -2.110801394 | AH243: -2.210801394 | AI243: -2.310801394 | AJ243: -2.410801394 | AK243: -2.510801394
A244: G# 36 | C244: 0.7891986063 | D244: =((1/$A$208) * ($AN$210 - 50)) +D153 -> 0.6891986063 | E244: 0.5891986063 | F244: 0.4891986063 | G244: 0.3891986063 | H244: 0.2891986063 | I244: 0.1891986063 | J244: 0.08919860627 | K244: -0.01080139373 | L244: -0.1108013937 | M244: -0.2108013937 | N244: -0.3108013937 | O244: -0.4108013937 | P244: -0.5108013937 | Q244: -0.6108013937 | R244: -0.7108013937 | S244: -0.8108013937 | T244: -0.9108013937 | U244: -1.010801394 | V244: -1.110801394 | W244: -1.210801394 | X244: -1.310801394 | Y244: -1.410801394 | Z244: -1.510801394 | AA244: -1.610801394 | AB244: -1.710801394 | AC244: -1.810801394 | AD244: -1.910801394 | AE244: -2.010801394 | AF244: -2.110801394 | AG244: -2.210801394 | AH244: -2.310801394 | AI244: -2.410801394 | AJ244: -2.510801394 | AK244: -2.610801394
A245: A 37 | C245: 0.7891986063 | D245: =((1/$A$208) * ($AN$210 - 50)) +D154 -> 0.6891986063 | E245: 0.5891986063 | F245: 0.4891986063 | G245: 0.3891986063 | H245: 0.2891986063 | I245: 0.1891986063 | J245: 0.08919860627 | K245: -0.01080139373 | L245: -0.1108013937 | M245: -0.2108013937 | N245: -0.3108013937 | O245: -0.4108013937 | P245: -0.5108013937 | Q245: -0.6108013937 | R245: -0.7108013937 | S245: -0.8108013937 | T245: -0.9108013937 | U245: -1.010801394 | V245: -1.110801394 | W245: -1.210801394 | X245: -1.310801394 | Y245: -1.410801394 | Z245: -1.510801394 | AA245: -1.610801394 | AB245: -1.710801394 | AC245: -1.810801394 | AD245: -1.910801394 | AE245: -2.010801394 | AF245: -2.110801394 | AG245: -2.210801394 | AH245: -2.310801394 | AI245: -2.410801394 | AJ245: -2.510801394 | AK245: -2.610801394
A246: A# 38 | C246: 0.6891986063 | D246: =((1/$A$208) * ($AN$210 - 50)) +D155 -> 0.5891986063 | E246: 0.4891986063 | F246: 0.3891986063 | G246: 0.2891986063 | H246: 0.1891986063 | I246: 0.08919860627 | J246: -0.01080139373 | K246: -0.1108013937 | L246: -0.2108013937 | M246: -0.3108013937 | N246: -0.4108013937 | O246: -0.5108013937 | P246: -0.6108013937 | Q246: -0.7108013937 | R246: -0.8108013937 | S246: -0.9108013937 | T246: -1.010801394 | U246: -1.110801394 | V246: -1.210801394 | W246: -1.310801394 | X246: -1.410801394 | Y246: -1.510801394 | Z246: -1.610801394 | AA246: -1.710801394 | AB246: -1.810801394 | AC246: -1.910801394 | AD246: -2.010801394 | AE246: -2.110801394 | AF246: -2.210801394 | AG246: -2.310801394 | AH246: -2.410801394 | AI246: -2.510801394 | AJ246: -2.610801394 | AK246: -2.710801394
A247: B 39 | C247: 0.6891986063 | D247: =((1/$A$208) * ($AN$210 - 50)) +D156 -> 0.5891986063 | E247: 0.4891986063 | F247: 0.3891986063 | G247: 0.2891986063 | H247: 0.1891986063 | I247: 0.08919860627 | J247: -0.01080139373 | K247: -0.1108013937 | L247: -0.2108013937 | M247: -0.3108013937 | N247: -0.4108013937 | O247: -0.5108013937 | P247: -0.6108013937 | Q247: -0.7108013937 | R247: -0.8108013937 | S247: -0.9108013937 | T247: -1.010801394 | U247: -1.110801394 | V247: -1.210801394 | W247: -1.310801394 | X247: -1.410801394 | Y247: -1.510801394 | Z247: -1.610801394 | AA247: -1.710801394 | AB247: -1.810801394 | AC247: -1.910801394 | AD247: -2.010801394 | AE247: -2.110801394 | AF247: -2.210801394 | AG247: -2.310801394 | AH247: -2.410801394 | AI247: -2.510801394 | AJ247: -2.610801394 | AK247: -2.710801394
A248: C 40 | C248: 0.5891986063 | D248: =((1/$A$208) * ($AN$210 - 50)) +D157 -> 0.4891986063 | E248: 0.3891986063 | F248: 0.2891986063 | G248: 0.1891986063 | H248: 0.08919860627 | I248: -0.01080139373 | J248: -0.1108013937 | K248: -0.2108013937 | L248: -0.3108013937 | M248: -0.4108013937 | N248: -0.5108013937 | O248: -0.6108013937 | P248: -0.7108013937 | Q248: -0.8108013937 | R248: -0.9108013937 | S248: -1.010801394 | T248: -1.110801394 | U248: -1.210801394 | V248: -1.310801394 | W248: -1.410801394 | X248: -1.510801394 | Y248: -1.610801394 | Z248: -1.710801394 | AA248: -1.810801394 | AB248: -1.910801394 | AC248: -2.010801394 | AD248: -2.110801394 | AE248: -2.210801394 | AF248: -2.310801394 | AG248: -2.410801394 | AH248: -2.510801394 | AI248: -2.610801394 | AJ248: -2.710801394 | AK248: -2.810801394
A249: C# 41 | C249: 0.5891986063 | D249: =((1/$A$208) * ($AN$210 - 50)) +D158 -> 0.4891986063 | E249: 0.3891986063 | F249: 0.2891986063 | G249: 0.1891986063 | H249: 0.08919860627 | I249: -0.01080139373 | J249: -0.1108013937 | K249: -0.2108013937 | L249: -0.3108013937 | M249: -0.4108013937 | N249: -0.5108013937 | O249: -0.6108013937 | P249: -0.7108013937 | Q249: -0.8108013937 | R249: -0.9108013937 | S249: -1.010801394 | T249: -1.110801394 | U249: -1.210801394 | V249: -1.310801394 | W249: -1.410801394 | X249: -1.510801394 | Y249: -1.610801394 | Z249: -1.710801394 | AA249: -1.810801394 | AB249: -1.910801394 | AC249: -2.010801394 | AD249: -2.110801394 | AE249: -2.210801394 | AF249: -2.310801394 | AG249: -2.410801394 | AH249: -2.510801394 | AI249: -2.610801394 | AJ249: -2.710801394 | AK249: -2.810801394
A250: D 42 | C250: 0.4891986063 | D250: =((1/$A$208) * ($AN$210 - 50)) +D159 -> 0.3891986063 | E250: 0.2891986063 | F250: 0.1891986063 | G250: 0.08919860627 | H250: -0.01080139373 | I250: -0.1108013937 | J250: -0.2108013937 | K250: -0.3108013937 | L250: -0.4108013937 | M250: -0.5108013937 | N250: -0.6108013937 | O250: -0.7108013937 | P250: -0.8108013937 | Q250: -0.9108013937 | R250: -1.010801394 | S250: -1.110801394 | T250: -1.210801394 | U250: -1.310801394 | V250: -1.410801394 | W250: -1.510801394 | X250: -1.610801394 | Y250: -1.710801394 | Z250: -1.810801394 | AA250: -1.910801394 | AB250: -2.010801394 | AC250: -2.110801394 | AD250: -2.210801394 | AE250: -2.310801394 | AF250: -2.410801394 | AG250: -2.510801394 | AH250: -2.610801394 | AI250: -2.710801394 | AJ250: -2.810801394 | AK250: -2.910801394
A251: D# 43 | C251: 0.3891986063 | D251: =((1/$A$208) * ($AN$210 - 50)) +D160 -> 0.2891986063 | E251: 0.1891986063 | F251: 0.08919860627 | G251: -0.01080139373 | H251: -0.1108013937 | I251: -0.2108013937 | J251: -0.3108013937 | K251: -0.4108013937 | L251: -0.5108013937 | M251: -0.6108013937 | N251: -0.7108013937 | O251: -0.8108013937 | P251: -0.9108013937 | Q251: -1.010801394 | R251: -1.110801394 | S251: -1.210801394 | T251: -1.310801394 | U251: -1.410801394 | V251: -1.510801394 | W251: -1.610801394 | X251: -1.710801394 | Y251: -1.810801394 | Z251: -1.910801394 | AA251: -2.010801394 | AB251: -2.110801394 | AC251: -2.210801394 | AD251: -2.310801394 | AE251: -2.410801394 | AF251: -2.510801394 | AG251: -2.610801394 | AH251: -2.710801394 | AI251: -2.810801394 | AJ251: -2.910801394 | AK251: -3.010801394
A252: E 44 | C252: 0.3891986063 | D252: =((1/$A$208) * ($AN$210 - 50)) +D161 -> 0.2891986063 | E252: 0.1891986063 | F252: 0.08919860627 | G252: -0.01080139373 | H252: -0.1108013937 | I252: -0.2108013937 | J252: -0.3108013937 | K252: -0.4108013937 | L252: -0.5108013937 | M252: -0.6108013937 | N252: -0.7108013937 | O252: -0.8108013937 | P252: -0.9108013937 | Q252: -1.010801394 | R252: -1.110801394 | S252: -1.210801394 | T252: -1.310801394 | U252: -1.410801394 | V252: -1.510801394 | W252: -1.610801394 | X252: -1.710801394 | Y252: -1.810801394 | Z252: -1.910801394 | AA252: -2.010801394 | AB252: -2.110801394 | AC252: -2.210801394 | AD252: -2.310801394 | AE252: -2.410801394 | AF252: -2.510801394 | AG252: -2.610801394 | AH252: -2.710801394 | AI252: -2.810801394 | AJ252: -2.910801394 | AK252: -3.010801394
A253: F 45 | C253: 0.2891986063 | D253: =((1/$A$208) * ($AN$210 - 50)) +D162 -> 0.1891986063 | E253: 0.08919860627 | F253: -0.01080139373 | G253: -0.1108013937 | H253: -0.2108013937 | I253: -0.3108013937 | J253: -0.4108013937 | K253: -0.5108013937 | L253: -0.6108013937 | M253: -0.7108013937 | N253: -0.8108013937 | O253: -0.9108013937 | P253: -1.010801394 | Q253: -1.110801394 | R253: -1.210801394 | S253: -1.310801394 | T253: -1.410801394 | U253: -1.510801394 | V253: -1.610801394 | W253: -1.710801394 | X253: -1.810801394 | Y253: -1.910801394 | Z253: -2.010801394 | AA253: -2.110801394 | AB253: -2.210801394 | AC253: -2.310801394 | AD253: -2.410801394 | AE253: -2.510801394 | AF253: -2.610801394 | AG253: -2.710801394 | AH253: -2.810801394 | AI253: -2.910801394 | AJ253: -3.010801394 | AK253: -3.110801394
A254: F# 46 | C254: 0.1891986063 | D254: =((1/$A$208) * ($AN$210 - 50)) +D163 -> 0.08919860627 | E254: -0.01080139373 | F254: -0.1108013937 | G254: -0.2108013937 | H254: -0.3108013937 | I254: -0.4108013937 | J254: -0.5108013937 | K254: -0.6108013937 | L254: -0.7108013937 | M254: -0.8108013937 | N254: -0.9108013937 | O254: -1.010801394 | P254: -1.110801394 | Q254: -1.210801394 | R254: -1.310801394 | S254: -1.410801394 | T254: -1.510801394 | U254: -1.610801394 | V254: -1.710801394 | W254: -1.810801394 | X254: -1.910801394 | Y254: -2.010801394 | Z254: -2.110801394 | AA254: -2.210801394 | AB254: -2.310801394 | AC254: -2.410801394 | AD254: -2.510801394 | AE254: -2.610801394 | AF254: -2.710801394 | AG254: -2.810801394 | AH254: -2.910801394 | AI254: -3.010801394 | AJ254: -3.110801394 | AK254: -3.210801394
A255: G 47 | C255: 0.1891986063 | D255: =((1/$A$208) * ($AN$210 - 50)) +D164 -> 0.08919860627 | E255: -0.01080139373 | F255: -0.1108013937 | G255: -0.2108013937 | H255: -0.3108013937 | I255: -0.4108013937 | J255: -0.5108013937 | K255: -0.6108013937 | L255: -0.7108013937 | M255: -0.8108013937 | N255: -0.9108013937 | O255: -1.010801394 | P255: -1.110801394 | Q255: -1.210801394 | R255: -1.310801394 | S255: -1.410801394 | T255: -1.510801394 | U255: -1.610801394 | V255: -1.710801394 | W255: -1.810801394 | X255: -1.910801394 | Y255: -2.010801394 | Z255: -2.110801394 | AA255: -2.210801394 | AB255: -2.310801394 | AC255: -2.410801394 | AD255: -2.510801394 | AE255: -2.610801394 | AF255: -2.710801394 | AG255: -2.810801394 | AH255: -2.910801394 | AI255: -3.010801394 | AJ255: -3.110801394 | AK255: -3.210801394
A256: G# 48 | C256: 0.08919860627 | D256: =((1/$A$208) * ($AN$210 - 50)) +D165 -> -0.01080139373 | E256: -0.1108013937 | F256: -0.2108013937 | G256: -0.3108013937 | H256: -0.4108013937 | I256: -0.5108013937 | J256: -0.6108013937 | K256: -0.7108013937 | L256: -0.8108013937 | M256: -0.9108013937 | N256: -1.010801394 | O256: -1.110801394 | P256: -1.210801394 | Q256: -1.310801394 | R256: -1.410801394 | S256: -1.510801394 | T256: -1.610801394 | U256: -1.710801394 | V256: -1.810801394 | W256: -1.910801394 | X256: -2.010801394 | Y256: -2.110801394 | Z256: -2.210801394 | AA256: -2.310801394 | AB256: -2.410801394 | AC256: -2.510801394 | AD256: -2.610801394 | AE256: -2.710801394 | AF256: -2.810801394 | AG256: -2.910801394 | AH256: -3.010801394 | AI256: -3.110801394 | AJ256: -3.210801394 | AK256: -3.310801394
A257: A 49 | C257: 0.08919860627 | D257: =((1/$A$208) * ($AN$210 - 50)) +D166 -> -0.01080139373 | E257: -0.1108013937 | F257: -0.2108013937 | G257: -0.3108013937 | H257: -0.4108013937 | I257: -0.5108013937 | J257: -0.6108013937 | K257: -0.7108013937 | L257: -0.8108013937 | M257: -0.9108013937 | N257: -1.010801394 | O257: -1.110801394 | P257: -1.210801394 | Q257: -1.310801394 | R257: -1.410801394 | S257: -1.510801394 | T257: -1.610801394 | U257: -1.710801394 | V257: -1.810801394 | W257: -1.910801394 | X257: -2.010801394 | Y257: -2.110801394 | Z257: -2.210801394 | AA257: -2.310801394 | AB257: -2.410801394 | AC257: -2.510801394 | AD257: -2.610801394 | AE257: -2.710801394 | AF257: -2.810801394 | AG257: -2.910801394 | AH257: -3.010801394 | AI257: -3.110801394 | AJ257: -3.210801394 | AK257: -3.310801394
A258: A# 50 | C258: -0.01080139373 | D258: =((1/$A$208) * ($AN$210 - 50)) +D167 -> -0.1108013937 | E258: -0.2108013937 | F258: -0.3108013937 | G258: -0.4108013937 | H258: -0.5108013937 | I258: -0.6108013937 | J258: -0.7108013937 | K258: -0.8108013937 | L258: -0.9108013937 | M258: -1.010801394 | N258: -1.110801394 | O258: -1.210801394 | P258: -1.310801394 | Q258: -1.410801394 | R258: -1.510801394 | S258: -1.610801394 | T258: -1.710801394 | U258: -1.810801394 | V258: -1.910801394 | W258: -2.010801394 | X258: -2.110801394 | Y258: -2.210801394 | Z258: -2.310801394 | AA258: -2.410801394 | AB258: -2.510801394 | AC258: -2.610801394 | AD258: -2.710801394 | AE258: -2.810801394 | AF258: -2.910801394 | AG258: -3.010801394 | AH258: -3.110801394 | AI258: -3.210801394 | AJ258: -3.310801394 | AK258: -3.410801394
A259: B 51 | C259: -0.1108013937 | D259: =((1/$A$208) * ($AN$210 - 50)) +D168 -> -0.2108013937 | E259: -0.3108013937 | F259: -0.4108013937 | G259: -0.5108013937 | H259: -0.6108013937 | I259: -0.7108013937 | J259: -0.8108013937 | K259: -0.9108013937 | L259: -1.010801394 | M259: -1.110801394 | N259: -1.210801394 | O259: -1.310801394 | P259: -1.410801394 | Q259: -1.510801394 | R259: -1.610801394 | S259: -1.710801394 | T259: -1.810801394 | U259: -1.910801394 | V259: -2.010801394 | W259: -2.110801394 | X259: -2.210801394 | Y259: -2.310801394 | Z259: -2.410801394 | AA259: -2.510801394 | AB259: -2.610801394 | AC259: -2.710801394 | AD259: -2.810801394 | AE259: -2.910801394 | AF259: -3.010801394 | AG259: -3.110801394 | AH259: -3.210801394 | AI259: -3.310801394 | AJ259: -3.410801394 | AK259: -3.510801394
A260: C 52 | C260: -0.1108013937 | D260: =((1/$A$208) * ($AN$210 - 50)) +D169 -> -0.2108013937 | E260: -0.3108013937 | F260: -0.4108013937 | G260: -0.5108013937 | H260: -0.6108013937 | I260: -0.7108013937 | J260: -0.8108013937 | K260: -0.9108013937 | L260: -1.010801394 | M260: -1.110801394 | N260: -1.210801394 | O260: -1.310801394 | P260: -1.410801394 | Q260: -1.510801394 | R260: -1.610801394 | S260: -1.710801394 | T260: -1.810801394 | U260: -1.910801394 | V260: -2.010801394 | W260: -2.110801394 | X260: -2.210801394 | Y260: -2.310801394 | Z260: -2.410801394 | AA260: -2.510801394 | AB260: -2.610801394 | AC260: -2.710801394 | AD260: -2.810801394 | AE260: -2.910801394 | AF260: -3.010801394 | AG260: -3.110801394 | AH260: -3.210801394 | AI260: -3.310801394 | AJ260: -3.410801394 | AK260: -3.510801394
A261: C# 53 | C261: -0.2108013937 | D261: =((1/$A$208) * ($AN$210 - 50)) +D170 -> -0.3108013937 | E261: -0.4108013937 | F261: -0.5108013937 | G261: -0.6108013937 | H261: -0.7108013937 | I261: -0.8108013937 | J261: -0.9108013937 | K261: -1.010801394 | L261: -1.110801394 | M261: -1.210801394 | N261: -1.310801394 | O261: -1.410801394 | P261: -1.510801394 | Q261: -1.610801394 | R261: -1.710801394 | S261: -1.810801394 | T261: -1.910801394 | U261: -2.010801394 | V261: -2.110801394 | W261: -2.210801394 | X261: -2.310801394 | Y261: -2.410801394 | Z261: -2.510801394 | AA261: -2.610801394 | AB261: -2.710801394 | AC261: -2.810801394 | AD261: -2.910801394 | AE261: -3.010801394 | AF261: -3.110801394 | AG261: -3.210801394 | AH261: -3.310801394 | AI261: -3.410801394 | AJ261: -3.510801394 | AK261: -3.610801394
A262: D 54 | C262: -0.3108013937 | D262: =((1/$A$208) * ($AN$210 - 50)) +D171 -> -0.4108013937 | E262: -0.5108013937 | F262: -0.6108013937 | G262: -0.7108013937 | H262: -0.8108013937 | I262: -0.9108013937 | J262: -1.010801394 | K262: -1.110801394 | L262: -1.210801394 | M262: -1.310801394 | N262: -1.410801394 | O262: -1.510801394 | P262: -1.610801394 | Q262: -1.710801394 | R262: -1.810801394 | S262: -1.910801394 | T262: -2.010801394 | U262: -2.110801394 | V262: -2.210801394 | W262: -2.310801394 | X262: -2.410801394 | Y262: -2.510801394 | Z262: -2.610801394 | AA262: -2.710801394 | AB262: -2.810801394 | AC262: -2.910801394 | AD262: -3.010801394 | AE262: -3.110801394 | AF262: -3.210801394 | AG262: -3.310801394 | AH262: -3.410801394 | AI262: -3.510801394 | AJ262: -3.610801394 | AK262: -3.710801394
A263: D# 55 | C263: -0.4108013937 | D263: =((1/$A$208) * ($AN$210 - 50)) +D172 -> -0.5108013937 | E263: -0.6108013937 | F263: -0.7108013937 | G263: -0.8108013937 | H263: -0.9108013937 | I263: -1.010801394 | J263: -1.110801394 | K263: -1.210801394 | L263: -1.310801394 | M263: -1.410801394 | N263: -1.510801394 | O263: -1.610801394 | P263: -1.710801394 | Q263: -1.810801394 | R263: -1.910801394 | S263: -2.010801394 | T263: -2.110801394 | U263: -2.210801394 | V263: -2.310801394 | W263: -2.410801394 | X263: -2.510801394 | Y263: -2.610801394 | Z263: -2.710801394 | AA263: -2.810801394 | AB263: -2.910801394 | AC263: -3.010801394 | AD263: -3.110801394 | AE263: -3.210801394 | AF263: -3.310801394 | AG263: -3.410801394 | AH263: -3.510801394 | AI263: -3.610801394 | AJ263: -3.710801394 | AK263: -3.810801394
A264: E 56 | C264: -0.4108013937 | D264: =((1/$A$208) * ($AN$210 - 50)) +D173 -> -0.5108013937 | E264: -0.6108013937 | F264: -0.7108013937 | G264: -0.8108013937 | H264: -0.9108013937 | I264: -1.010801394 | J264: -1.110801394 | K264: -1.210801394 | L264: -1.310801394 | M264: -1.410801394 | N264: -1.510801394 | O264: -1.610801394 | P264: -1.710801394 | Q264: -1.810801394 | R264: -1.910801394 | S264: -2.010801394 | T264: -2.110801394 | U264: -2.210801394 | V264: -2.310801394 | W264: -2.410801394 | X264: -2.510801394 | Y264: -2.610801394 | Z264: -2.710801394 | AA264: -2.810801394 | AB264: -2.910801394 | AC264: -3.010801394 | AD264: -3.110801394 | AE264: -3.210801394 | AF264: -3.310801394 | AG264: -3.410801394 | AH264: -3.510801394 | AI264: -3.610801394 | AJ264: -3.710801394 | AK264: -3.810801394
A265: F 57 | C265: -0.5108013937 | D265: =((1/$A$208) * ($AN$210 - 50)) +D174 -> -0.6108013937 | E265: -0.7108013937 | F265: -0.8108013937 | G265: -0.9108013937 | H265: -1.010801394 | I265: -1.110801394 | J265: -1.210801394 | K265: -1.310801394 | L265: -1.410801394 | M265: -1.510801394 | N265: -1.610801394 | O265: -1.710801394 | P265: -1.810801394 | Q265: -1.910801394 | R265: -2.010801394 | S265: -2.110801394 | T265: -2.210801394 | U265: -2.310801394 | V265: -2.410801394 | W265: -2.510801394 | X265: -2.610801394 | Y265: -2.710801394 | Z265: -2.810801394 | AA265: -2.910801394 | AB265: -3.010801394 | AC265: -3.110801394 | AD265: -3.210801394 | AE265: -3.310801394 | AF265: -3.410801394 | AG265: -3.510801394 | AH265: -3.610801394 | AI265: -3.710801394 | AJ265: -3.810801394 | AK265: -3.910801394
A266: F# 58 | C266: -0.6108013937 | D266: =((1/$A$208) * ($AN$210 - 50)) +D175 -> -0.7108013937 | E266: -0.8108013937 | F266: -0.9108013937 | G266: -1.010801394 | H266: -1.110801394 | I266: -1.210801394 | J266: -1.310801394 | K266: -1.410801394 | L266: -1.510801394 | M266: -1.610801394 | N266: -1.710801394 | O266: -1.810801394 | P266: -1.910801394 | Q266: -2.010801394 | R266: -2.110801394 | S266: -2.210801394 | T266: -2.310801394 | U266: -2.410801394 | V266: -2.510801394 | W266: -2.610801394 | X266: -2.710801394 | Y266: -2.810801394 | Z266: -2.910801394 | AA266: -3.010801394 | AB266: -3.110801394 | AC266: -3.210801394 | AD266: -3.310801394 | AE266: -3.410801394 | AF266: -3.510801394 | AG266: -3.610801394 | AH266: -3.710801394 | AI266: -3.810801394 | AJ266: -3.910801394 | AK266: -4.010801394
A267: G 59 | C267: -0.7108013937 | D267: =((1/$A$208) * ($AN$210 - 50)) +D176 -> -0.8108013937 | E267: -0.9108013937 | F267: -1.010801394 | G267: -1.110801394 | H267: -1.210801394 | I267: -1.310801394 | J267: -1.410801394 | K267: -1.510801394 | L267: -1.610801394 | M267: -1.710801394 | N267: -1.810801394 | O267: -1.910801394 | P267: -2.010801394 | Q267: -2.110801394 | R267: -2.210801394 | S267: -2.310801394 | T267: -2.410801394 | U267: -2.510801394 | V267: -2.610801394 | W267: -2.710801394 | X267: -2.810801394 | Y267: -2.910801394 | Z267: -3.010801394 | AA267: -3.110801394 | AB267: -3.210801394 | AC267: -3.310801394 | AD267: -3.410801394 | AE267: -3.510801394 | AF267: -3.610801394 | AG267: -3.710801394 | AH267: -3.810801394 | AI267: -3.910801394 | AJ267: -4.010801394 | AK267: -4.110801394
A268: G# 60 | C268: -0.7108013937 | D268: =((1/$A$208) * ($AN$210 - 50)) +D177 -> -0.8108013937 | E268: -0.9108013937 | F268: -1.010801394 | G268: -1.110801394 | H268: -1.210801394 | I268: -1.310801394 | J268: -1.410801394 | K268: -1.510801394 | L268: -1.610801394 | M268: -1.710801394 | N268: -1.810801394 | O268: -1.910801394 | P268: -2.010801394 | Q268: -2.110801394 | R268: -2.210801394 | S268: -2.310801394 | T268: -2.410801394 | U268: -2.510801394 | V268: -2.610801394 | W268: -2.710801394 | X268: -2.810801394 | Y268: -2.910801394 | Z268: -3.010801394 | AA268: -3.110801394 | AB268: -3.210801394 | AC268: -3.310801394 | AD268: -3.410801394 | AE268: -3.510801394 | AF268: -3.610801394 | AG268: -3.710801394 | AH268: -3.810801394 | AI268: -3.910801394 | AJ268: -4.010801394 | AK268: -4.110801394
A269: A 61 | C269: -0.8108013937 | D269: =((1/$A$208) * ($AN$210 - 50)) +D178 -> -0.9108013937 | E269: -1.010801394 | F269: -1.110801394 | G269: -1.210801394 | H269: -1.310801394 | I269: -1.410801394 | J269: -1.510801394 | K269: -1.610801394 | L269: -1.710801394 | M269: -1.810801394 | N269: -1.910801394 | O269: -2.010801394 | P269: -2.110801394 | Q269: -2.210801394 | R269: -2.310801394 | S269: -2.410801394 | T269: -2.510801394 | U269: -2.610801394 | V269: -2.710801394 | W269: -2.810801394 | X269: -2.910801394 | Y269: -3.010801394 | Z269: -3.110801394 | AA269: -3.210801394 | AB269: -3.310801394 | AC269: -3.410801394 | AD269: -3.510801394 | AE269: -3.610801394 | AF269: -3.710801394 | AG269: -3.810801394 | AH269: -3.910801394 | AI269: -4.010801394 | AJ269: -4.110801394 | AK269: -4.210801394
A270: A# 62 | C270: -0.9108013937 | D270: =((1/$A$208) * ($AN$210 - 50)) +D179 -> -1.010801394 | E270: -1.110801394 | F270: -1.210801394 | G270: -1.310801394 | H270: -1.410801394 | I270: -1.510801394 | J270: -1.610801394 | K270: -1.710801394 | L270: -1.810801394 | M270: -1.910801394 | N270: -2.010801394 | O270: -2.110801394 | P270: -2.210801394 | Q270: -2.310801394 | R270: -2.410801394 | S270: -2.510801394 | T270: -2.610801394 | U270: -2.710801394 | V270: -2.810801394 | W270: -2.910801394 | X270: -3.010801394 | Y270: -3.110801394 | Z270: -3.210801394 | AA270: -3.310801394 | AB270: -3.410801394 | AC270: -3.510801394 | AD270: -3.610801394 | AE270: -3.710801394 | AF270: -3.810801394 | AG270: -3.910801394 | AH270: -4.010801394 | AI270: -4.110801394 | AJ270: -4.210801394 | AK270: -4.310801394
A271: B 63 | C271: -1.010801394 | D271: =((1/$A$208) * ($AN$210 - 50)) +D180 -> -1.110801394 | E271: -1.210801394 | F271: -1.310801394 | G271: -1.410801394 | H271: -1.510801394 | I271: -1.610801394 | J271: -1.710801394 | K271: -1.810801394 | L271: -1.910801394 | M271: -2.010801394 | N271: -2.110801394 | O271: -2.210801394 | P271: -2.310801394 | Q271: -2.410801394 | R271: -2.510801394 | S271: -2.610801394 | T271: -2.710801394 | U271: -2.810801394 | V271: -2.910801394 | W271: -3.010801394 | X271: -3.110801394 | Y271: -3.210801394 | Z271: -3.310801394 | AA271: -3.410801394 | AB271: -3.510801394 | AC271: -3.610801394 | AD271: -3.710801394 | AE271: -3.810801394 | AF271: -3.910801394 | AG271: -4.010801394 | AH271: -4.110801394 | AI271: -4.210801394 | AJ271: -4.310801394 | AK271: -4.410801394
A272: C 64 | C272: -1.110801394 | D272: =((1/$A$208) * ($AN$210 - 50)) +D181 -> -1.210801394 | E272: -1.310801394 | F272: -1.410801394 | G272: -1.510801394 | H272: -1.610801394 | I272: -1.710801394 | J272: -1.810801394 | K272: -1.910801394 | L272: -2.010801394 | M272: -2.110801394 | N272: -2.210801394 | O272: -2.310801394 | P272: -2.410801394 | Q272: -2.510801394 | R272: -2.610801394 | S272: -2.710801394 | T272: -2.810801394 | U272: -2.910801394 | V272: -3.010801394 | W272: -3.110801394 | X272: -3.210801394 | Y272: -3.310801394 | Z272: -3.410801394 | AA272: -3.510801394 | AB272: -3.610801394 | AC272: -3.710801394 | AD272: -3.810801394 | AE272: -3.910801394 | AF272: -4.010801394 | AG272: -4.110801394 | AH272: -4.210801394 | AI272: -4.310801394 | AJ272: -4.410801394 | AK272: -4.510801394
A273: C# 65 | C273: -1.210801394 | D273: =((1/$A$208) * ($AN$210 - 50)) +D182 -> -1.310801394 | E273: -1.410801394 | F273: -1.510801394 | G273: -1.610801394 | H273: -1.710801394 | I273: -1.810801394 | J273: -1.910801394 | K273: -2.010801394 | L273: -2.110801394 | M273: -2.210801394 | N273: -2.310801394 | O273: -2.410801394 | P273: -2.510801394 | Q273: -2.610801394 | R273: -2.710801394 | S273: -2.810801394 | T273: -2.910801394 | U273: -3.010801394 | V273: -3.110801394 | W273: -3.210801394 | X273: -3.310801394 | Y273: -3.410801394 | Z273: -3.510801394 | AA273: -3.610801394 | AB273: -3.710801394 | AC273: -3.810801394 | AD273: -3.910801394 | AE273: -4.010801394 | AF273: -4.110801394 | AG273: -4.210801394 | AH273: -4.310801394 | AI273: -4.410801394 | AJ273: -4.510801394 | AK273: -4.610801394
A274: D 66 | C274: =((1/$A$208) * (AN275 - 50)) +C183 -> -1.210801394 | D274: =((1/$A$208) * ($AN$210 - 50)) +D183 -> -1.310801394 | E274: -1.410801394 | F274: -1.510801394 | G274: -1.610801394 | H274: -1.710801394 | I274: -1.810801394 | J274: -1.910801394 | K274: -2.010801394 | L274: -2.110801394 | M274: -2.210801394 | N274: -2.310801394 | O274: -2.410801394 | P274: -2.510801394 | Q274: -2.610801394 | R274: -2.710801394 | S274: -2.810801394 | T274: -2.910801394 | U274: -3.010801394 | V274: -3.110801394 | W274: -3.210801394 | X274: -3.310801394 | Y274: -3.410801394 | Z274: -3.510801394 | AA274: -3.610801394 | AB274: -3.710801394 | AC274: -3.810801394 | AD274: -3.910801394 | AE274: -4.010801394 | AF274: -4.110801394 | AG274: -4.210801394 | AH274: -4.310801394 | AI274: -4.410801394 | AJ274: -4.510801394 | AK274: -4.610801394
A275: D# 67 | C275: -1.310801394 | D275: =((1/$A$208) * ($AN$210 - 50)) +D184 -> -1.410801394 | E275: -1.510801394 | F275: -1.610801394 | G275: -1.710801394 | H275: -1.810801394 | I275: -1.910801394 | J275: -2.010801394 | K275: -2.110801394 | L275: -2.210801394 | M275: -2.310801394 | N275: -2.410801394 | O275: -2.510801394 | P275: -2.610801394 | Q275: -2.710801394 | R275: -2.810801394 | S275: -2.910801394 | T275: -3.010801394 | U275: -3.110801394 | V275: -3.210801394 | W275: -3.310801394 | X275: -3.410801394 | Y275: -3.510801394 | Z275: -3.610801394 | AA275: -3.710801394 | AB275: -3.810801394 | AC275: -3.910801394 | AD275: -4.010801394 | AE275: -4.110801394 | AF275: -4.210801394 | AG275: -4.310801394 | AH275: -4.410801394 | AI275: -4.510801394 | AJ275: -4.610801394 | AK275: -4.710801394
A276: E 68 | C276: -1.410801394 | D276: =((1/$A$208) * ($AN$210 - 50)) +D185 -> -1.510801394 | E276: -1.610801394 | F276: -1.710801394 | G276: -1.810801394 | H276: -1.910801394 | I276: -2.010801394 | J276: -2.110801394 | K276: -2.210801394 | L276: -2.310801394 | M276: -2.410801394 | N276: -2.510801394 | O276: -2.610801394 | P276: -2.710801394 | Q276: -2.810801394 | R276: -2.910801394 | S276: -3.010801394 | T276: -3.110801394 | U276: -3.210801394 | V276: -3.310801394 | W276: -3.410801394 | X276: -3.510801394 | Y276: -3.610801394 | Z276: -3.710801394 | AA276: -3.810801394 | AB276: -3.910801394 | AC276: -4.010801394 | AD276: -4.110801394 | AE276: -4.210801394 | AF276: -4.310801394 | AG276: -4.410801394 | AH276: -4.510801394 | AI276: -4.610801394 | AJ276: -4.710801394 | AK276: -4.810801394
A277: F 69 | C277: -1.510801394 | D277: =((1/$A$208) * ($AN$210 - 50)) +D186 -> -1.610801394 | E277: -1.710801394 | F277: -1.810801394 | G277: -1.910801394 | H277: -2.010801394 | I277: -2.110801394 | J277: -2.210801394 | K277: -2.310801394 | L277: -2.410801394 | M277: -2.510801394 | N277: -2.610801394 | O277: -2.710801394 | P277: -2.810801394 | Q277: -2.910801394 | R277: -3.010801394 | S277: -3.110801394 | T277: -3.210801394 | U277: -3.310801394 | V277: -3.410801394 | W277: -3.510801394 | X277: -3.610801394 | Y277: -3.710801394 | Z277: -3.810801394 | AA277: -3.910801394 | AB277: -4.010801394 | AC277: -4.110801394 | AD277: -4.210801394 | AE277: -4.310801394 | AF277: -4.410801394 | AG277: -4.510801394 | AH277: -4.610801394 | AI277: -4.710801394 | AJ277: -4.810801394 | AK277: -4.910801394
A278: F# 70 | C278: -1.610801394 | D278: =((1/$A$208) * ($AN$210 - 50)) +D187 -> -1.710801394 | E278: -1.810801394 | F278: -1.910801394 | G278: -2.010801394 | H278: -2.110801394 | I278: -2.210801394 | J278: -2.310801394 | K278: -2.410801394 | L278: -2.510801394 | M278: -2.610801394 | N278: -2.710801394 | O278: -2.810801394 | P278: -2.910801394 | Q278: -3.010801394 | R278: -3.110801394 | S278: -3.210801394 | T278: -3.310801394 | U278: -3.410801394 | V278: -3.510801394 | W278: -3.610801394 | X278: -3.710801394 | Y278: -3.810801394 | Z278: -3.910801394 | AA278: -4.010801394 | AB278: -4.110801394 | AC278: -4.210801394 | AD278: -4.310801394 | AE278: -4.410801394 | AF278: -4.510801394 | AG278: -4.610801394 | AH278: -4.710801394 | AI278: -4.810801394 | AJ278: -4.910801394 | AK278: -5.010801394
A279: G 71 | C279: -1.710801394 | D279: =((1/$A$208) * ($AN$210 - 50)) +D188 -> -1.810801394 | E279: -1.910801394 | F279: -2.010801394 | G279: -2.110801394 | H279: -2.210801394 | I279: -2.310801394 | J279: -2.410801394 | K279: -2.510801394 | L279: -2.610801394 | M279: -2.710801394 | N279: -2.810801394 | O279: -2.910801394 | P279: -3.010801394 | Q279: -3.110801394 | R279: -3.210801394 | S279: -3.310801394 | T279: -3.410801394 | U279: -3.510801394 | V279: -3.610801394 | W279: -3.710801394 | X279: -3.810801394 | Y279: -3.910801394 | Z279: -4.010801394 | AA279: -4.110801394 | AB279: -4.210801394 | AC279: -4.310801394 | AD279: -4.410801394 | AE279: -4.510801394 | AF279: -4.610801394 | AG279: -4.710801394 | AH279: -4.810801394 | AI279: -4.910801394 | AJ279: -5.010801394 | AK279: -5.110801394
A280: G# 72 | C280: -1.810801394 | D280: =((1/$A$208) * ($AN$210 - 50)) +D189 -> -1.910801394 | E280: -2.010801394 | F280: -2.110801394 | G280: -2.210801394 | H280: -2.310801394 | I280: -2.410801394 | J280: -2.510801394 | K280: -2.610801394 | L280: -2.710801394 | M280: -2.810801394 | N280: -2.910801394 | O280: -3.010801394 | P280: -3.110801394 | Q280: -3.210801394 | R280: -3.310801394 | S280: -3.410801394 | T280: -3.510801394 | U280: -3.610801394 | V280: -3.710801394 | W280: -3.810801394 | X280: -3.910801394 | Y280: -4.010801394 | Z280: -4.110801394 | AA280: -4.210801394 | AB280: -4.310801394 | AC280: -4.410801394 | AD280: -4.510801394 | AE280: -4.610801394 | AF280: -4.710801394 | AG280: -4.810801394 | AH280: -4.910801394 | AI280: -5.010801394 | AJ280: -5.110801394 | AK280: -5.210801394
A281: A 73 | C281: -1.910801394 | D281: =((1/$A$208) * ($AN$210 - 50)) +D190 -> -2.010801394 | E281: -2.110801394 | F281: -2.210801394 | G281: -2.310801394 | H281: -2.410801394 | I281: -2.510801394 | J281: -2.610801394 | K281: -2.710801394 | L281: -2.810801394 | M281: -2.910801394 | N281: -3.010801394 | O281: -3.110801394 | P281: -3.210801394 | Q281: -3.310801394 | R281: -3.410801394 | S281: -3.510801394 | T281: -3.610801394 | U281: -3.710801394 | V281: -3.810801394 | W281: -3.910801394 | X281: -4.010801394 | Y281: -4.110801394 | Z281: -4.210801394 | AA281: -4.310801394 | AB281: -4.410801394 | AC281: -4.510801394 | AD281: -4.610801394 | AE281: -4.710801394 | AF281: -4.810801394 | AG281: -4.910801394 | AH281: -5.010801394 | AI281: -5.110801394 | AJ281: -5.210801394 | AK281: -5.310801394
A282: A# 74 | C282: -2.010801394 | D282: =((1/$A$208) * ($AN$210 - 50)) +D191 -> -2.110801394 | E282: -2.210801394 | F282: -2.310801394 | G282: -2.410801394 | H282: -2.510801394 | I282: -2.610801394 | J282: -2.710801394 | K282: -2.810801394 | L282: -2.910801394 | M282: -3.010801394 | N282: -3.110801394 | O282: -3.210801394 | P282: -3.310801394 | Q282: -3.410801394 | R282: -3.510801394 | S282: -3.610801394 | T282: -3.710801394 | U282: -3.810801394 | V282: -3.910801394 | W282: -4.010801394 | X282: -4.110801394 | Y282: -4.210801394 | Z282: -4.310801394 | AA282: -4.410801394 | AB282: -4.510801394 | AC282: -4.610801394 | AD282: -4.710801394 | AE282: -4.810801394 | AF282: -4.910801394 | AG282: -5.010801394 | AH282: -5.110801394 | AI282: -5.210801394 | AJ282: -5.310801394 | AK282: -5.410801394
A283: B 75 | C283: -2.110801394 | D283: =((1/$A$208) * ($AN$210 - 50)) +D192 -> -2.210801394 | E283: -2.310801394 | F283: -2.410801394 | G283: -2.510801394 | H283: -2.610801394 | I283: -2.710801394 | J283: -2.810801394 | K283: -2.910801394 | L283: -3.010801394 | M283: -3.110801394 | N283: -3.210801394 | O283: -3.310801394 | P283: -3.410801394 | Q283: -3.510801394 | R283: -3.610801394 | S283: -3.710801394 | T283: -3.810801394 | U283: -3.910801394 | V283: -4.010801394 | W283: -4.110801394 | X283: -4.210801394 | Y283: -4.310801394 | Z283: -4.410801394 | AA283: -4.510801394 | AB283: -4.610801394 | AC283: -4.710801394 | AD283: -4.810801394 | AE283: -4.910801394 | AF283: -5.010801394 | AG283: -5.110801394 | AH283: -5.210801394 | AI283: -5.310801394 | AJ283: -5.410801394 | AK283: -5.510801394
A284: C 76 | C284: -2.210801394 | D284: =((1/$A$208) * ($AN$210 - 50)) +D193 -> -2.310801394 | E284: -2.410801394 | F284: -2.510801394 | G284: -2.610801394 | H284: -2.710801394 | I284: -2.810801394 | J284: -2.910801394 | K284: -3.010801394 | L284: -3.110801394 | M284: -3.210801394 | N284: -3.310801394 | O284: -3.410801394 | P284: -3.510801394 | Q284: -3.610801394 | R284: -3.710801394 | S284: -3.810801394 | T284: -3.910801394 | U284: -4.010801394 | V284: -4.110801394 | W284: -4.210801394 | X284: -4.310801394 | Y284: -4.410801394 | Z284: -4.510801394 | AA284: -4.610801394 | AB284: -4.710801394 | AC284: -4.810801394 | AD284: -4.910801394 | AE284: -5.010801394 | AF284: -5.110801394 | AG284: -5.210801394 | AH284: -5.310801394 | AI284: -5.410801394 | AJ284: -5.510801394 | AK284: -5.610801394
A285: C# 77 | C285: -2.310801394 | D285: =((1/$A$208) * ($AN$210 - 50)) +D194 -> -2.410801394 | E285: -2.510801394 | F285: -2.610801394 | G285: -2.710801394 | H285: -2.810801394 | I285: -2.910801394 | J285: -3.010801394 | K285: -3.110801394 | L285: -3.210801394 | M285: -3.310801394 | N285: -3.410801394 | O285: -3.510801394 | P285: -3.610801394 | Q285: -3.710801394 | R285: -3.810801394 | S285: -3.910801394 | T285: -4.010801394 | U285: -4.110801394 | V285: -4.210801394 | W285: -4.310801394 | X285: -4.410801394 | Y285: -4.510801394 | Z285: -4.610801394 | AA285: -4.710801394 | AB285: -4.810801394 | AC285: -4.910801394 | AD285: -5.010801394 | AE285: -5.110801394 | AF285: -5.210801394 | AG285: -5.310801394 | AH285: -5.410801394 | AI285: -5.510801394 | AJ285: -5.610801394 | AK285: -5.710801394
A286: D 78 | C286: -2.410801394 | D286: =((1/$A$208) * ($AN$210 - 50)) +D195 -> -2.510801394 | E286: -2.610801394 | F286: -2.710801394 | G286: -2.810801394 | H286: -2.910801394 | I286: -3.010801394 | J286: -3.110801394 | K286: -3.210801394 | L286: -3.310801394 | M286: -3.410801394 | N286: -3.510801394 | O286: -3.610801394 | P286: -3.710801394 | Q286: -3.810801394 | R286: -3.910801394 | S286: -4.010801394 | T286: -4.110801394 | U286: -4.210801394 | V286: -4.310801394 | W286: -4.410801394 | X286: -4.510801394 | Y286: -4.610801394 | Z286: -4.710801394 | AA286: -4.810801394 | AB286: -4.910801394 | AC286: -5.010801394 | AD286: -5.110801394 | AE286: -5.210801394 | AF286: -5.310801394 | AG286: -5.410801394 | AH286: -5.510801394 | AI286: -5.610801394 | AJ286: -5.710801394 | AK286: -5.810801394
A287: D# 79 | C287: -2.510801394 | D287: =((1/$A$208) * ($AN$210 - 50)) +D196 -> -2.610801394 | E287: -2.710801394 | F287: -2.810801394 | G287: -2.910801394 | H287: -3.010801394 | I287: -3.110801394 | J287: -3.210801394 | K287: -3.310801394 | L287: -3.410801394 | M287: -3.510801394 | N287: -3.610801394 | O287: -3.710801394 | P287: -3.810801394 | Q287: -3.910801394 | R287: -4.010801394 | S287: -4.110801394 | T287: -4.210801394 | U287: -4.310801394 | V287: -4.410801394 | W287: -4.510801394 | X287: -4.610801394 | Y287: -4.710801394 | Z287: -4.810801394 | AA287: -4.910801394 | AB287: -5.010801394 | AC287: -5.110801394 | AD287: -5.210801394 | AE287: -5.310801394 | AF287: -5.410801394 | AG287: -5.510801394 | AH287: -5.610801394 | AI287: -5.710801394 | AJ287: -5.810801394 | AK287: -5.910801394
A288: E 80 | C288: -2.610801394 | D288: =((1/$A$208) * ($AN$210 - 50)) +D197 -> -2.710801394 | E288: -2.810801394 | F288: -2.910801394 | G288: -3.010801394 | H288: -3.110801394 | I288: -3.210801394 | J288: -3.310801394 | K288: -3.410801394 | L288: -3.510801394 | M288: -3.610801394 | N288: -3.710801394 | O288: -3.810801394 | P288: -3.910801394 | Q288: -4.010801394 | R288: -4.110801394 | S288: -4.210801394 | T288: -4.310801394 | U288: -4.410801394 | V288: -4.510801394 | W288: -4.610801394 | X288: -4.710801394 | Y288: -4.810801394 | Z288: -4.910801394 | AA288: -5.010801394 | AB288: -5.110801394 | AC288: -5.210801394 | AD288: -5.310801394 | AE288: -5.410801394 | AF288: -5.510801394 | AG288: -5.610801394 | AH288: -5.710801394 | AI288: -5.810801394 | AJ288: -5.910801394 | AK288: -6.010801394
A289: F 81 | C289: -2.710801394 | D289: =((1/$A$208) * ($AN$210 - 50)) +D198 -> -2.810801394 | E289: -2.910801394 | F289: -3.010801394 | G289: -3.110801394 | H289: -3.210801394 | I289: -3.310801394 | J289: -3.410801394 | K289: -3.510801394 | L289: -3.610801394 | M289: -3.710801394 | N289: -3.810801394 | O289: -3.910801394 | P289: -4.010801394 | Q289: -4.110801394 | R289: -4.210801394 | S289: -4.310801394 | T289: -4.410801394 | U289: -4.510801394 | V289: -4.610801394 | W289: -4.710801394 | X289: -4.810801394 | Y289: -4.910801394 | Z289: -5.010801394 | AA289: -5.110801394 | AB289: -5.210801394 | AC289: -5.310801394 | AD289: -5.410801394 | AE289: -5.510801394 | AF289: -5.610801394 | AG289: -5.710801394 | AH289: -5.810801394 | AI289: -5.910801394 | AJ289: -6.010801394 | AK289: -6.110801394
A290: F# 82 | C290: -2.810801394 | D290: =((1/$A$208) * ($AN$210 - 50)) +D199 -> -2.910801394 | E290: -3.010801394 | F290: -3.110801394 | G290: -3.210801394 | H290: -3.310801394 | I290: -3.410801394 | J290: -3.510801394 | K290: -3.610801394 | L290: -3.710801394 | M290: -3.810801394 | N290: -3.910801394 | O290: -4.010801394 | P290: -4.110801394 | Q290: -4.210801394 | R290: -4.310801394 | S290: -4.410801394 | T290: -4.510801394 | U290: -4.610801394 | V290: -4.710801394 | W290: -4.810801394 | X290: -4.910801394 | Y290: -5.010801394 | Z290: -5.110801394 | AA290: -5.210801394 | AB290: -5.310801394 | AC290: -5.410801394 | AD290: -5.510801394 | AE290: -5.610801394 | AF290: -5.710801394 | AG290: -5.810801394 | AH290: -5.910801394 | AI290: -6.010801394 | AJ290: -6.110801394 | AK290: -6.210801394
A291: G 83 | C291: -2.910801394 | D291: =((1/$A$208) * ($AN$210 - 50)) +D200 -> -3.010801394 | E291: -3.110801394 | F291: -3.210801394 | G291: -3.310801394 | H291: -3.410801394 | I291: -3.510801394 | J291: -3.610801394 | K291: -3.710801394 | L291: -3.810801394 | M291: -3.910801394 | N291: -4.010801394 | O291: -4.110801394 | P291: -4.210801394 | Q291: -4.310801394 | R291: -4.410801394 | S291: -4.510801394 | T291: -4.610801394 | U291: -4.710801394 | V291: -4.810801394 | W291: -4.910801394 | X291: -5.010801394 | Y291: -5.110801394 | Z291: -5.210801394 | AA291: -5.310801394 | AB291: -5.410801394 | AC291: -5.510801394 | AD291: -5.610801394 | AE291: -5.710801394 | AF291: -5.810801394 | AG291: -5.910801394 | AH291: -6.010801394 | AI291: -6.110801394 | AJ291: -6.210801394 | AK291: -6.310801394
A292: G# 84 | C292: -3.010801394 | D292: =((1/$A$208) * ($AN$210 - 50)) +D201 -> -3.110801394 | E292: -3.210801394 | F292: -3.310801394 | G292: -3.410801394 | H292: -3.510801394 | I292: -3.610801394 | J292: -3.710801394 | K292: -3.810801394 | L292: -3.910801394 | M292: -4.010801394 | N292: -4.110801394 | O292: -4.210801394 | P292: -4.310801394 | Q292: -4.410801394 | R292: -4.510801394 | S292: -4.610801394 | T292: -4.710801394 | U292: -4.810801394 | V292: -4.910801394 | W292: -5.010801394 | X292: -5.110801394 | Y292: -5.210801394 | Z292: -5.310801394 | AA292: -5.410801394 | AB292: -5.510801394 | AC292: -5.610801394 | AD292: -5.710801394 | AE292: -5.810801394 | AF292: -5.910801394 | AG292: -6.010801394 | AH292: -6.110801394 | AI292: -6.210801394 | AJ292: -6.310801394 | AK292: -6.410801394
A293: A 85 | C293: -3.110801394 | D293: =((1/$A$208) * ($AN$210 - 50)) +D202 -> -3.210801394 | E293: -3.310801394 | F293: -3.410801394 | G293: -3.510801394 | H293: -3.610801394 | I293: -3.710801394 | J293: -3.810801394 | K293: -3.910801394 | L293: -4.010801394 | M293: -4.110801394 | N293: -4.210801394 | O293: -4.310801394 | P293: -4.410801394 | Q293: -4.510801394 | R293: -4.610801394 | S293: -4.710801394 | T293: -4.810801394 | U293: -4.910801394 | V293: -5.010801394 | W293: -5.110801394 | X293: -5.210801394 | Y293: -5.310801394 | Z293: -5.410801394 | AA293: -5.510801394 | AB293: -5.610801394 | AC293: -5.710801394 | AD293: -5.810801394 | AE293: -5.910801394 | AF293: -6.010801394 | AG293: -6.110801394 | AH293: -6.210801394 | AI293: -6.310801394 | AJ293: -6.410801394 | AK293: -6.510801394
... 3 more rows

Sheet Instructions

Sheet Drawings
C28: FYI: Testing for Whippen Radius Weight (WrW) not req'd to use program if you accept the 17 g default
H50: (e.g. 17 grams)
F62: FYI: Testing for Frontweight (FW). Test not req'd to use program.

Sheet UPGRAGE

Sheet Sheet6 (hidden)
A1: A 1 | C1: =D1+0.1 -> 13.4 | D1: =E1+0.1 -> 13.3 | E1: =F1+0.1 -> 13.2 | F1: =G1+0.1 -> 13.1 | G1: =H1+0.1 -> 13 | H1: =I1+0.1 -> 12.9 | I1: =J1+0.1 -> 12.8 | J1: =K1+0.1 -> 12.7 | K1: =L1+0.1 -> 12.6 | L1: =M1+0.1 -> 12.5 | M1: =N1+0.1 -> 12.4 | N1: =O1+0.1 -> 12.3 | O1: =P1+0.1 -> 12.2 | P1: =Q1+0.1 -> 12.1 | Q1: =R1+0.1 -> 12 | R1: =S1+0.1 -> 11.9 | S1: =T1+0.1 -> 11.8 | T1: =U1+0.1 -> 11.7 | U1: =V1+0.1 -> 11.6 | V1: =W1+0.1 -> 11.5 | W1: =X1+0.1 -> 11.4 | X1: =Y1+0.1 -> 11.3 | Y1: 11.2 | Z1: =AA1+0.1 -> 11.1 | AA1: 11 | AB1: 10.9 | AC1: 10.8 | AD1: 10.7 | AE1: 10.6 | AF1: 10.5 | AG1: 10.4 | AH1: 10.3 | AI1: 10.2 | AJ1: 10.1 | AK1: 10 | AL1: 9.9 | AM1: 9.8 | AN1: 9.7 | AO1: 9.6 | AP1: 9.5 | AQ1: 9.4 | AR1: 9.3 | AS1: 9.2 | AT1: 9.1 | AU1: 9 | AV1: 8.9 | AW1: 8.8 | AX1: 8.7 | AY1: 8.6 | AZ1: 8.5 | BA1: 8.4 | BB1: 8.3 | BC1: 8.2 | BD1: 8.1 | BE1: 8 | BF1: 7.9 | BG1: 7.8 | BH1: 7.7 | BI1: 7.6
A2: A# 2 | C2: =D2+0.1 -> 13.4 | D2: =E2+0.1 -> 13.3 | E2: =F2+0.1 -> 13.2 | F2: =G2+0.1 -> 13.1 | G2: =H2+0.1 -> 13 | H2: =I2+0.1 -> 12.9 | I2: =J2+0.1 -> 12.8 | J2: =K2+0.1 -> 12.7 | K2: =L2+0.1 -> 12.6 | L2: =M2+0.1 -> 12.5 | M2: =N2+0.1 -> 12.4 | N2: =O2+0.1 -> 12.3 | O2: =P2+0.1 -> 12.2 | P2: =Q2+0.1 -> 12.1 | Q2: =R2+0.1 -> 12 | R2: =S2+0.1 -> 11.9 | S2: =T2+0.1 -> 11.8 | T2: =U2+0.1 -> 11.7 | U2: =V2+0.1 -> 11.6 | V2: =W2+0.1 -> 11.5 | W2: =X2+0.1 -> 11.4 | X2: =Y2+0.1 -> 11.3 | Y2: 11.2 | Z2: =AA2+0.1 -> 11.1 | AA2: 11 | AB2: 10.9 | AC2: 10.8 | AD2: 10.7 | AE2: 10.6 | AF2: 10.5 | AG2: 10.4 | AH2: 10.3 | AI2: 10.2 | AJ2: 10.1 | AK2: 10 | AL2: 9.9 | AM2: 9.8 | AN2: 9.7 | AO2: 9.6 | AP2: 9.5 | AQ2: 9.4 | AR2: 9.3 | AS2: 9.2 | AT2: 9.1 | AU2: 9 | AV2: 8.9 | AW2: 8.8 | AX2: 8.7 | AY2: 8.6 | AZ2: 8.5 | BA2: 8.4 | BB2: 8.3 | BC2: 8.2 | BD2: 8.1 | BE2: 8 | BF2: 7.9 | BG2: 7.8 | BH2: 7.7 | BI2: 7.6
A3: B 3 | C3: =D3+0.1 -> 13.4 | D3: =E3+0.1 -> 13.3 | E3: =F3+0.1 -> 13.2 | F3: =G3+0.1 -> 13.1 | G3: =H3+0.1 -> 13 | H3: =I3+0.1 -> 12.9 | I3: =J3+0.1 -> 12.8 | J3: =K3+0.1 -> 12.7 | K3: =L3+0.1 -> 12.6 | L3: =M3+0.1 -> 12.5 | M3: =N3+0.1 -> 12.4 | N3: =O3+0.1 -> 12.3 | O3: =P3+0.1 -> 12.2 | P3: =Q3+0.1 -> 12.1 | Q3: =R3+0.1 -> 12 | R3: =S3+0.1 -> 11.9 | S3: =T3+0.1 -> 11.8 | T3: =U3+0.1 -> 11.7 | U3: =V3+0.1 -> 11.6 | V3: =W3+0.1 -> 11.5 | W3: =X3+0.1 -> 11.4 | X3: =Y3+0.1 -> 11.3 | Y3: 11.2 | Z3: 11.1 | AA3: 11 | AB3: 10.9 | AC3: 10.8 | AD3: 10.7 | AE3: 10.6 | AF3: 10.5 | AG3: 10.4 | AH3: 10.3 | AI3: 10.2 | AJ3: 10.1 | AK3: 10 | AL3: 9.9 | AM3: 9.8 | AN3: 9.7 | AO3: 9.6 | AP3: 9.5 | AQ3: 9.4 | AR3: 9.3 | AS3: 9.2 | AT3: 9.1 | AU3: 9 | AV3: 8.9 | AW3: 8.8 | AX3: 8.7 | AY3: 8.6 | AZ3: 8.5 | BA3: 8.4 | BB3: 8.3 | BC3: 8.2 | BD3: 8.1 | BE3: 8 | BF3: 7.9 | BG3: 7.8 | BH3: 7.7 | BI3: 7.6
A4: C 4 | C4: =D4+0.1 -> 13.3 | D4: =E4+0.1 -> 13.2 | E4: =F4+0.1 -> 13.1 | F4: =G4+0.1 -> 13 | G4: =H4+0.1 -> 12.9 | H4: =I4+0.1 -> 12.8 | I4: =J4+0.1 -> 12.7 | J4: =K4+0.1 -> 12.6 | K4: =L4+0.1 -> 12.5 | L4: =M4+0.1 -> 12.4 | M4: =N4+0.1 -> 12.3 | N4: =O4+0.1 -> 12.2 | O4: =P4+0.1 -> 12.1 | P4: =Q4+0.1 -> 12 | Q4: =R4+0.1 -> 11.9 | R4: =S4+0.1 -> 11.8 | S4: =T4+0.1 -> 11.7 | T4: =U4+0.1 -> 11.6 | U4: =V4+0.1 -> 11.5 | V4: =W4+0.1 -> 11.4 | W4: =X4+0.1 -> 11.3 | X4: =Y4+0.1 -> 11.2 | Y4: 11.1 | Z4: 11 | AA4: 10.9 | AB4: 10.8 | AC4: 10.7 | AD4: 10.6 | AE4: 10.5 | AF4: 10.4 | AG4: 10.3 | AH4: 10.2 | AI4: 10.1 | AJ4: 10 | AK4: 9.9 | AL4: 9.8 | AM4: 9.7 | AN4: 9.6 | AO4: 9.5 | AP4: 9.4 | AQ4: 9.3 | AR4: 9.2 | AS4: 9.1 | AT4: 9 | AU4: 8.9 | AV4: 8.8 | AW4: 8.7 | AX4: 8.6 | AY4: 8.5 | AZ4: 8.4 | BA4: 8.3 | BB4: 8.2 | BC4: 8.1 | BD4: 8 | BE4: 7.9 | BF4: 7.8 | BG4: 7.7 | BH4: 7.6 | BI4: 7.5
A5: C# 5 | C5: =D5+0.1 -> 13.3 | D5: =E5+0.1 -> 13.2 | E5: =F5+0.1 -> 13.1 | F5: =G5+0.1 -> 13 | G5: =H5+0.1 -> 12.9 | H5: =I5+0.1 -> 12.8 | I5: =J5+0.1 -> 12.7 | J5: =K5+0.1 -> 12.6 | K5: =L5+0.1 -> 12.5 | L5: =M5+0.1 -> 12.4 | M5: =N5+0.1 -> 12.3 | N5: =O5+0.1 -> 12.2 | O5: =P5+0.1 -> 12.1 | P5: =Q5+0.1 -> 12 | Q5: =R5+0.1 -> 11.9 | R5: =S5+0.1 -> 11.8 | S5: =T5+0.1 -> 11.7 | T5: =U5+0.1 -> 11.6 | U5: =V5+0.1 -> 11.5 | V5: =W5+0.1 -> 11.4 | W5: =X5+0.1 -> 11.3 | X5: =Y5+0.1 -> 11.2 | Y5: 11.1 | Z5: 11 | AA5: 10.9 | AB5: 10.8 | AC5: 10.7 | AD5: 10.6 | AE5: 10.5 | AF5: 10.4 | AG5: 10.3 | AH5: 10.2 | AI5: 10.1 | AJ5: 10 | AK5: 9.9 | AL5: 9.8 | AM5: 9.7 | AN5: 9.6 | AO5: 9.5 | AP5: 9.4 | AQ5: 9.3 | AR5: 9.2 | AS5: 9.1 | AT5: 9 | AU5: 8.9 | AV5: 8.8 | AW5: 8.7 | AX5: 8.6 | AY5: 8.5 | AZ5: 8.4 | BA5: 8.3 | BB5: 8.2 | BC5: 8.1 | BD5: 8 | BE5: 7.9 | BF5: 7.8 | BG5: 7.7 | BH5: 7.6 | BI5: 7.5
A6: D 6 | C6: =D6+0.1 -> 13.2 | D6: =E6+0.1 -> 13.1 | E6: =F6+0.1 -> 13 | F6: =G6+0.1 -> 12.9 | G6: =H6+0.1 -> 12.8 | H6: =I6+0.1 -> 12.7 | I6: =J6+0.1 -> 12.6 | J6: =K6+0.1 -> 12.5 | K6: =L6+0.1 -> 12.4 | L6: =M6+0.1 -> 12.3 | M6: =N6+0.1 -> 12.2 | N6: =O6+0.1 -> 12.1 | O6: =P6+0.1 -> 12 | P6: =Q6+0.1 -> 11.9 | Q6: =R6+0.1 -> 11.8 | R6: =S6+0.1 -> 11.7 | S6: =T6+0.1 -> 11.6 | T6: =U6+0.1 -> 11.5 | U6: =V6+0.1 -> 11.4 | V6: =W6+0.1 -> 11.3 | W6: =X6+0.1 -> 11.2 | X6: =Y6+0.1 -> 11.1 | Y6: 11 | Z6: 10.9 | AA6: 10.8 | AB6: 10.7 | AC6: 10.6 | AD6: 10.5 | AE6: 10.4 | AF6: 10.3 | AG6: 10.2 | AH6: 10.1 | AI6: 10 | AJ6: 9.9 | AK6: 9.8 | AL6: 9.7 | AM6: 9.6 | AN6: 9.5 | AO6: 9.4 | AP6: 9.3 | AQ6: 9.2 | AR6: 9.1 | AS6: 9 | AT6: 8.9 | AU6: 8.8 | AV6: 8.7 | AW6: 8.6 | AX6: 8.5 | AY6: 8.4 | AZ6: 8.3 | BA6: 8.2 | BB6: 8.1 | BC6: 8 | BD6: 7.9 | BE6: 7.8 | BF6: 7.7 | BG6: 7.6 | BH6: 7.5 | BI6: 7.4
A7: D# 7 | C7: =D7+0.1 -> 13.2 | D7: =E7+0.1 -> 13.1 | E7: =F7+0.1 -> 13 | F7: =G7+0.1 -> 12.9 | G7: =H7+0.1 -> 12.8 | H7: =I7+0.1 -> 12.7 | I7: =J7+0.1 -> 12.6 | J7: =K7+0.1 -> 12.5 | K7: =L7+0.1 -> 12.4 | L7: =M7+0.1 -> 12.3 | M7: =N7+0.1 -> 12.2 | N7: =O7+0.1 -> 12.1 | O7: =P7+0.1 -> 12 | P7: =Q7+0.1 -> 11.9 | Q7: =R7+0.1 -> 11.8 | R7: =S7+0.1 -> 11.7 | S7: =T7+0.1 -> 11.6 | T7: =U7+0.1 -> 11.5 | U7: =V7+0.1 -> 11.4 | V7: =W7+0.1 -> 11.3 | W7: =X7+0.1 -> 11.2 | X7: =Y7+0.1 -> 11.1 | Y7: 11 | Z7: 10.9 | AA7: 10.8 | AB7: 10.7 | AC7: 10.6 | AD7: 16.2 | AE7: 10.4 | AF7: 10.3 | AG7: 10.2 | AH7: 10.1 | AI7: 10 | AJ7: 9.9 | AK7: 9.8 | AL7: 9.7 | AM7: 9.6 | AN7: 9.5 | AO7: 9.4 | AP7: 9.3 | AQ7: 9.2 | AR7: 9.1 | AS7: 9 | AT7: 8.9 | AU7: 8.8 | AV7: 8.7 | AW7: 8.6 | AX7: 8.5 | AY7: 8.4 | AZ7: 8.3 | BA7: 8.2 | BB7: 8.1 | BC7: 8 | BD7: 7.9 | BE7: 7.8 | BF7: 7.7 | BG7: 7.6 | BH7: 7.5 | BI7: 7.4
A8: E 8 | C8: =D8+0.1 -> 13.2 | D8: =E8+0.1 -> 13.1 | E8: =F8+0.1 -> 13 | F8: =G8+0.1 -> 12.9 | G8: =H8+0.1 -> 12.8 | H8: =I8+0.1 -> 12.7 | I8: =J8+0.1 -> 12.6 | J8: =K8+0.1 -> 12.5 | K8: =L8+0.1 -> 12.4 | L8: =M8+0.1 -> 12.3 | M8: =N8+0.1 -> 12.2 | N8: =O8+0.1 -> 12.1 | O8: =P8+0.1 -> 12 | P8: =Q8+0.1 -> 11.9 | Q8: =R8+0.1 -> 11.8 | R8: =S8+0.1 -> 11.7 | S8: =T8+0.1 -> 11.6 | T8: =U8+0.1 -> 11.5 | U8: =V8+0.1 -> 11.4 | V8: =W8+0.1 -> 11.3 | W8: =X8+0.1 -> 11.2 | X8: =Y8+0.1 -> 11.1 | Y8: 11 | Z8: 10.9 | AA8: 10.8 | AB8: 10.7 | AC8: 10.6 | AD8: 130 | AE8: 10.4 | AF8: 10.3 | AG8: 10.2 | AH8: 10.1 | AI8: 10 | AJ8: 9.9 | AK8: 9.8 | AL8: 9.7 | AM8: 9.6 | AN8: 9.5 | AO8: 9.4 | AP8: 9.3 | AQ8: 9.2 | AR8: 9.1 | AS8: 9 | AT8: 8.9 | AU8: 8.8 | AV8: 8.7 | AW8: 8.6 | AX8: 8.5 | AY8: 8.4 | AZ8: 8.3 | BA8: 8.2 | BB8: 8.1 | BC8: 8 | BD8: 7.9 | BE8: 7.8 | BF8: 7.7 | BG8: 7.6 | BH8: 7.5 | BI8: 7.4
A9: F 9 | C9: =D9+0.1 -> 13.1 | D9: =E9+0.1 -> 13 | E9: =F9+0.1 -> 12.9 | F9: =G9+0.1 -> 12.8 | G9: =H9+0.1 -> 12.7 | H9: =I9+0.1 -> 12.6 | I9: =J9+0.1 -> 12.5 | J9: =K9+0.1 -> 12.4 | K9: =L9+0.1 -> 12.3 | L9: =M9+0.1 -> 12.2 | M9: =N9+0.1 -> 12.1 | N9: =O9+0.1 -> 12 | O9: =P9+0.1 -> 11.9 | P9: =Q9+0.1 -> 11.8 | Q9: =R9+0.1 -> 11.7 | R9: =S9+0.1 -> 11.6 | S9: =T9+0.1 -> 11.5 | T9: =U9+0.1 -> 11.4 | U9: =V9+0.1 -> 11.3 | V9: =W9+0.1 -> 11.2 | W9: =X9+0.1 -> 11.1 | X9: =Y9+0.1 -> 11 | Y9: 10.9 | Z9: 10.8 | AA9: 10.7 | AB9: 10.6 | AC9: 10.5 | AD9: 10.4 | AE9: 10.3 | AF9: 10.2 | AG9: 10.1 | AH9: 10 | AI9: 9.9 | AJ9: 9.8 | AK9: 9.7 | AL9: 9.6 | AM9: 9.5 | AN9: 9.4 | AO9: 9.3 | AP9: 9.2 | AQ9: 9.1 | AR9: 9 | AS9: 8.9 | AT9: 8.8 | AU9: 8.7 | AV9: 8.6 | AW9: 8.5 | AX9: 8.4 | AY9: 8.3 | AZ9: 8.2 | BA9: 8.1 | BB9: 8 | BC9: 7.9 | BD9: 7.8 | BE9: 7.7 | BF9: 7.6 | BG9: 7.5 | BH9: 7.4 | BI9: 7.3
A10: F# 10 | C10: =D10+0.1 -> 13.1 | D10: =E10+0.1 -> 13 | E10: =F10+0.1 -> 12.9 | F10: =G10+0.1 -> 12.8 | G10: =H10+0.1 -> 12.7 | H10: =I10+0.1 -> 12.6 | I10: =J10+0.1 -> 12.5 | J10: =K10+0.1 -> 12.4 | K10: =L10+0.1 -> 12.3 | L10: =M10+0.1 -> 12.2 | M10: =N10+0.1 -> 12.1 | N10: =O10+0.1 -> 12 | O10: =P10+0.1 -> 11.9 | P10: =Q10+0.1 -> 11.8 | Q10: =R10+0.1 -> 11.7 | R10: =S10+0.1 -> 11.6 | S10: =T10+0.1 -> 11.5 | T10: =U10+0.1 -> 11.4 | U10: =V10+0.1 -> 11.3 | V10: =W10+0.1 -> 11.2 | W10: =X10+0.1 -> 11.1 | X10: =Y10+0.1 -> 11 | Y10: 10.9 | Z10: 10.8 | AA10: 10.7 | AB10: 10.6 | AC10: 10.5 | AD10: 10.4 | AE10: 10.3 | AF10: 10.2 | AG10: 10.1 | AH10: 10 | AI10: 9.9 | AJ10: 9.8 | AK10: 9.7 | AL10: 9.6 | AM10: 9.5 | AN10: 9.4 | AO10: 9.3 | AP10: 9.2 | AQ10: 9.1 | AR10: 9 | AS10: 8.9 | AT10: 8.8 | AU10: 8.7 | AV10: 8.6 | AW10: 8.5 | AX10: 8.4 | AY10: 8.3 | AZ10: 8.2 | BA10: 8.1 | BB10: 8 | BC10: 7.9 | BD10: 7.8 | BE10: 7.7 | BF10: 7.6 | BG10: 7.5 | BH10: 7.4 | BI10: 7.3
A11: G 11 | C11: =D11+0.1 -> 13 | D11: =E11+0.1 -> 12.9 | E11: =F11+0.1 -> 12.8 | F11: =G11+0.1 -> 12.7 | G11: =H11+0.1 -> 12.6 | H11: =I11+0.1 -> 12.5 | I11: =J11+0.1 -> 12.4 | J11: =K11+0.1 -> 12.3 | K11: =L11+0.1 -> 12.2 | L11: =M11+0.1 -> 12.1 | M11: =N11+0.1 -> 12 | N11: =O11+0.1 -> 11.9 | O11: =P11+0.1 -> 11.8 | P11: =Q11+0.1 -> 11.7 | Q11: =R11+0.1 -> 11.6 | R11: =S11+0.1 -> 11.5 | S11: =T11+0.1 -> 11.4 | T11: =U11+0.1 -> 11.3 | U11: =V11+0.1 -> 11.2 | V11: =W11+0.1 -> 11.1 | W11: =X11+0.1 -> 11 | X11: =Y11+0.1 -> 10.9 | Y11: 10.8 | Z11: 10.7 | AA11: 10.6 | AB11: 10.5 | AC11: 10.4 | AD11: 10.3 | AE11: 10.2 | AF11: 10.1 | AG11: 10 | AH11: 9.9 | AI11: 9.8 | AJ11: 9.7 | AK11: 9.6 | AL11: 9.5 | AM11: 9.4 | AN11: 9.3 | AO11: 9.2 | AP11: 9.1 | AQ11: 9 | AR11: 8.9 | AS11: 8.8 | AT11: 8.7 | AU11: 8.6 | AV11: 8.5 | AW11: 8.4 | AX11: 8.3 | AY11: 8.2 | AZ11: 8.1 | BA11: 8 | BB11: 7.9 | BC11: 7.8 | BD11: 7.7 | BE11: 7.6 | BF11: 7.5 | BG11: 7.4 | BH11: 7.3 | BI11: 7.2
A12: G# 12 | C12: =D12+0.1 -> 13 | D12: =E12+0.1 -> 12.9 | E12: =F12+0.1 -> 12.8 | F12: =G12+0.1 -> 12.7 | G12: =H12+0.1 -> 12.6 | H12: =I12+0.1 -> 12.5 | I12: =J12+0.1 -> 12.4 | J12: =K12+0.1 -> 12.3 | K12: =L12+0.1 -> 12.2 | L12: =M12+0.1 -> 12.1 | M12: =N12+0.1 -> 12 | N12: =O12+0.1 -> 11.9 | O12: =P12+0.1 -> 11.8 | P12: =Q12+0.1 -> 11.7 | Q12: =R12+0.1 -> 11.6 | R12: =S12+0.1 -> 11.5 | S12: =T12+0.1 -> 11.4 | T12: =U12+0.1 -> 11.3 | U12: =V12+0.1 -> 11.2 | V12: =W12+0.1 -> 11.1 | W12: =X12+0.1 -> 11 | X12: =Y12+0.1 -> 10.9 | Y12: 10.8 | Z12: 10.7 | AA12: 10.6 | AB12: 10.5 | AC12: 10.4 | AD12: 10.3 | AE12: 10.2 | AF12: 10.1 | AG12: 10 | AH12: 9.9 | AI12: 9.8 | AJ12: 9.7 | AK12: 9.6 | AL12: 9.5 | AM12: 9.4 | AN12: 9.3 | AO12: 9.2 | AP12: 9.1 | AQ12: 9 | AR12: 8.9 | AS12: 8.8 | AT12: 8.7 | AU12: 8.6 | AV12: 8.5 | AW12: 8.4 | AX12: 8.3 | AY12: 8.2 | AZ12: 8.1 | BA12: 8 | BB12: 7.9 | BC12: 7.8 | BD12: 7.7 | BE12: 7.6 | BF12: 7.5 | BG12: 7.4 | BH12: 7.3 | BI12: 7.2
A13: A 13 | C13: =D13+0.1 -> 13 | D13: =E13+0.1 -> 12.9 | E13: =F13+0.1 -> 12.8 | F13: =G13+0.1 -> 12.7 | G13: =H13+0.1 -> 12.6 | H13: =I13+0.1 -> 12.5 | I13: =J13+0.1 -> 12.4 | J13: =K13+0.1 -> 12.3 | K13: =L13+0.1 -> 12.2 | L13: =M13+0.1 -> 12.1 | M13: =N13+0.1 -> 12 | N13: =O13+0.1 -> 11.9 | O13: =P13+0.1 -> 11.8 | P13: =Q13+0.1 -> 11.7 | Q13: =R13+0.1 -> 11.6 | R13: =S13+0.1 -> 11.5 | S13: =T13+0.1 -> 11.4 | T13: =U13+0.1 -> 11.3 | U13: =V13+0.1 -> 11.2 | V13: =W13+0.1 -> 11.1 | W13: =X13+0.1 -> 11 | X13: =Y13+0.1 -> 10.9 | Y13: 10.8 | Z13: 10.7 | AA13: 10.6 | AB13: 10.5 | AC13: 10.4 | AD13: 10.3 | AE13: 10.2 | AF13: 10.1 | AG13: 10 | AH13: 9.9 | AI13: 9.8 | AJ13: 9.7 | AK13: 9.6 | AL13: 9.5 | AM13: 9.4 | AN13: 9.3 | AO13: 9.2 | AP13: 9.1 | AQ13: 9 | AR13: 8.9 | AS13: 8.8 | AT13: 8.7 | AU13: 8.6 | AV13: 8.5 | AW13: 8.4 | AX13: 8.3 | AY13: 8.2 | AZ13: 8.1 | BA13: 8 | BB13: 7.9 | BC13: 7.8 | BD13: 7.7 | BE13: 7.6 | BF13: 7.5 | BG13: 7.4 | BH13: 7.3 | BI13: 7.2
A14: A# 14 | C14: =D14+0.1 -> 12.9 | D14: =E14+0.1 -> 12.8 | E14: =F14+0.1 -> 12.7 | F14: =G14+0.1 -> 12.6 | G14: =H14+0.1 -> 12.5 | H14: =I14+0.1 -> 12.4 | I14: =J14+0.1 -> 12.3 | J14: =K14+0.1 -> 12.2 | K14: =L14+0.1 -> 12.1 | L14: =M14+0.1 -> 12 | M14: =N14+0.1 -> 11.9 | N14: =O14+0.1 -> 11.8 | O14: =P14+0.1 -> 11.7 | P14: =Q14+0.1 -> 11.6 | Q14: =R14+0.1 -> 11.5 | R14: =S14+0.1 -> 11.4 | S14: =T14+0.1 -> 11.3 | T14: =U14+0.1 -> 11.2 | U14: =V14+0.1 -> 11.1 | V14: =W14+0.1 -> 11 | W14: =X14+0.1 -> 10.9 | X14: =Y14+0.1 -> 10.8 | Y14: 10.7 | Z14: 10.6 | AA14: 10.5 | AB14: 10.4 | AC14: 10.3 | AD14: 10.2 | AE14: 10.1 | AF14: 10 | AG14: 9.9 | AH14: 9.8 | AI14: 9.7 | AJ14: 9.6 | AK14: 9.5 | AL14: 9.4 | AM14: 9.3 | AN14: 9.2 | AO14: 9.1 | AP14: 9 | AQ14: 8.9 | AR14: 8.8 | AS14: 8.7 | AT14: 8.6 | AU14: 8.5 | AV14: 8.4 | AW14: 8.3 | AX14: 8.2 | AY14: 8.1 | AZ14: 8 | BA14: 7.9 | BB14: 7.8 | BC14: 7.7 | BD14: 7.6 | BE14: 7.5 | BF14: 7.4 | BG14: 7.3 | BH14: 7.2 | BI14: 7.1
A15: B 15 | C15: =D15+0.1 -> 12.9 | D15: =E15+0.1 -> 12.8 | E15: =F15+0.1 -> 12.7 | F15: =G15+0.1 -> 12.6 | G15: =H15+0.1 -> 12.5 | H15: =I15+0.1 -> 12.4 | I15: =J15+0.1 -> 12.3 | J15: =K15+0.1 -> 12.2 | K15: =L15+0.1 -> 12.1 | L15: =M15+0.1 -> 12 | M15: =N15+0.1 -> 11.9 | N15: =O15+0.1 -> 11.8 | O15: =P15+0.1 -> 11.7 | P15: =Q15+0.1 -> 11.6 | Q15: =R15+0.1 -> 11.5 | R15: =S15+0.1 -> 11.4 | S15: =T15+0.1 -> 11.3 | T15: =U15+0.1 -> 11.2 | U15: =V15+0.1 -> 11.1 | V15: =W15+0.1 -> 11 | W15: =X15+0.1 -> 10.9 | X15: =Y15+0.1 -> 10.8 | Y15: 10.7 | Z15: 10.6 | AA15: 10.5 | AB15: 10.4 | AC15: 10.3 | AD15: 10.2 | AE15: 10.1 | AF15: 10 | AG15: 9.9 | AH15: 9.8 | AI15: 9.7 | AJ15: 9.6 | AK15: 9.5 | AL15: 9.4 | AM15: 9.3 | AN15: 9.2 | AO15: 9.1 | AP15: 9 | AQ15: 8.9 | AR15: 8.8 | AS15: 8.7 | AT15: 8.6 | AU15: 8.5 | AV15: 8.4 | AW15: 8.3 | AX15: 8.2 | AY15: 8.1 | AZ15: 8 | BA15: 7.9 | BB15: 7.8 | BC15: 7.7 | BD15: 7.6 | BE15: 7.5 | BF15: 7.4 | BG15: 7.3 | BH15: 7.2 | BI15: 7.1
A16: C 16 | C16: =D16+0.1 -> 12.8 | D16: =E16+0.1 -> 12.7 | E16: =F16+0.1 -> 12.6 | F16: =G16+0.1 -> 12.5 | G16: =H16+0.1 -> 12.4 | H16: =I16+0.1 -> 12.3 | I16: =J16+0.1 -> 12.2 | J16: =K16+0.1 -> 12.1 | K16: =L16+0.1 -> 12 | L16: =M16+0.1 -> 11.9 | M16: =N16+0.1 -> 11.8 | N16: =O16+0.1 -> 11.7 | O16: =P16+0.1 -> 11.6 | P16: =Q16+0.1 -> 11.5 | Q16: =R16+0.1 -> 11.4 | R16: =S16+0.1 -> 11.3 | S16: =T16+0.1 -> 11.2 | T16: =U16+0.1 -> 11.1 | U16: =V16+0.1 -> 11 | V16: =W16+0.1 -> 10.9 | W16: =X16+0.1 -> 10.8 | X16: =Y16+0.1 -> 10.7 | Y16: 10.6 | Z16: 10.5 | AA16: 10.4 | AB16: 10.3 | AC16: 10.2 | AD16: 10.1 | AE16: 10 | AF16: 9.9 | AG16: 9.8 | AH16: 9.7 | AI16: 9.6 | AJ16: 9.5 | AK16: 9.4 | AL16: 9.3 | AM16: 9.2 | AN16: 9.1 | AO16: 9 | AP16: 8.9 | AQ16: 8.8 | AR16: 8.7 | AS16: 8.6 | AT16: 8.5 | AU16: 8.4 | AV16: 8.3 | AW16: 8.2 | AX16: 8.1 | AY16: 8 | AZ16: 7.9 | BA16: 7.8 | BB16: 7.7 | BC16: 7.6 | BD16: 7.5 | BE16: 7.4 | BF16: 7.3 | BG16: 7.2 | BH16: 7.1 | BI16: 7
A17: C# 17 | C17: =D17+0.1 -> 12.8 | D17: =E17+0.1 -> 12.7 | E17: =F17+0.1 -> 12.6 | F17: =G17+0.1 -> 12.5 | G17: =H17+0.1 -> 12.4 | H17: =I17+0.1 -> 12.3 | I17: =J17+0.1 -> 12.2 | J17: =K17+0.1 -> 12.1 | K17: =L17+0.1 -> 12 | L17: =M17+0.1 -> 11.9 | M17: =N17+0.1 -> 11.8 | N17: =O17+0.1 -> 11.7 | O17: =P17+0.1 -> 11.6 | P17: =Q17+0.1 -> 11.5 | Q17: =R17+0.1 -> 11.4 | R17: =S17+0.1 -> 11.3 | S17: =T17+0.1 -> 11.2 | T17: =U17+0.1 -> 11.1 | U17: =V17+0.1 -> 11 | V17: =W17+0.1 -> 10.9 | W17: =X17+0.1 -> 10.8 | X17: =Y17+0.1 -> 10.7 | Y17: 10.6 | Z17: 10.5 | AA17: 10.4 | AB17: 10.3 | AC17: 10.2 | AD17: 10.1 | AE17: 10 | AF17: 9.9 | AG17: 9.8 | AH17: 9.7 | AI17: 9.6 | AJ17: 9.5 | AK17: 9.4 | AL17: 9.3 | AM17: 9.2 | AN17: 9.1 | AO17: 9 | AP17: 8.9 | AQ17: 8.8 | AR17: 8.7 | AS17: 8.6 | AT17: 8.5 | AU17: 8.4 | AV17: 8.3 | AW17: 8.2 | AX17: 8.1 | AY17: 8 | AZ17: 7.9 | BA17: 7.8 | BB17: 7.7 | BC17: 7.6 | BD17: 7.5 | BE17: 7.4 | BF17: 7.3 | BG17: 7.2 | BH17: 7.1 | BI17: 7
A18: D 18 | C18: =D18+0.1 -> 12.8 | D18: =E18+0.1 -> 12.7 | E18: =F18+0.1 -> 12.6 | F18: =G18+0.1 -> 12.5 | G18: =H18+0.1 -> 12.4 | H18: =I18+0.1 -> 12.3 | I18: =J18+0.1 -> 12.2 | J18: =K18+0.1 -> 12.1 | K18: =L18+0.1 -> 12 | L18: =M18+0.1 -> 11.9 | M18: =N18+0.1 -> 11.8 | N18: =O18+0.1 -> 11.7 | O18: =P18+0.1 -> 11.6 | P18: =Q18+0.1 -> 11.5 | Q18: =R18+0.1 -> 11.4 | R18: =S18+0.1 -> 11.3 | S18: =T18+0.1 -> 11.2 | T18: =U18+0.1 -> 11.1 | U18: =V18+0.1 -> 11 | V18: =W18+0.1 -> 10.9 | W18: =X18+0.1 -> 10.8 | X18: =Y18+0.1 -> 10.7 | Y18: 10.6 | Z18: 10.5 | AA18: 10.4 | AB18: 10.3 | AC18: 10.2 | AD18: 10.1 | AE18: 10 | AF18: 9.9 | AG18: 9.8 | AH18: 9.7 | AI18: 9.6 | AJ18: 9.5 | AK18: 9.4 | AL18: 9.3 | AM18: 9.2 | AN18: 9.1 | AO18: 9 | AP18: 8.9 | AQ18: 8.8 | AR18: 8.7 | AS18: 8.6 | AT18: 8.5 | AU18: 8.4 | AV18: 8.3 | AW18: 8.2 | AX18: 8.1 | AY18: 8 | AZ18: 7.9 | BA18: 7.8 | BB18: 7.7 | BC18: 7.6 | BD18: 7.5 | BE18: 7.4 | BF18: 7.3 | BG18: 7.2 | BH18: 7.1 | BI18: 7
A19: D# 19 | C19: =D19+0.1 -> 12.7 | D19: =E19+0.1 -> 12.6 | E19: =F19+0.1 -> 12.5 | F19: =G19+0.1 -> 12.4 | G19: =H19+0.1 -> 12.3 | H19: =I19+0.1 -> 12.2 | I19: =J19+0.1 -> 12.1 | J19: =K19+0.1 -> 12 | K19: =L19+0.1 -> 11.9 | L19: =M19+0.1 -> 11.8 | M19: =N19+0.1 -> 11.7 | N19: =O19+0.1 -> 11.6 | O19: =P19+0.1 -> 11.5 | P19: =Q19+0.1 -> 11.4 | Q19: =R19+0.1 -> 11.3 | R19: =S19+0.1 -> 11.2 | S19: =T19+0.1 -> 11.1 | T19: =U19+0.1 -> 11 | U19: =V19+0.1 -> 10.9 | V19: =W19+0.1 -> 10.8 | W19: =X19+0.1 -> 10.7 | X19: =Y19+0.1 -> 10.6 | Y19: 10.5 | Z19: 10.4 | AA19: 10.3 | AB19: 10.2 | AC19: 10.1 | AD19: 10 | AE19: 9.9 | AF19: 9.8 | AG19: 9.7 | AH19: 9.6 | AI19: 9.5 | AJ19: 9.4 | AK19: 9.3 | AL19: 9.2 | AM19: 9.1 | AN19: 9 | AO19: 8.9 | AP19: 8.8 | AQ19: 8.7 | AR19: 8.6 | AS19: 8.5 | AT19: 8.4 | AU19: 8.3 | AV19: 8.2 | AW19: 8.1 | AX19: 8 | AY19: 7.9 | AZ19: 7.8 | BA19: 7.7 | BB19: 7.6 | BC19: 7.5 | BD19: 7.4 | BE19: 7.3 | BF19: 7.2 | BG19: 7.1 | BH19: 7 | BI19: 6.9
A20: E 20 | C20: =D20+0.1 -> 12.7 | D20: =E20+0.1 -> 12.6 | E20: =F20+0.1 -> 12.5 | F20: =G20+0.1 -> 12.4 | G20: =H20+0.1 -> 12.3 | H20: =I20+0.1 -> 12.2 | I20: =J20+0.1 -> 12.1 | J20: =K20+0.1 -> 12 | K20: =L20+0.1 -> 11.9 | L20: =M20+0.1 -> 11.8 | M20: =N20+0.1 -> 11.7 | N20: =O20+0.1 -> 11.6 | O20: =P20+0.1 -> 11.5 | P20: =Q20+0.1 -> 11.4 | Q20: =R20+0.1 -> 11.3 | R20: =S20+0.1 -> 11.2 | S20: =T20+0.1 -> 11.1 | T20: =U20+0.1 -> 11 | U20: =V20+0.1 -> 10.9 | V20: =W20+0.1 -> 10.8 | W20: =X20+0.1 -> 10.7 | X20: =Y20+0.1 -> 10.6 | Y20: 10.5 | Z20: 10.4 | AA20: 10.3 | AB20: 10.2 | AC20: 10.1 | AD20: 10 | AE20: 9.9 | AF20: 9.8 | AG20: 9.7 | AH20: 9.6 | AI20: 9.5 | AJ20: 9.4 | AK20: 9.3 | AL20: 9.2 | AM20: 9.1 | AN20: 9 | AO20: 8.9 | AP20: 8.8 | AQ20: 8.7 | AR20: 8.6 | AS20: 8.5 | AT20: 8.4 | AU20: 8.3 | AV20: 8.2 | AW20: 8.1 | AX20: 8 | AY20: 7.9 | AZ20: 7.8 | BA20: 7.7 | BB20: 7.6 | BC20: 7.5 | BD20: 7.4 | BE20: 7.3 | BF20: 7.2 | BG20: 7.1 | BH20: 7 | BI20: 6.9
A21: F 21 | C21: =D21+0.1 -> 12.6 | D21: =E21+0.1 -> 12.5 | E21: =F21+0.1 -> 12.4 | F21: =G21+0.1 -> 12.3 | G21: =H21+0.1 -> 12.2 | H21: =I21+0.1 -> 12.1 | I21: =J21+0.1 -> 12 | J21: =K21+0.1 -> 11.9 | K21: =L21+0.1 -> 11.8 | L21: =M21+0.1 -> 11.7 | M21: =N21+0.1 -> 11.6 | N21: =O21+0.1 -> 11.5 | O21: =P21+0.1 -> 11.4 | P21: =Q21+0.1 -> 11.3 | Q21: =R21+0.1 -> 11.2 | R21: =S21+0.1 -> 11.1 | S21: =T21+0.1 -> 11 | T21: =U21+0.1 -> 10.9 | U21: =V21+0.1 -> 10.8 | V21: =W21+0.1 -> 10.7 | W21: =X21+0.1 -> 10.6 | X21: =Y21+0.1 -> 10.5 | Y21: 10.4 | Z21: 10.3 | AA21: 10.2 | AB21: 10.1 | AC21: 10 | AD21: 9.9 | AE21: 9.8 | AF21: 9.7 | AG21: 9.6 | AH21: 9.5 | AI21: 9.4 | AJ21: 9.3 | AK21: 9.2 | AL21: 9.1 | AM21: 9 | AN21: 8.9 | AO21: 8.8 | AP21: 8.7 | AQ21: 8.6 | AR21: 8.5 | AS21: 8.4 | AT21: 8.3 | AU21: 8.2 | AV21: 8.1 | AW21: 8 | AX21: 7.9 | AY21: 7.8 | AZ21: 7.7 | BA21: 7.6 | BB21: 7.5 | BC21: 7.4 | BD21: 7.3 | BE21: 7.2 | BF21: 7.1 | BG21: 7 | BH21: 6.9 | BI21: 6.8
A22: F# 22 | C22: =D22+0.1 -> 12.6 | D22: =E22+0.1 -> 12.5 | E22: =F22+0.1 -> 12.4 | F22: =G22+0.1 -> 12.3 | G22: =H22+0.1 -> 12.2 | H22: =I22+0.1 -> 12.1 | I22: =J22+0.1 -> 12 | J22: =K22+0.1 -> 11.9 | K22: =L22+0.1 -> 11.8 | L22: =M22+0.1 -> 11.7 | M22: =N22+0.1 -> 11.6 | N22: =O22+0.1 -> 11.5 | O22: =P22+0.1 -> 11.4 | P22: =Q22+0.1 -> 11.3 | Q22: =R22+0.1 -> 11.2 | R22: =S22+0.1 -> 11.1 | S22: =T22+0.1 -> 11 | T22: =U22+0.1 -> 10.9 | U22: =V22+0.1 -> 10.8 | V22: =W22+0.1 -> 10.7 | W22: =X22+0.1 -> 10.6 | X22: =Y22+0.1 -> 10.5 | Y22: 10.4 | Z22: 10.3 | AA22: 10.2 | AB22: 10.1 | AC22: 10 | AD22: 9.9 | AE22: 9.8 | AF22: 9.7 | AG22: 9.6 | AH22: 9.5 | AI22: 9.4 | AJ22: 9.3 | AK22: 9.2 | AL22: 9.1 | AM22: 9 | AN22: 8.9 | AO22: 8.8 | AP22: 8.7 | AQ22: 8.6 | AR22: 8.5 | AS22: 8.4 | AT22: 8.3 | AU22: 8.2 | AV22: 8.1 | AW22: 8 | AX22: 7.9 | AY22: 7.8 | AZ22: 7.7 | BA22: 7.6 | BB22: 7.5 | BC22: 7.4 | BD22: 7.3 | BE22: 7.2 | BF22: 7.1 | BG22: 7 | BH22: 6.9 | BI22: 6.8
A23: G 23 | C23: =D23+0.1 -> 12.5 | D23: =E23+0.1 -> 12.4 | E23: =F23+0.1 -> 12.3 | F23: =G23+0.1 -> 12.2 | G23: =H23+0.1 -> 12.1 | H23: =I23+0.1 -> 12 | I23: =J23+0.1 -> 11.9 | J23: =K23+0.1 -> 11.8 | K23: =L23+0.1 -> 11.7 | L23: =M23+0.1 -> 11.6 | M23: =N23+0.1 -> 11.5 | N23: =O23+0.1 -> 11.4 | O23: =P23+0.1 -> 11.3 | P23: =Q23+0.1 -> 11.2 | Q23: =R23+0.1 -> 11.1 | R23: =S23+0.1 -> 11 | S23: =T23+0.1 -> 10.9 | T23: =U23+0.1 -> 10.8 | U23: =V23+0.1 -> 10.7 | V23: =W23+0.1 -> 10.6 | W23: =X23+0.1 -> 10.5 | X23: =Y23+0.1 -> 10.4 | Y23: 10.3 | Z23: 10.2 | AA23: 10.1 | AB23: 10 | AC23: 9.9 | AD23: 9.8 | AE23: 9.7 | AF23: 9.6 | AG23: 9.5 | AH23: 9.4 | AI23: 9.3 | AJ23: 9.2 | AK23: 9.1 | AL23: 9 | AM23: 8.9 | AN23: 8.8 | AO23: 8.7 | AP23: 8.6 | AQ23: 8.5 | AR23: 8.4 | AS23: 8.3 | AT23: 8.2 | AU23: 8.1 | AV23: 8 | AW23: 7.9 | AX23: 7.8 | AY23: 7.7 | AZ23: 7.6 | BA23: 7.5 | BB23: 7.4 | BC23: 7.3 | BD23: 7.2 | BE23: 7.1 | BF23: 7 | BG23: 6.9 | BH23: 6.8 | BI23: 6.7
A24: G# 24 | C24: =D24+0.1 -> 12.5 | D24: =E24+0.1 -> 12.4 | E24: =F24+0.1 -> 12.3 | F24: =G24+0.1 -> 12.2 | G24: =H24+0.1 -> 12.1 | H24: =I24+0.1 -> 12 | I24: =J24+0.1 -> 11.9 | J24: =K24+0.1 -> 11.8 | K24: =L24+0.1 -> 11.7 | L24: =M24+0.1 -> 11.6 | M24: =N24+0.1 -> 11.5 | N24: =O24+0.1 -> 11.4 | O24: =P24+0.1 -> 11.3 | P24: =Q24+0.1 -> 11.2 | Q24: =R24+0.1 -> 11.1 | R24: =S24+0.1 -> 11 | S24: =T24+0.1 -> 10.9 | T24: =U24+0.1 -> 10.8 | U24: =V24+0.1 -> 10.7 | V24: =W24+0.1 -> 10.6 | W24: =X24+0.1 -> 10.5 | X24: =Y24+0.1 -> 10.4 | Y24: 10.3 | Z24: 10.2 | AA24: 10.1 | AB24: 10 | AC24: 9.9 | AD24: 9.8 | AE24: 9.7 | AF24: 9.6 | AG24: 9.5 | AH24: 9.4 | AI24: 9.3 | AJ24: 9.2 | AK24: 9.1 | AL24: 9 | AM24: 8.9 | AN24: 8.8 | AO24: 8.7 | AP24: 8.6 | AQ24: 8.5 | AR24: 8.4 | AS24: 8.3 | AT24: 8.2 | AU24: 8.1 | AV24: 8 | AW24: 7.9 | AX24: 7.8 | AY24: 7.7 | AZ24: 7.6 | BA24: 7.5 | BB24: 7.4 | BC24: 7.3 | BD24: 7.2 | BE24: 7.1 | BF24: 7 | BG24: 6.9 | BH24: 6.8 | BI24: 6.7
A25: A 25 | C25: =D25+0.1 -> 12.4 | D25: =E25+0.1 -> 12.3 | E25: =F25+0.1 -> 12.2 | F25: =G25+0.1 -> 12.1 | G25: =H25+0.1 -> 12 | H25: =I25+0.1 -> 11.9 | I25: =J25+0.1 -> 11.8 | J25: =K25+0.1 -> 11.7 | K25: =L25+0.1 -> 11.6 | L25: =M25+0.1 -> 11.5 | M25: =N25+0.1 -> 11.4 | N25: =O25+0.1 -> 11.3 | O25: =P25+0.1 -> 11.2 | P25: =Q25+0.1 -> 11.1 | Q25: =R25+0.1 -> 11 | R25: =S25+0.1 -> 10.9 | S25: =T25+0.1 -> 10.8 | T25: =U25+0.1 -> 10.7 | U25: =V25+0.1 -> 10.6 | V25: =W25+0.1 -> 10.5 | W25: =X25+0.1 -> 10.4 | X25: =Y25+0.1 -> 10.3 | Y25: 10.2 | Z25: 10.1 | AA25: 10 | AB25: 9.9 | AC25: 9.8 | AD25: 9.7 | AE25: 9.6 | AF25: 9.5 | AG25: 9.4 | AH25: 9.3 | AI25: 9.2 | AJ25: 9.1 | AK25: 9 | AL25: 8.9 | AM25: 8.8 | AN25: 8.7 | AO25: 8.6 | AP25: 8.5 | AQ25: 8.4 | AR25: 8.3 | AS25: 8.2 | AT25: 8.1 | AU25: 8 | AV25: 7.9 | AW25: 7.8 | AX25: 7.7 | AY25: 7.6 | AZ25: 7.5 | BA25: 7.4 | BB25: 7.3 | BC25: 7.2 | BD25: 7.1 | BE25: 7 | BF25: 6.9 | BG25: 6.8 | BH25: 6.7 | BI25: 6.6
A26: A# 26 | C26: =D26+0.1 -> 12.4 | D26: =E26+0.1 -> 12.3 | E26: =F26+0.1 -> 12.2 | F26: =G26+0.1 -> 12.1 | G26: =H26+0.1 -> 12 | H26: =I26+0.1 -> 11.9 | I26: =J26+0.1 -> 11.8 | J26: =K26+0.1 -> 11.7 | K26: =L26+0.1 -> 11.6 | L26: =M26+0.1 -> 11.5 | M26: =N26+0.1 -> 11.4 | N26: =O26+0.1 -> 11.3 | O26: =P26+0.1 -> 11.2 | P26: =Q26+0.1 -> 11.1 | Q26: =R26+0.1 -> 11 | R26: =S26+0.1 -> 10.9 | S26: =T26+0.1 -> 10.8 | T26: =U26+0.1 -> 10.7 | U26: =V26+0.1 -> 10.6 | V26: =W26+0.1 -> 10.5 | W26: =X26+0.1 -> 10.4 | X26: =Y26+0.1 -> 10.3 | Y26: 10.2 | Z26: 10.1 | AA26: 10 | AB26: 9.9 | AC26: 9.8 | AD26: 9.7 | AE26: 9.6 | AF26: 9.5 | AG26: 9.4 | AH26: 9.3 | AI26: 9.2 | AJ26: 9.1 | AK26: 9 | AL26: 8.9 | AM26: 8.8 | AN26: 8.7 | AO26: 8.6 | AP26: 8.5 | AQ26: 8.4 | AR26: 8.3 | AS26: 8.2 | AT26: 8.1 | AU26: 8 | AV26: 7.9 | AW26: 7.8 | AX26: 7.7 | AY26: 7.6 | AZ26: 7.5 | BA26: 7.4 | BB26: 7.3 | BC26: 7.2 | BD26: 7.1 | BE26: 7 | BF26: 6.9 | BG26: 6.8 | BH26: 6.7 | BI26: 6.6
A27: B 27 | C27: =D27+0.1 -> 12.4 | D27: =E27+0.1 -> 12.3 | E27: =F27+0.1 -> 12.2 | F27: =G27+0.1 -> 12.1 | G27: =H27+0.1 -> 12 | H27: =I27+0.1 -> 11.9 | I27: =J27+0.1 -> 11.8 | J27: =K27+0.1 -> 11.7 | K27: =L27+0.1 -> 11.6 | L27: =M27+0.1 -> 11.5 | M27: =N27+0.1 -> 11.4 | N27: =O27+0.1 -> 11.3 | O27: =P27+0.1 -> 11.2 | P27: =Q27+0.1 -> 11.1 | Q27: =R27+0.1 -> 11 | R27: =S27+0.1 -> 10.9 | S27: =T27+0.1 -> 10.8 | T27: =U27+0.1 -> 10.7 | U27: =V27+0.1 -> 10.6 | V27: =W27+0.1 -> 10.5 | W27: =X27+0.1 -> 10.4 | X27: =Y27+0.1 -> 10.3 | Y27: 10.2 | Z27: 10.1 | AA27: 10 | AB27: 9.9 | AC27: 9.8 | AD27: 9.7 | AE27: 9.6 | AF27: 9.5 | AG27: 9.4 | AH27: 9.3 | AI27: 9.2 | AJ27: 9.1 | AK27: 9 | AL27: 8.9 | AM27: 8.8 | AN27: 8.7 | AO27: 8.6 | AP27: 8.5 | AQ27: 8.4 | AR27: 8.3 | AS27: 8.2 | AT27: 8.1 | AU27: 8 | AV27: 7.9 | AW27: 7.8 | AX27: 7.7 | AY27: 7.6 | AZ27: 7.5 | BA27: 7.4 | BB27: 7.3 | BC27: 7.2 | BD27: 7.1 | BE27: 7 | BF27: 6.9 | BG27: 6.8 | BH27: 6.7 | BI27: 6.6
A28: C 28 | C28: =D28+0.1 -> 12.3 | D28: =E28+0.1 -> 12.2 | E28: =F28+0.1 -> 12.1 | F28: =G28+0.1 -> 12 | G28: =H28+0.1 -> 11.9 | H28: =I28+0.1 -> 11.8 | I28: =J28+0.1 -> 11.7 | J28: =K28+0.1 -> 11.6 | K28: =L28+0.1 -> 11.5 | L28: =M28+0.1 -> 11.4 | M28: =N28+0.1 -> 11.3 | N28: =O28+0.1 -> 11.2 | O28: =P28+0.1 -> 11.1 | P28: =Q28+0.1 -> 11 | Q28: =R28+0.1 -> 10.9 | R28: =S28+0.1 -> 10.8 | S28: =T28+0.1 -> 10.7 | T28: =U28+0.1 -> 10.6 | U28: =V28+0.1 -> 10.5 | V28: =W28+0.1 -> 10.4 | W28: =X28+0.1 -> 10.3 | X28: =Y28+0.1 -> 10.2 | Y28: 10.1 | Z28: 10 | AA28: 9.9 | AB28: 9.8 | AC28: 9.7 | AD28: 9.6 | AE28: 9.5 | AF28: 9.4 | AG28: 9.3 | AH28: 9.2 | AI28: 9.1 | AJ28: 9 | AK28: 8.9 | AL28: 8.8 | AM28: 8.7 | AN28: 8.6 | AO28: 8.5 | AP28: 8.4 | AQ28: 8.3 | AR28: 8.2 | AS28: 8.1 | AT28: 8 | AU28: 7.9 | AV28: 7.8 | AW28: 7.7 | AX28: 7.6 | AY28: 7.5 | AZ28: 7.4 | BA28: 7.3 | BB28: 7.2 | BC28: 7.1 | BD28: 7 | BE28: 6.9 | BF28: 6.8 | BG28: 6.7 | BH28: 6.6 | BI28: 6.5
A29: C# 29 | C29: =D29+0.1 -> 12.3 | D29: =E29+0.1 -> 12.2 | E29: =F29+0.1 -> 12.1 | F29: =G29+0.1 -> 12 | G29: =H29+0.1 -> 11.9 | H29: =I29+0.1 -> 11.8 | I29: =J29+0.1 -> 11.7 | J29: =K29+0.1 -> 11.6 | K29: =L29+0.1 -> 11.5 | L29: =M29+0.1 -> 11.4 | M29: =N29+0.1 -> 11.3 | N29: =O29+0.1 -> 11.2 | O29: =P29+0.1 -> 11.1 | P29: =Q29+0.1 -> 11 | Q29: =R29+0.1 -> 10.9 | R29: =S29+0.1 -> 10.8 | S29: =T29+0.1 -> 10.7 | T29: =U29+0.1 -> 10.6 | U29: =V29+0.1 -> 10.5 | V29: =W29+0.1 -> 10.4 | W29: =X29+0.1 -> 10.3 | X29: =Y29+0.1 -> 10.2 | Y29: 10.1 | Z29: 10 | AA29: 9.9 | AB29: 9.8 | AC29: 9.7 | AD29: 9.6 | AE29: 9.5 | AF29: 9.4 | AG29: 9.3 | AH29: 9.2 | AI29: 9.1 | AJ29: 9 | AK29: 8.9 | AL29: 8.8 | AM29: 8.7 | AN29: 8.6 | AO29: 8.5 | AP29: 8.4 | AQ29: 8.3 | AR29: 8.2 | AS29: 8.1 | AT29: 8 | AU29: 7.9 | AV29: 7.8 | AW29: 7.7 | AX29: 7.6 | AY29: 7.5 | AZ29: 7.4 | BA29: 7.3 | BB29: 7.2 | BC29: 7.1 | BD29: 7 | BE29: 6.9 | BF29: 6.8 | BG29: 6.7 | BH29: 6.6 | BI29: 6.5
A30: D 30 | C30: =D30+0.1 -> 12.2 | D30: =E30+0.1 -> 12.1 | E30: =F30+0.1 -> 12 | F30: =G30+0.1 -> 11.9 | G30: =H30+0.1 -> 11.8 | H30: =I30+0.1 -> 11.7 | I30: =J30+0.1 -> 11.6 | J30: =K30+0.1 -> 11.5 | K30: =L30+0.1 -> 11.4 | L30: =M30+0.1 -> 11.3 | M30: =N30+0.1 -> 11.2 | N30: =O30+0.1 -> 11.1 | O30: =P30+0.1 -> 11 | P30: =Q30+0.1 -> 10.9 | Q30: =R30+0.1 -> 10.8 | R30: =S30+0.1 -> 10.7 | S30: =T30+0.1 -> 10.6 | T30: =U30+0.1 -> 10.5 | U30: =V30+0.1 -> 10.4 | V30: =W30+0.1 -> 10.3 | W30: =X30+0.1 -> 10.2 | X30: =Y30+0.1 -> 10.1 | Y30: 10 | Z30: 9.9 | AA30: 9.8 | AB30: 9.7 | AC30: 9.6 | AD30: 9.5 | AG30: 9.2 | AH30: 9.1 | AI30: 9 | AJ30: 8.9 | AK30: 8.8 | AL30: 8.7 | AM30: 8.6 | AN30: 8.5 | AO30: 8.4 | AP30: 8.3 | AQ30: 8.2 | AR30: 8.1 | AS30: 8 | AT30: 7.9 | AU30: 7.8 | AV30: 7.7 | AW30: 7.6 | AX30: 7.5 | AY30: 7.4 | AZ30: 7.3 | BA30: 7.2 | BB30: 7.1 | BC30: 7 | BD30: 6.9 | BE30: 6.8 | BF30: 6.7 | BG30: 6.6 | BH30: 6.5 | BI30: 6.4
A31: D# 31 | C31: =D31+0.1 -> 12.2 | D31: =E31+0.1 -> 12.1 | E31: =F31+0.1 -> 12 | F31: =G31+0.1 -> 11.9 | G31: =H31+0.1 -> 11.8 | H31: =I31+0.1 -> 11.7 | I31: =J31+0.1 -> 11.6 | J31: =K31+0.1 -> 11.5 | K31: =L31+0.1 -> 11.4 | L31: =M31+0.1 -> 11.3 | M31: =N31+0.1 -> 11.2 | N31: =O31+0.1 -> 11.1 | O31: =P31+0.1 -> 11 | P31: =Q31+0.1 -> 10.9 | Q31: =R31+0.1 -> 10.8 | R31: =S31+0.1 -> 10.7 | S31: =T31+0.1 -> 10.6 | T31: =U31+0.1 -> 10.5 | U31: =V31+0.1 -> 10.4 | V31: =W31+0.1 -> 10.3 | W31: =X31+0.1 -> 10.2 | X31: =Y31+0.1 -> 10.1 | Y31: 10 | Z31: 9.9 | AA31: 9.8 | AB31: 9.7 | AC31: 9.6 | AD31: 9.5 | AE31: 93 | AF31: 9.3 | AG31: 9.2 | AH31: 9.1 | AI31: 9 | AJ31: 8.9 | AK31: 8.8 | AL31: 8.7 | AM31: 8.6 | AN31: 8.5 | AO31: 8.4 | AP31: 8.3 | AQ31: 8.2 | AR31: 8.1 | AS31: 8 | AT31: 7.9 | AU31: 7.8 | AV31: 7.7 | AW31: 7.6 | AX31: 7.5 | AY31: 7.4 | AZ31: 7.3 | BA31: 7.2 | BB31: 7.1 | BC31: 7 | BD31: 6.9 | BE31: 6.8 | BF31: 6.7 | BG31: 6.6 | BH31: 6.5 | BI31: 6.4
A32: E 32 | C32: =D32+0.1 -> 12.1 | D32: =E32+0.1 -> 12 | E32: =F32+0.1 -> 11.9 | F32: =G32+0.1 -> 11.8 | G32: =H32+0.1 -> 11.7 | H32: =I32+0.1 -> 11.6 | I32: =J32+0.1 -> 11.5 | J32: =K32+0.1 -> 11.4 | K32: =L32+0.1 -> 11.3 | L32: =M32+0.1 -> 11.2 | M32: =N32+0.1 -> 11.1 | N32: =O32+0.1 -> 11 | O32: =P32+0.1 -> 10.9 | P32: =Q32+0.1 -> 10.8 | Q32: =R32+0.1 -> 10.7 | R32: =S32+0.1 -> 10.6 | S32: =T32+0.1 -> 10.5 | T32: =U32+0.1 -> 10.4 | U32: =V32+0.1 -> 10.3 | V32: =W32+0.1 -> 10.2 | W32: =X32+0.1 -> 10.1 | X32: =Y32+0.1 -> 10 | Y32: 9.9 | Z32: 9.8 | AA32: 9.7 | AB32: 9.6 | AC32: 9.5 | AD32: 9.4 | AE32: 9.3 | AF32: 9.2 | AG32: 9.1 | AH32: 9 | AI32: 8.9 | AJ32: 8.8 | AK32: 8.7 | AL32: 8.6 | AM32: 8.5 | AN32: 8.4 | AO32: 8.3 | AP32: 8.2 | AQ32: 8.1 | AR32: 8 | AS32: 7.9 | AT32: 7.8 | AU32: 7.7 | AV32: 7.6 | AW32: 7.5 | AX32: 7.4 | AY32: 7.3 | AZ32: 7.2 | BA32: 7.1 | BB32: 7 | BC32: 6.9 | BD32: 6.8 | BE32: 6.7 | BF32: 6.6 | BG32: 6.5 | BH32: 6.4 | BI32: 6.3
A33: F 33 | C33: =D33+0.1 -> 12.1 | D33: =E33+0.1 -> 12 | E33: =F33+0.1 -> 11.9 | F33: =G33+0.1 -> 11.8 | G33: =H33+0.1 -> 11.7 | H33: =I33+0.1 -> 11.6 | I33: =J33+0.1 -> 11.5 | J33: =K33+0.1 -> 11.4 | K33: =L33+0.1 -> 11.3 | L33: =M33+0.1 -> 11.2 | M33: =N33+0.1 -> 11.1 | N33: =O33+0.1 -> 11 | O33: =P33+0.1 -> 10.9 | P33: =Q33+0.1 -> 10.8 | Q33: =R33+0.1 -> 10.7 | R33: =S33+0.1 -> 10.6 | S33: =T33+0.1 -> 10.5 | T33: =U33+0.1 -> 10.4 | U33: =V33+0.1 -> 10.3 | V33: =W33+0.1 -> 10.2 | W33: =X33+0.1 -> 10.1 | X33: =Y33+0.1 -> 10 | Y33: 9.9 | Z33: 9.8 | AA33: 9.7 | AB33: 9.6 | AC33: 9.5 | AD33: 9.4 | AE33: 9.3 | AF33: 9.2 | AG33: 9.1 | AH33: 9 | AI33: 8.9 | AJ33: 8.8 | AK33: 8.7 | AL33: 8.6 | AM33: 8.5 | AN33: 8.4 | AO33: 8.3 | AP33: 8.2 | AQ33: 8.1 | AR33: 8 | AS33: 7.9 | AT33: 7.8 | AU33: 7.7 | AV33: 7.6 | AW33: 7.5 | AX33: 7.4 | AY33: 7.3 | AZ33: 7.2 | BA33: 7.1 | BB33: 7 | BC33: 6.9 | BD33: 6.8 | BE33: 6.7 | BF33: 6.6 | BG33: 6.5 | BH33: 6.4 | BI33: 6.3
A34: F# 34 | C34: =D34+0.1 -> 12 | D34: =E34+0.1 -> 11.9 | E34: =F34+0.1 -> 11.8 | F34: =G34+0.1 -> 11.7 | G34: =H34+0.1 -> 11.6 | H34: =I34+0.1 -> 11.5 | I34: =J34+0.1 -> 11.4 | J34: =K34+0.1 -> 11.3 | K34: =L34+0.1 -> 11.2 | L34: =M34+0.1 -> 11.1 | M34: =N34+0.1 -> 11 | N34: =O34+0.1 -> 10.9 | O34: =P34+0.1 -> 10.8 | P34: =Q34+0.1 -> 10.7 | Q34: =R34+0.1 -> 10.6 | R34: =S34+0.1 -> 10.5 | S34: =T34+0.1 -> 10.4 | T34: =U34+0.1 -> 10.3 | U34: =V34+0.1 -> 10.2 | V34: =W34+0.1 -> 10.1 | W34: =X34+0.1 -> 10 | X34: =Y34+0.1 -> 9.9 | Y34: 9.8 | Z34: 9.7 | AA34: 9.6 | AB34: 9.5 | AC34: 9.4 | AD34: 9.3 | AE34: 9.2 | AF34: 9.1 | AG34: 9 | AH34: 8.9 | AI34: 8.8 | AJ34: 8.7 | AK34: 8.6 | AL34: 8.5 | AM34: 8.4 | AN34: 8.3 | AO34: 8.2 | AP34: 8.1 | AQ34: 8 | AR34: 7.9 | AS34: 7.8 | AT34: 7.7 | AU34: 7.6 | AV34: 7.5 | AW34: 7.4 | AX34: 7.3 | AY34: 7.2 | AZ34: 7.1 | BA34: 7 | BB34: 6.9 | BC34: 6.8 | BD34: 6.7 | BE34: 6.6 | BF34: 6.5 | BG34: 6.4 | BH34: 6.3 | BI34: 6.2
A35: G 35 | C35: =D35+0.1 -> 12 | D35: =E35+0.1 -> 11.9 | E35: =F35+0.1 -> 11.8 | F35: =G35+0.1 -> 11.7 | G35: =H35+0.1 -> 11.6 | H35: =I35+0.1 -> 11.5 | I35: =J35+0.1 -> 11.4 | J35: =K35+0.1 -> 11.3 | K35: =L35+0.1 -> 11.2 | L35: =M35+0.1 -> 11.1 | M35: =N35+0.1 -> 11 | N35: =O35+0.1 -> 10.9 | O35: =P35+0.1 -> 10.8 | P35: =Q35+0.1 -> 10.7 | Q35: =R35+0.1 -> 10.6 | R35: =S35+0.1 -> 10.5 | S35: =T35+0.1 -> 10.4 | T35: =U35+0.1 -> 10.3 | U35: =V35+0.1 -> 10.2 | V35: =W35+0.1 -> 10.1 | W35: =X35+0.1 -> 10 | X35: =Y35+0.1 -> 9.9 | Y35: 9.8 | Z35: 9.7 | AA35: 9.6 | AB35: 9.5 | AC35: 9.4 | AD35: 9.3 | AE35: 9.2 | AF35: 9.1 | AG35: 9 | AH35: 8.9 | AI35: 8.8 | AJ35: 8.7 | AK35: 8.6 | AL35: 8.5 | AM35: 8.4 | AN35: 8.3 | AO35: 8.2 | AP35: 8.1 | AQ35: 8 | AR35: 7.9 | AS35: 7.8 | AT35: 7.7 | AU35: 7.6 | AV35: 7.5 | AW35: 7.4 | AX35: 7.3 | AY35: 7.2 | AZ35: 7.1 | BA35: 7 | BB35: 6.9 | BC35: 6.8 | BD35: 6.7 | BE35: 6.6 | BF35: 6.5 | BG35: 6.4 | BH35: 6.3 | BI35: 6.2
A36: G# 36 | C36: =D36+0.1 -> 11.9 | D36: =E36+0.1 -> 11.8 | E36: =F36+0.1 -> 11.7 | F36: =G36+0.1 -> 11.6 | G36: =H36+0.1 -> 11.5 | H36: =I36+0.1 -> 11.4 | I36: =J36+0.1 -> 11.3 | J36: =K36+0.1 -> 11.2 | K36: =L36+0.1 -> 11.1 | L36: =M36+0.1 -> 11 | M36: =N36+0.1 -> 10.9 | N36: =O36+0.1 -> 10.8 | O36: =P36+0.1 -> 10.7 | P36: =Q36+0.1 -> 10.6 | Q36: =R36+0.1 -> 10.5 | R36: =S36+0.1 -> 10.4 | S36: =T36+0.1 -> 10.3 | T36: =U36+0.1 -> 10.2 | U36: =V36+0.1 -> 10.1 | V36: =W36+0.1 -> 10 | W36: =X36+0.1 -> 9.9 | X36: =Y36+0.1 -> 9.8 | Y36: 9.7 | Z36: 9.6 | AA36: 9.5 | AB36: 9.4 | AC36: 9.3 | AD36: 9.2 | AE36: 9.1 | AF36: 9 | AG36: 8.9 | AH36: 8.8 | AI36: 8.7 | AJ36: 8.6 | AK36: 8.5 | AL36: 8.4 | AM36: 8.3 | AN36: 8.2 | AO36: 8.1 | AP36: 8 | AQ36: 7.9 | AR36: 7.8 | AS36: 7.7 | AT36: 7.6 | AU36: 7.5 | AV36: 7.4 | AW36: 7.3 | AX36: 7.2 | AY36: 7.1 | AZ36: 7 | BA36: 6.9 | BB36: 6.8 | BC36: 6.7 | BD36: 6.6 | BE36: 6.5 | BF36: 6.4 | BG36: 6.3 | BH36: 6.2 | BI36: 6.1
A37: A 37 | C37: =D37+0.1 -> 11.9 | D37: =E37+0.1 -> 11.8 | E37: =F37+0.1 -> 11.7 | F37: =G37+0.1 -> 11.6 | G37: =H37+0.1 -> 11.5 | H37: =I37+0.1 -> 11.4 | I37: =J37+0.1 -> 11.3 | J37: =K37+0.1 -> 11.2 | K37: =L37+0.1 -> 11.1 | L37: =M37+0.1 -> 11 | M37: =N37+0.1 -> 10.9 | N37: =O37+0.1 -> 10.8 | O37: =P37+0.1 -> 10.7 | P37: =Q37+0.1 -> 10.6 | Q37: =R37+0.1 -> 10.5 | R37: =S37+0.1 -> 10.4 | S37: =T37+0.1 -> 10.3 | T37: =U37+0.1 -> 10.2 | U37: =V37+0.1 -> 10.1 | V37: =W37+0.1 -> 10 | W37: =X37+0.1 -> 9.9 | X37: =Y37+0.1 -> 9.8 | Y37: 9.7 | Z37: 9.6 | AA37: 9.5 | AB37: 9.4 | AC37: 9.3 | AD37: 9.2 | AE37: 9.1 | AF37: 9 | AG37: 8.9 | AH37: 8.8 | AI37: 8.7 | AJ37: 8.6 | AK37: 8.5 | AL37: 8.4 | AM37: 8.3 | AN37: 8.2 | AO37: 8.1 | AP37: 8 | AQ37: 7.9 | AR37: 7.8 | AS37: 7.7 | AT37: 7.6 | AU37: 7.5 | AV37: 7.4 | AW37: 7.3 | AX37: 7.2 | AY37: 7.1 | AZ37: 7 | BA37: 6.9 | BB37: 6.8 | BC37: 6.7 | BD37: 6.6 | BE37: 6.5 | BF37: 6.4 | BG37: 6.3 | BH37: 6.2 | BI37: 6.1
A38: A# 38 | C38: =D38+0.1 -> 11.8 | D38: =E38+0.1 -> 11.7 | E38: =F38+0.1 -> 11.6 | F38: =G38+0.1 -> 11.5 | G38: =H38+0.1 -> 11.4 | H38: =I38+0.1 -> 11.3 | I38: =J38+0.1 -> 11.2 | J38: =K38+0.1 -> 11.1 | K38: =L38+0.1 -> 11 | L38: =M38+0.1 -> 10.9 | M38: =N38+0.1 -> 10.8 | N38: =O38+0.1 -> 10.7 | O38: =P38+0.1 -> 10.6 | P38: =Q38+0.1 -> 10.5 | Q38: =R38+0.1 -> 10.4 | R38: =S38+0.1 -> 10.3 | S38: =T38+0.1 -> 10.2 | T38: =U38+0.1 -> 10.1 | U38: =V38+0.1 -> 10 | V38: =W38+0.1 -> 9.9 | W38: =X38+0.1 -> 9.8 | X38: =Y38+0.1 -> 9.7 | Y38: 9.6 | Z38: 9.5 | AA38: 9.4 | AB38: 9.3 | AC38: 9.2 | AD38: 9.1 | AE38: 9 | AF38: 8.9 | AG38: 8.8 | AH38: 8.7 | AI38: 8.6 | AJ38: 8.5 | AK38: 8.4 | AL38: 8.3 | AM38: 8.2 | AN38: 8.1 | AO38: 8 | AP38: 7.9 | AQ38: 7.8 | AR38: 7.7 | AS38: 7.6 | AT38: 7.5 | AU38: 7.4 | AV38: 7.3 | AW38: 7.2 | AX38: 7.1 | AY38: 7 | AZ38: 6.9 | BA38: 6.8 | BB38: 6.7 | BC38: 6.6 | BD38: 6.5 | BE38: 6.4 | BF38: 6.3 | BG38: 6.2 | BH38: 6.1 | BI38: 6
A39: B 39 | C39: =D39+0.1 -> 11.8 | D39: =E39+0.1 -> 11.7 | E39: =F39+0.1 -> 11.6 | F39: =G39+0.1 -> 11.5 | G39: =H39+0.1 -> 11.4 | H39: =I39+0.1 -> 11.3 | I39: =J39+0.1 -> 11.2 | J39: =K39+0.1 -> 11.1 | K39: =L39+0.1 -> 11 | L39: =M39+0.1 -> 10.9 | M39: =N39+0.1 -> 10.8 | N39: =O39+0.1 -> 10.7 | O39: =P39+0.1 -> 10.6 | P39: =Q39+0.1 -> 10.5 | Q39: =R39+0.1 -> 10.4 | R39: =S39+0.1 -> 10.3 | S39: =T39+0.1 -> 10.2 | T39: =U39+0.1 -> 10.1 | U39: =V39+0.1 -> 10 | V39: =W39+0.1 -> 9.9 | W39: =X39+0.1 -> 9.8 | X39: =Y39+0.1 -> 9.7 | Y39: 9.6 | Z39: 9.5 | AA39: 9.4 | AB39: 9.3 | AC39: 9.2 | AD39: 9.1 | AE39: 9 | AF39: 8.9 | AG39: 8.8 | AH39: 8.7 | AI39: 8.6 | AJ39: 8.5 | AK39: 8.4 | AL39: 8.3 | AM39: 8.2 | AN39: 8.1 | AO39: 8 | AP39: 7.9 | AQ39: 7.8 | AR39: 7.7 | AS39: 7.6 | AT39: 7.5 | AU39: 7.4 | AV39: 7.3 | AW39: 7.2 | AX39: 7.1 | AY39: 7 | AZ39: 6.9 | BA39: 6.8 | BB39: 6.7 | BC39: 6.6 | BD39: 6.5 | BE39: 6.4 | BF39: 6.3 | BG39: 6.2 | BH39: 6.1 | BI39: 6
A40: C 40 | C40: =D40+0.1 -> 11.7 | D40: =E40+0.1 -> 11.6 | E40: =F40+0.1 -> 11.5 | F40: =G40+0.1 -> 11.4 | G40: =H40+0.1 -> 11.3 | H40: =I40+0.1 -> 11.2 | I40: =J40+0.1 -> 11.1 | J40: =K40+0.1 -> 11 | K40: =L40+0.1 -> 10.9 | L40: =M40+0.1 -> 10.8 | M40: =N40+0.1 -> 10.7 | N40: =O40+0.1 -> 10.6 | O40: =P40+0.1 -> 10.5 | P40: =Q40+0.1 -> 10.4 | Q40: =R40+0.1 -> 10.3 | R40: =S40+0.1 -> 10.2 | S40: =T40+0.1 -> 10.1 | T40: =U40+0.1 -> 10 | U40: =V40+0.1 -> 9.9 | V40: =W40+0.1 -> 9.8 | W40: =X40+0.1 -> 9.7 | X40: =Y40+0.1 -> 9.6 | Y40: 9.5 | Z40: 9.4 | AA40: 9.3 | AB40: 9.2 | AC40: 9.1 | AD40: 9 | AE40: 8.9 | AF40: 8.8 | AG40: 8.7 | AH40: 8.6 | AI40: 8.5 | AJ40: 8.4 | AK40: 8.3 | AL40: 8.2 | AM40: 8.1 | AN40: 8 | AO40: 7.9 | AP40: 7.8 | AQ40: 7.7 | AR40: 7.6 | AS40: 7.5 | AT40: 7.4 | AU40: 7.3 | AV40: 7.2 | AW40: 7.1 | AX40: 7 | AY40: 6.9 | AZ40: 6.8 | BA40: 6.7 | BB40: 6.6 | BC40: 6.5 | BD40: 6.4 | BE40: 6.3 | BF40: 6.2 | BG40: 6.1 | BH40: 6 | BI40: 5.9
A41: C# 41 | C41: =D41+0.1 -> 11.7 | D41: =E41+0.1 -> 11.6 | E41: =F41+0.1 -> 11.5 | F41: =G41+0.1 -> 11.4 | G41: =H41+0.1 -> 11.3 | H41: =I41+0.1 -> 11.2 | I41: =J41+0.1 -> 11.1 | J41: =K41+0.1 -> 11 | K41: =L41+0.1 -> 10.9 | L41: =M41+0.1 -> 10.8 | M41: =N41+0.1 -> 10.7 | N41: =O41+0.1 -> 10.6 | O41: =P41+0.1 -> 10.5 | P41: =Q41+0.1 -> 10.4 | Q41: =R41+0.1 -> 10.3 | R41: =S41+0.1 -> 10.2 | S41: =T41+0.1 -> 10.1 | T41: =U41+0.1 -> 10 | U41: =V41+0.1 -> 9.9 | V41: =W41+0.1 -> 9.8 | W41: =X41+0.1 -> 9.7 | X41: =Y41+0.1 -> 9.6 | Y41: 9.5 | Z41: 9.4 | AA41: 9.3 | AB41: 9.2 | AC41: 9.1 | AD41: 9 | AE41: 8.9 | AF41: 8.8 | AG41: 8.7 | AH41: 8.6 | AI41: 8.5 | AJ41: 8.4 | AK41: 8.3 | AL41: 8.2 | AM41: 8.1 | AN41: 8 | AO41: 7.9 | AP41: 7.8 | AQ41: 7.7 | AR41: 7.6 | AS41: 7.5 | AT41: 7.4 | AU41: 7.3 | AV41: 7.2 | AW41: 7.1 | AX41: 7 | AY41: 6.9 | AZ41: 6.8 | BA41: 6.7 | BB41: 6.6 | BC41: 6.5 | BD41: 6.4 | BE41: 6.3 | BF41: 6.2 | BG41: 6.1 | BH41: 6 | BI41: 5.9
A42: D 42 | C42: =D42+0.1 -> 11.6 | D42: =E42+0.1 -> 11.5 | E42: =F42+0.1 -> 11.4 | F42: =G42+0.1 -> 11.3 | G42: =H42+0.1 -> 11.2 | H42: =I42+0.1 -> 11.1 | I42: =J42+0.1 -> 11 | J42: =K42+0.1 -> 10.9 | K42: =L42+0.1 -> 10.8 | L42: =M42+0.1 -> 10.7 | M42: =N42+0.1 -> 10.6 | N42: =O42+0.1 -> 10.5 | O42: =P42+0.1 -> 10.4 | P42: =Q42+0.1 -> 10.3 | Q42: =R42+0.1 -> 10.2 | R42: =S42+0.1 -> 10.1 | S42: =T42+0.1 -> 10 | T42: =U42+0.1 -> 9.9 | U42: =V42+0.1 -> 9.8 | V42: =W42+0.1 -> 9.7 | W42: =X42+0.1 -> 9.6 | X42: =Y42+0.1 -> 9.5 | Y42: 9.4 | Z42: 9.3 | AA42: 9.2 | AB42: 9.1 | AC42: 9 | AD42: 8.9 | AE42: 8.8 | AF42: 8.7 | AG42: 8.6 | AH42: 8.5 | AI42: 8.4 | AJ42: 8.3 | AK42: 8.2 | AL42: 8.1 | AM42: 8 | AN42: 7.9 | AO42: 7.8 | AP42: 7.7 | AQ42: 7.6 | AR42: 7.5 | AS42: 7.4 | AT42: 7.3 | AU42: 7.2 | AV42: 7.1 | AW42: 7 | AX42: 6.9 | AY42: 6.8 | AZ42: 6.7 | BA42: 6.6 | BB42: 6.5 | BC42: 6.4 | BD42: 6.3 | BE42: 6.2 | BF42: 6.1 | BG42: 6 | BH42: 5.9 | BI42: 5.8
A43: D# 43 | C43: =D43+0.1 -> 11.5 | D43: =E43+0.1 -> 11.4 | E43: =F43+0.1 -> 11.3 | F43: =G43+0.1 -> 11.2 | G43: =H43+0.1 -> 11.1 | H43: =I43+0.1 -> 11 | I43: =J43+0.1 -> 10.9 | J43: =K43+0.1 -> 10.8 | K43: =L43+0.1 -> 10.7 | L43: =M43+0.1 -> 10.6 | M43: =N43+0.1 -> 10.5 | N43: =O43+0.1 -> 10.4 | O43: =P43+0.1 -> 10.3 | P43: =Q43+0.1 -> 10.2 | Q43: =R43+0.1 -> 10.1 | R43: =S43+0.1 -> 10 | S43: =T43+0.1 -> 9.9 | T43: =U43+0.1 -> 9.8 | U43: =V43+0.1 -> 9.7 | V43: =W43+0.1 -> 9.6 | W43: =X43+0.1 -> 9.5 | X43: =Y43+0.1 -> 9.4 | Y43: 9.3 | Z43: 9.2 | AA43: 9.1 | AB43: 9 | AC43: 8.9 | AD43: 8.8 | AE43: 8.7 | AF43: 8.6 | AG43: 8.5 | AH43: 8.4 | AI43: 8.3 | AJ43: 8.2 | AK43: 8.1 | AL43: 8 | AM43: 7.9 | AN43: 7.8 | AO43: 7.7 | AP43: 7.6 | AQ43: 7.5 | AR43: 7.4 | AS43: 7.3 | AT43: 7.2 | AU43: 7.1 | AV43: 7 | AW43: 6.9 | AX43: 6.8 | AY43: 6.7 | AZ43: 6.6 | BA43: 6.5 | BB43: 6.4 | BC43: 6.3 | BD43: 6.2 | BE43: 6.1 | BF43: 6 | BG43: 5.9 | BH43: 5.8 | BI43: 5.7
A44: E 44 | C44: =D44+0.1 -> 11.5 | D44: =E44+0.1 -> 11.4 | E44: =F44+0.1 -> 11.3 | F44: =G44+0.1 -> 11.2 | G44: =H44+0.1 -> 11.1 | H44: =I44+0.1 -> 11 | I44: =J44+0.1 -> 10.9 | J44: =K44+0.1 -> 10.8 | K44: =L44+0.1 -> 10.7 | L44: =M44+0.1 -> 10.6 | M44: =N44+0.1 -> 10.5 | N44: =O44+0.1 -> 10.4 | O44: =P44+0.1 -> 10.3 | P44: =Q44+0.1 -> 10.2 | Q44: =R44+0.1 -> 10.1 | R44: =S44+0.1 -> 10 | S44: =T44+0.1 -> 9.9 | T44: =U44+0.1 -> 9.8 | U44: =V44+0.1 -> 9.7 | V44: =W44+0.1 -> 9.6 | W44: =X44+0.1 -> 9.5 | X44: =Y44+0.1 -> 9.4 | Y44: 9.3 | Z44: 9.2 | AA44: 9.1 | AB44: 9 | AC44: 8.9 | AD44: 8.8 | AE44: 8.7 | AF44: 8.6 | AG44: 8.5 | AH44: 8.4 | AI44: 8.3 | AJ44: 8.2 | AK44: 8.1 | AL44: 8 | AM44: 7.9 | AN44: 7.8 | AO44: 7.7 | AP44: 7.6 | AQ44: 7.5 | AR44: 7.4 | AS44: 7.3 | AT44: 7.2 | AU44: 7.1 | AV44: 7 | AW44: 6.9 | AX44: 6.8 | AY44: 6.7 | AZ44: 6.6 | BA44: 6.5 | BB44: 6.4 | BC44: 6.3 | BD44: 6.2 | BE44: 6.1 | BF44: 6 | BG44: 5.9 | BH44: 5.8 | BI44: 5.7
A45: F 45 | C45: =D45+0.1 -> 11.4 | D45: =E45+0.1 -> 11.3 | E45: =F45+0.1 -> 11.2 | F45: =G45+0.1 -> 11.1 | G45: =H45+0.1 -> 11 | H45: =I45+0.1 -> 10.9 | I45: =J45+0.1 -> 10.8 | J45: =K45+0.1 -> 10.7 | K45: =L45+0.1 -> 10.6 | L45: =M45+0.1 -> 10.5 | M45: =N45+0.1 -> 10.4 | N45: =O45+0.1 -> 10.3 | O45: =P45+0.1 -> 10.2 | P45: =Q45+0.1 -> 10.1 | Q45: =R45+0.1 -> 10 | R45: =S45+0.1 -> 9.9 | S45: =T45+0.1 -> 9.8 | T45: =U45+0.1 -> 9.7 | U45: =V45+0.1 -> 9.6 | V45: =W45+0.1 -> 9.5 | W45: =X45+0.1 -> 9.4 | X45: =Y45+0.1 -> 9.3 | Y45: 9.2 | Z45: 9.1 | AA45: 9 | AB45: 8.9 | AC45: 8.8 | AD45: 8.7 | AE45: 8.6 | AF45: 8.5 | AG45: 8.4 | AH45: 8.3 | AI45: 8.2 | AJ45: 8.1 | AK45: 8 | AL45: 7.9 | AM45: 7.8 | AN45: 7.7 | AO45: 7.6 | AP45: 7.5 | AQ45: 7.4 | AR45: 7.3 | AS45: 7.2 | AT45: 7.1 | AU45: 7 | AV45: 6.9 | AW45: 6.8 | AX45: 6.7 | AY45: 6.6 | AZ45: 6.5 | BA45: 6.4 | BB45: 6.3 | BC45: 6.2 | BD45: 6.1 | BE45: 6 | BF45: 5.9 | BG45: 5.8 | BH45: 5.7 | BI45: 5.6
A46: F# 46 | C46: =D46+0.1 -> 11.3 | D46: =E46+0.1 -> 11.2 | E46: =F46+0.1 -> 11.1 | F46: =G46+0.1 -> 11 | G46: =H46+0.1 -> 10.9 | H46: =I46+0.1 -> 10.8 | I46: =J46+0.1 -> 10.7 | J46: =K46+0.1 -> 10.6 | K46: =L46+0.1 -> 10.5 | L46: =M46+0.1 -> 10.4 | M46: =N46+0.1 -> 10.3 | N46: =O46+0.1 -> 10.2 | O46: =P46+0.1 -> 10.1 | P46: =Q46+0.1 -> 10 | Q46: =R46+0.1 -> 9.9 | R46: =S46+0.1 -> 9.8 | S46: =T46+0.1 -> 9.7 | T46: =U46+0.1 -> 9.6 | U46: =V46+0.1 -> 9.5 | V46: =W46+0.1 -> 9.4 | W46: =X46+0.1 -> 9.3 | X46: =Y46+0.1 -> 9.2 | Y46: 9.1 | Z46: 9 | AA46: 8.9 | AB46: 8.8 | AC46: 8.7 | AD46: 8.6 | AE46: 8.5 | AF46: 8.4 | AG46: 8.3 | AH46: 8.2 | AI46: 8.1 | AJ46: 8 | AK46: 7.9 | AL46: 7.8 | AM46: 7.7 | AN46: 7.6 | AO46: 7.5 | AP46: 7.4 | AQ46: 7.3 | AR46: 7.2 | AS46: 7.1 | AT46: 7 | AU46: 6.9 | AV46: 6.8 | AW46: 6.7 | AX46: 6.6 | AY46: 6.5 | AZ46: 6.4 | BA46: 6.3 | BB46: 6.2 | BC46: 6.1 | BD46: 6 | BE46: 5.9 | BF46: 5.8 | BG46: 5.7 | BH46: 5.6 | BI46: 5.5
A47: G 47 | C47: =D47+0.1 -> 11.3 | D47: =E47+0.1 -> 11.2 | E47: =F47+0.1 -> 11.1 | F47: =G47+0.1 -> 11 | G47: =H47+0.1 -> 10.9 | H47: =I47+0.1 -> 10.8 | I47: =J47+0.1 -> 10.7 | J47: =K47+0.1 -> 10.6 | K47: =L47+0.1 -> 10.5 | L47: =M47+0.1 -> 10.4 | M47: =N47+0.1 -> 10.3 | N47: =O47+0.1 -> 10.2 | O47: =P47+0.1 -> 10.1 | P47: =Q47+0.1 -> 10 | Q47: =R47+0.1 -> 9.9 | R47: =S47+0.1 -> 9.8 | S47: =T47+0.1 -> 9.7 | T47: =U47+0.1 -> 9.6 | U47: =V47+0.1 -> 9.5 | V47: =W47+0.1 -> 9.4 | W47: =X47+0.1 -> 9.3 | X47: =Y47+0.1 -> 9.2 | Y47: 9.1 | Z47: 9 | AA47: 8.9 | AB47: 8.8 | AC47: 8.7 | AD47: 8.6 | AE47: 8.5 | AF47: 8.4 | AG47: 8.3 | AH47: 8.2 | AI47: 8.1 | AJ47: 8 | AK47: 7.9 | AL47: 7.8 | AM47: 7.7 | AN47: 7.6 | AO47: 7.5 | AP47: 7.4 | AQ47: 7.3 | AR47: 7.2 | AS47: 7.1 | AT47: 7 | AU47: 6.9 | AV47: 6.8 | AW47: 6.7 | AX47: 6.6 | AY47: 6.5 | AZ47: 6.4 | BA47: 6.3 | BB47: 6.2 | BC47: 6.1 | BD47: 6 | BE47: 5.9 | BF47: 5.8 | BG47: 5.7 | BH47: 5.6 | BI47: 5.5
A48: G# 48 | C48: =D48+0.1 -> 11.2 | D48: =E48+0.1 -> 11.1 | E48: =F48+0.1 -> 11 | F48: =G48+0.1 -> 10.9 | G48: =H48+0.1 -> 10.8 | H48: =I48+0.1 -> 10.7 | I48: =J48+0.1 -> 10.6 | J48: =K48+0.1 -> 10.5 | K48: =L48+0.1 -> 10.4 | L48: =M48+0.1 -> 10.3 | M48: =N48+0.1 -> 10.2 | N48: =O48+0.1 -> 10.1 | O48: =P48+0.1 -> 10 | P48: =Q48+0.1 -> 9.9 | Q48: =R48+0.1 -> 9.8 | R48: =S48+0.1 -> 9.7 | S48: =T48+0.1 -> 9.6 | T48: =U48+0.1 -> 9.5 | U48: =V48+0.1 -> 9.4 | V48: =W48+0.1 -> 9.3 | W48: =X48+0.1 -> 9.2 | X48: =Y48+0.1 -> 9.1 | Y48: 9 | Z48: 8.9 | AA48: 8.8 | AB48: 8.7 | AC48: 8.6 | AD48: 8.5 | AE48: 8.4 | AF48: 8.3 | AG48: 8.2 | AH48: 8.1 | AI48: 8 | AJ48: 7.9 | AK48: 7.8 | AL48: 7.7 | AM48: 7.6 | AN48: 7.5 | AO48: 7.4 | AP48: 7.3 | AQ48: 7.2 | AR48: 7.1 | AS48: 7 | AT48: 6.9 | AU48: 6.8 | AV48: 6.7 | AW48: 6.6 | AX48: 6.5 | AY48: 6.4 | AZ48: 6.3 | BA48: 6.2 | BB48: 6.1 | BC48: 6 | BD48: 5.9 | BE48: 5.8 | BF48: 5.7 | BG48: 5.6 | BH48: 5.5 | BI48: 5.4
A49: A 49 | C49: =D49+0.1 -> 11.2 | D49: =E49+0.1 -> 11.1 | E49: =F49+0.1 -> 11 | F49: =G49+0.1 -> 10.9 | G49: =H49+0.1 -> 10.8 | H49: =I49+0.1 -> 10.7 | I49: =J49+0.1 -> 10.6 | J49: =K49+0.1 -> 10.5 | K49: =L49+0.1 -> 10.4 | L49: =M49+0.1 -> 10.3 | M49: =N49+0.1 -> 10.2 | N49: =O49+0.1 -> 10.1 | O49: =P49+0.1 -> 10 | P49: =Q49+0.1 -> 9.9 | Q49: =R49+0.1 -> 9.8 | R49: =S49+0.1 -> 9.7 | S49: =T49+0.1 -> 9.6 | T49: =U49+0.1 -> 9.5 | U49: =V49+0.1 -> 9.4 | V49: =W49+0.1 -> 9.3 | W49: =X49+0.1 -> 9.2 | X49: =Y49+0.1 -> 9.1 | Y49: 9 | Z49: 8.9 | AA49: 8.8 | AB49: 8.7 | AC49: 8.6 | AD49: 8.5 | AE49: 8.4 | AF49: 8.3 | AG49: 8.2 | AH49: 8.1 | AI49: 8 | AJ49: 7.9 | AK49: 7.8 | AL49: 7.7 | AM49: 7.6 | AN49: 7.5 | AO49: 7.4 | AP49: 7.3 | AQ49: 7.2 | AR49: 7.1 | AS49: 7 | AT49: 6.9 | AU49: 6.8 | AV49: 6.7 | AW49: 6.6 | AX49: 6.5 | AY49: 6.4 | AZ49: 6.3 | BA49: 6.2 | BB49: 6.1 | BC49: 6 | BD49: 5.9 | BE49: 5.8 | BF49: 5.7 | BG49: 5.6 | BH49: 5.5 | BI49: 5.4
A50: A# 50 | C50: =D50+0.1 -> 11.1 | D50: =E50+0.1 -> 11 | E50: =F50+0.1 -> 10.9 | F50: =G50+0.1 -> 10.8 | G50: =H50+0.1 -> 10.7 | H50: =I50+0.1 -> 10.6 | I50: =J50+0.1 -> 10.5 | J50: =K50+0.1 -> 10.4 | K50: =L50+0.1 -> 10.3 | L50: =M50+0.1 -> 10.2 | M50: =N50+0.1 -> 10.1 | N50: =O50+0.1 -> 10 | O50: =P50+0.1 -> 9.9 | P50: =Q50+0.1 -> 9.8 | Q50: =R50+0.1 -> 9.7 | R50: =S50+0.1 -> 9.6 | S50: =T50+0.1 -> 9.5 | T50: =U50+0.1 -> 9.4 | U50: =V50+0.1 -> 9.3 | V50: =W50+0.1 -> 9.2 | W50: =X50+0.1 -> 9.1 | X50: =Y50+0.1 -> 9 | Y50: 8.9 | Z50: 8.8 | AA50: 8.7 | AB50: 8.6 | AC50: 8.5 | AD50: 8.4 | AE50: 8.3 | AF50: 8.2 | AG50: 8.1 | AH50: 8 | AI50: 7.9 | AJ50: 7.8 | AK50: 7.7 | AL50: 7.6 | AM50: 7.5 | AN50: 7.4 | AO50: 7.3 | AP50: 7.2 | AQ50: 7.1 | AR50: 7 | AS50: 6.9 | AT50: 6.8 | AU50: 6.7 | AV50: 6.6 | AW50: 6.5 | AX50: 6.4 | AY50: 6.3 | AZ50: 6.2 | BA50: 6.1 | BB50: 6 | BC50: 5.9 | BD50: 5.8 | BE50: 5.7 | BF50: 5.6 | BG50: 5.5 | BH50: 5.4 | BI50: 5.3
A51: B 51 | C51: =D51+0.1 -> 11 | D51: =E51+0.1 -> 10.9 | E51: =F51+0.1 -> 10.8 | F51: =G51+0.1 -> 10.7 | G51: =H51+0.1 -> 10.6 | H51: =I51+0.1 -> 10.5 | I51: =J51+0.1 -> 10.4 | J51: =K51+0.1 -> 10.3 | K51: =L51+0.1 -> 10.2 | L51: =M51+0.1 -> 10.1 | M51: =N51+0.1 -> 10 | N51: =O51+0.1 -> 9.9 | O51: =P51+0.1 -> 9.8 | P51: =Q51+0.1 -> 9.7 | Q51: =R51+0.1 -> 9.6 | R51: =S51+0.1 -> 9.5 | S51: =T51+0.1 -> 9.4 | T51: =U51+0.1 -> 9.3 | U51: =V51+0.1 -> 9.2 | V51: =W51+0.1 -> 9.1 | W51: =X51+0.1 -> 9 | X51: =Y51+0.1 -> 8.9 | Y51: 8.8 | Z51: 8.7 | AA51: 8.6 | AB51: 8.5 | AC51: 8.4 | AD51: 8.3 | AE51: 8.2 | AF51: 8.1 | AG51: 8 | AH51: 7.9 | AI51: 7.8 | AJ51: 7.7 | AK51: 7.6 | AL51: 7.5 | AM51: 7.4 | AN51: 7.3 | AO51: 7.2 | AP51: 7.1 | AQ51: 7 | AR51: 6.9 | AS51: 6.8 | AT51: 6.7 | AU51: 6.6 | AV51: 6.5 | AW51: 6.4 | AX51: 6.3 | AY51: 6.2 | AZ51: 6.1 | BA51: 6 | BB51: 5.9 | BC51: 5.8 | BD51: 5.7 | BE51: 5.6 | BF51: 5.5 | BG51: 5.4 | BH51: 5.3 | BI51: 5.2
A52: C 52 | C52: =D52+0.1 -> 11 | D52: =E52+0.1 -> 10.9 | E52: =F52+0.1 -> 10.8 | F52: =G52+0.1 -> 10.7 | G52: =H52+0.1 -> 10.6 | H52: =I52+0.1 -> 10.5 | I52: =J52+0.1 -> 10.4 | J52: =K52+0.1 -> 10.3 | K52: =L52+0.1 -> 10.2 | L52: =M52+0.1 -> 10.1 | M52: =N52+0.1 -> 10 | N52: =O52+0.1 -> 9.9 | O52: =P52+0.1 -> 9.8 | P52: =Q52+0.1 -> 9.7 | Q52: =R52+0.1 -> 9.6 | R52: =S52+0.1 -> 9.5 | S52: =T52+0.1 -> 9.4 | T52: =U52+0.1 -> 9.3 | U52: =V52+0.1 -> 9.2 | V52: =W52+0.1 -> 9.1 | W52: =X52+0.1 -> 9 | X52: =Y52+0.1 -> 8.9 | Y52: 8.8 | Z52: 8.7 | AA52: 8.6 | AB52: 8.5 | AC52: 8.4 | AD52: 8.3 | AE52: 8.2 | AF52: 8.1 | AG52: 8 | AH52: 7.9 | AI52: 7.8 | AJ52: 7.7 | AK52: 7.6 | AL52: 7.5 | AM52: 7.4 | AN52: 7.3 | AO52: 7.2 | AP52: 7.1 | AQ52: 7 | AR52: 6.9 | AS52: 6.8 | AT52: 6.7 | AU52: 6.6 | AV52: 6.5 | AW52: 6.4 | AX52: 6.3 | AY52: 6.2 | AZ52: 6.1 | BA52: 6 | BB52: 5.9 | BC52: 5.8 | BD52: 5.7 | BE52: 5.6 | BF52: 5.5 | BG52: 5.4 | BH52: 5.3 | BI52: 5.2
A53: C# 53 | C53: =D53+0.1 -> 10.9 | D53: =E53+0.1 -> 10.8 | E53: =F53+0.1 -> 10.7 | F53: =G53+0.1 -> 10.6 | G53: =H53+0.1 -> 10.5 | H53: =I53+0.1 -> 10.4 | I53: =J53+0.1 -> 10.3 | J53: =K53+0.1 -> 10.2 | K53: =L53+0.1 -> 10.1 | L53: =M53+0.1 -> 10 | M53: =N53+0.1 -> 9.9 | N53: =O53+0.1 -> 9.8 | O53: =P53+0.1 -> 9.7 | P53: =Q53+0.1 -> 9.6 | Q53: =R53+0.1 -> 9.5 | R53: =S53+0.1 -> 9.4 | S53: =T53+0.1 -> 9.3 | T53: =U53+0.1 -> 9.2 | U53: =V53+0.1 -> 9.1 | V53: =W53+0.1 -> 9 | W53: =X53+0.1 -> 8.9 | X53: =Y53+0.1 -> 8.8 | Y53: 8.7 | Z53: 8.6 | AA53: 8.5 | AB53: 8.4 | AC53: 8.3 | AD53: 8.2 | AE53: 8.1 | AF53: 8 | AG53: 7.9 | AH53: 7.8 | AI53: 7.7 | AJ53: 7.6 | AK53: 7.5 | AL53: 7.4 | AM53: 7.3 | AN53: 7.2 | AO53: 7.1 | AP53: 7 | AQ53: 6.9 | AR53: 6.8 | AS53: 6.7 | AT53: 6.6 | AU53: 6.5 | AV53: 6.4 | AW53: 6.3 | AX53: 6.2 | AY53: 6.1 | AZ53: 6 | BA53: 5.9 | BB53: 5.8 | BC53: 5.7 | BD53: 5.6 | BE53: 5.5 | BF53: 5.4 | BG53: 5.3 | BH53: 5.2 | BI53: 5.1
A54: D 54 | C54: =D54+0.1 -> 10.8 | D54: =E54+0.1 -> 10.7 | E54: =F54+0.1 -> 10.6 | F54: =G54+0.1 -> 10.5 | G54: =H54+0.1 -> 10.4 | H54: =I54+0.1 -> 10.3 | I54: =J54+0.1 -> 10.2 | J54: =K54+0.1 -> 10.1 | K54: =L54+0.1 -> 10 | L54: =M54+0.1 -> 9.9 | M54: =N54+0.1 -> 9.8 | N54: =O54+0.1 -> 9.7 | O54: =P54+0.1 -> 9.6 | P54: =Q54+0.1 -> 9.5 | Q54: =R54+0.1 -> 9.4 | R54: =S54+0.1 -> 9.3 | S54: =T54+0.1 -> 9.2 | T54: =U54+0.1 -> 9.1 | U54: =V54+0.1 -> 9 | V54: =W54+0.1 -> 8.9 | W54: =X54+0.1 -> 8.8 | X54: =Y54+0.1 -> 8.7 | Y54: 8.6 | Z54: 8.5 | AA54: 8.4 | AB54: 8.3 | AC54: 8.2 | AD54: 8.1 | AE54: 8 | AF54: 7.9 | AG54: 7.8 | AH54: 7.7 | AI54: 7.6 | AJ54: 7.5 | AK54: 7.4 | AL54: 7.3 | AM54: 7.2 | AN54: 7.1 | AO54: 7 | AP54: 6.9 | AQ54: 6.8 | AR54: 6.7 | AS54: 6.6 | AT54: 6.5 | AU54: 6.4 | AV54: 6.3 | AW54: 6.2 | AX54: 6.1 | AY54: 6 | AZ54: 5.9 | BA54: 5.8 | BB54: 5.7 | BC54: 5.6 | BD54: 5.5 | BE54: 5.4 | BF54: 5.3 | BG54: 5.2 | BH54: 5.1 | BI54: 5
A55: D# 55 | C55: =D55+0.1 -> 10.7 | D55: =E55+0.1 -> 10.6 | E55: =F55+0.1 -> 10.5 | F55: =G55+0.1 -> 10.4 | G55: =H55+0.1 -> 10.3 | H55: =I55+0.1 -> 10.2 | I55: =J55+0.1 -> 10.1 | J55: =K55+0.1 -> 10 | K55: =L55+0.1 -> 9.9 | L55: =M55+0.1 -> 9.8 | M55: =N55+0.1 -> 9.7 | N55: =O55+0.1 -> 9.6 | O55: =P55+0.1 -> 9.5 | P55: =Q55+0.1 -> 9.4 | Q55: =R55+0.1 -> 9.3 | R55: =S55+0.1 -> 9.2 | S55: =T55+0.1 -> 9.1 | T55: =U55+0.1 -> 9 | U55: =V55+0.1 -> 8.9 | V55: =W55+0.1 -> 8.8 | W55: =X55+0.1 -> 8.7 | X55: =Y55+0.1 -> 8.6 | Y55: 8.5 | Z55: 8.4 | AA55: 8.3 | AB55: 8.2 | AC55: 8.1 | AD55: 8 | AE55: 7.9 | AF55: 7.8 | AG55: 7.7 | AH55: 7.6 | AI55: 7.5 | AJ55: 7.4 | AK55: 7.3 | AL55: 7.2 | AM55: 7.1 | AN55: 7 | AO55: 6.9 | AP55: 6.8 | AQ55: 6.7 | AR55: 6.6 | AS55: 6.5 | AT55: 6.4 | AU55: 6.3 | AV55: 6.2 | AW55: 6.1 | AX55: 6 | AY55: 5.9 | AZ55: 5.8 | BA55: 5.7 | BB55: 5.6 | BC55: 5.5 | BD55: 5.4 | BE55: 5.3 | BF55: 5.2 | BG55: 5.1 | BH55: 5 | BI55: 4.9
A56: E 56 | C56: =D56+0.1 -> 10.7 | D56: =E56+0.1 -> 10.6 | E56: =F56+0.1 -> 10.5 | F56: =G56+0.1 -> 10.4 | G56: =H56+0.1 -> 10.3 | H56: =I56+0.1 -> 10.2 | I56: =J56+0.1 -> 10.1 | J56: =K56+0.1 -> 10 | K56: =L56+0.1 -> 9.9 | L56: =M56+0.1 -> 9.8 | M56: =N56+0.1 -> 9.7 | N56: =O56+0.1 -> 9.6 | O56: =P56+0.1 -> 9.5 | P56: =Q56+0.1 -> 9.4 | Q56: =R56+0.1 -> 9.3 | R56: =S56+0.1 -> 9.2 | S56: =T56+0.1 -> 9.1 | T56: =U56+0.1 -> 9 | U56: =V56+0.1 -> 8.9 | V56: =W56+0.1 -> 8.8 | W56: =X56+0.1 -> 8.7 | X56: =Y56+0.1 -> 8.6 | Y56: 8.5 | Z56: 8.4 | AA56: 8.3 | AB56: 8.2 | AC56: 8.1 | AD56: 8 | AE56: 7.9 | AF56: 7.8 | AG56: 7.7 | AH56: 7.6 | AI56: 7.5 | AJ56: 7.4 | AK56: 7.3 | AL56: 7.2 | AM56: 7.1 | AN56: 7 | AO56: 6.9 | AP56: 6.8 | AQ56: 6.7 | AR56: 6.6 | AS56: 6.5 | AT56: 6.4 | AU56: 6.3 | AV56: 6.2 | AW56: 6.1 | AX56: 6 | AY56: 5.9 | AZ56: 5.8 | BA56: 5.7 | BB56: 5.6 | BC56: 5.5 | BD56: 5.4 | BE56: 5.3 | BF56: 5.2 | BG56: 5.1 | BH56: 5 | BI56: 4.9
A57: F 57 | C57: =D57+0.1 -> 10.6 | D57: =E57+0.1 -> 10.5 | E57: =F57+0.1 -> 10.4 | F57: =G57+0.1 -> 10.3 | G57: =H57+0.1 -> 10.2 | H57: =I57+0.1 -> 10.1 | I57: =J57+0.1 -> 10 | J57: =K57+0.1 -> 9.9 | K57: =L57+0.1 -> 9.8 | L57: =M57+0.1 -> 9.7 | M57: =N57+0.1 -> 9.6 | N57: =O57+0.1 -> 9.5 | O57: =P57+0.1 -> 9.4 | P57: =Q57+0.1 -> 9.3 | Q57: =R57+0.1 -> 9.2 | R57: =S57+0.1 -> 9.1 | S57: =T57+0.1 -> 9 | T57: =U57+0.1 -> 8.9 | U57: =V57+0.1 -> 8.8 | V57: =W57+0.1 -> 8.7 | W57: =X57+0.1 -> 8.6 | X57: =Y57+0.1 -> 8.5 | Y57: 8.4 | Z57: 8.3 | AA57: 8.2 | AB57: 8.1 | AC57: 8 | AD57: 7.9 | AE57: 7.8 | AF57: 7.7 | AG57: 7.6 | AH57: 7.5 | AI57: 7.4 | AJ57: 7.3 | AK57: 7.2 | AL57: 7.1 | AM57: 7 | AN57: 6.9 | AO57: 6.8 | AP57: 6.7 | AQ57: 6.6 | AR57: 6.5 | AS57: 6.4 | AT57: 6.3 | AU57: 6.2 | AV57: 6.1 | AW57: 6 | AX57: 5.9 | AY57: 5.8 | AZ57: 5.7 | BA57: 5.6 | BB57: 5.5 | BC57: 5.4 | BD57: 5.3 | BE57: 5.2 | BF57: 5.1 | BG57: 5 | BH57: 4.9 | BI57: 4.8
A58: F# 58 | C58: =D58+0.1 -> 10.5 | D58: =E58+0.1 -> 10.4 | E58: =F58+0.1 -> 10.3 | F58: =G58+0.1 -> 10.2 | G58: =H58+0.1 -> 10.1 | H58: =I58+0.1 -> 10 | I58: =J58+0.1 -> 9.9 | J58: =K58+0.1 -> 9.8 | K58: =L58+0.1 -> 9.7 | L58: =M58+0.1 -> 9.6 | M58: =N58+0.1 -> 9.5 | N58: =O58+0.1 -> 9.4 | O58: =P58+0.1 -> 9.3 | P58: =Q58+0.1 -> 9.2 | Q58: =R58+0.1 -> 9.1 | R58: =S58+0.1 -> 9 | S58: =T58+0.1 -> 8.9 | T58: =U58+0.1 -> 8.8 | U58: =V58+0.1 -> 8.7 | V58: =W58+0.1 -> 8.6 | W58: =X58+0.1 -> 8.5 | X58: =Y58+0.1 -> 8.4 | Y58: 8.3 | Z58: 8.2 | AA58: 8.1 | AB58: 8 | AC58: 7.9 | AD58: 7.8 | AE58: 7.7 | AF58: 7.6 | AG58: 7.5 | AH58: 7.4 | AI58: 7.3 | AJ58: 7.2 | AK58: 7.1 | AL58: 7 | AM58: 6.9 | AN58: 6.8 | AO58: 6.7 | AP58: 6.6 | AQ58: 6.5 | AR58: 6.4 | AS58: 6.3 | AT58: 6.2 | AU58: 6.1 | AV58: 6 | AW58: 5.9 | AX58: 5.8 | AY58: 5.7 | AZ58: 5.6 | BA58: 5.5 | BB58: 5.4 | BC58: 5.3 | BD58: 5.2 | BE58: 5.1 | BF58: 5 | BG58: 4.9 | BH58: 4.8 | BI58: 4.7
A59: G 59 | C59: =D59+0.1 -> 10.4 | D59: =E59+0.1 -> 10.3 | E59: =F59+0.1 -> 10.2 | F59: =G59+0.1 -> 10.1 | G59: =H59+0.1 -> 10 | H59: =I59+0.1 -> 9.9 | I59: =J59+0.1 -> 9.8 | J59: =K59+0.1 -> 9.7 | K59: =L59+0.1 -> 9.6 | L59: =M59+0.1 -> 9.5 | M59: =N59+0.1 -> 9.4 | N59: =O59+0.1 -> 9.3 | O59: =P59+0.1 -> 9.2 | P59: =Q59+0.1 -> 9.1 | Q59: =R59+0.1 -> 9 | R59: =S59+0.1 -> 8.9 | S59: =T59+0.1 -> 8.8 | T59: =U59+0.1 -> 8.7 | U59: =V59+0.1 -> 8.6 | V59: =W59+0.1 -> 8.5 | W59: =X59+0.1 -> 8.4 | X59: =Y59+0.1 -> 8.3 | Y59: 8.2 | Z59: 8.1 | AA59: 8 | AB59: 7.9 | AC59: 7.8 | AD59: 7.7 | AE59: 7.6 | AF59: 7.5 | AG59: 7.4 | AH59: 7.3 | AI59: 7.2 | AJ59: 7.1 | AK59: 7 | AL59: 6.9 | AM59: 6.8 | AN59: 6.7 | AO59: 6.6 | AP59: 6.5 | AQ59: 6.4 | AR59: 6.3 | AS59: 6.2 | AT59: 6.1 | AU59: 6 | AV59: 5.9 | AW59: 5.8 | AX59: 5.7 | AY59: 5.6 | AZ59: 5.5 | BA59: 5.4 | BB59: 5.3 | BC59: 5.2 | BD59: 5.1 | BE59: 5 | BF59: 4.9 | BG59: 4.8 | BH59: 4.7 | BI59: 4.6
A60: G# 60 | C60: =D60+0.1 -> 10.4 | D60: =E60+0.1 -> 10.3 | E60: =F60+0.1 -> 10.2 | F60: =G60+0.1 -> 10.1 | G60: =H60+0.1 -> 10 | H60: =I60+0.1 -> 9.9 | I60: =J60+0.1 -> 9.8 | J60: =K60+0.1 -> 9.7 | K60: =L60+0.1 -> 9.6 | L60: =M60+0.1 -> 9.5 | M60: =N60+0.1 -> 9.4 | N60: =O60+0.1 -> 9.3 | O60: =P60+0.1 -> 9.2 | P60: =Q60+0.1 -> 9.1 | Q60: =R60+0.1 -> 9 | R60: =S60+0.1 -> 8.9 | S60: =T60+0.1 -> 8.8 | T60: =U60+0.1 -> 8.7 | U60: =V60+0.1 -> 8.6 | V60: =W60+0.1 -> 8.5 | W60: =X60+0.1 -> 8.4 | X60: =Y60+0.1 -> 8.3 | Y60: 8.2 | Z60: 8.1 | AA60: 8 | AB60: 7.9 | AC60: 7.8 | AD60: 7.7 | AE60: 7.6 | AF60: 7.5 | AG60: 7.4 | AH60: 7.3 | AI60: 7.2 | AJ60: 7.1 | AK60: 7 | AL60: 6.9 | AM60: 6.8 | AN60: 6.7 | AO60: 6.6 | AP60: 6.5 | AQ60: 6.4 | AR60: 6.3 | AS60: 6.2 | AT60: 6.1 | AU60: 6 | AV60: 5.9 | AW60: 5.8 | AX60: 5.7 | AY60: 5.6 | AZ60: 5.5 | BA60: 5.4 | BB60: 5.3 | BC60: 5.2 | BD60: 5.1 | BE60: 5 | BF60: 4.9 | BG60: 4.8 | BH60: 4.7 | BI60: 4.6
A61: A 61 | C61: =D61+0.1 -> 10.3 | D61: =E61+0.1 -> 10.2 | E61: =F61+0.1 -> 10.1 | F61: =G61+0.1 -> 10 | G61: =H61+0.1 -> 9.9 | H61: =I61+0.1 -> 9.8 | I61: =J61+0.1 -> 9.7 | J61: =K61+0.1 -> 9.6 | K61: =L61+0.1 -> 9.5 | L61: =M61+0.1 -> 9.4 | M61: =N61+0.1 -> 9.3 | N61: =O61+0.1 -> 9.2 | O61: =P61+0.1 -> 9.1 | P61: =Q61+0.1 -> 9 | Q61: =R61+0.1 -> 8.9 | R61: =S61+0.1 -> 8.8 | S61: =T61+0.1 -> 8.7 | T61: =U61+0.1 -> 8.6 | U61: =V61+0.1 -> 8.5 | V61: =W61+0.1 -> 8.4 | W61: =X61+0.1 -> 8.3 | X61: =Y61+0.1 -> 8.2 | Y61: 8.1 | Z61: 8 | AA61: 7.9 | AB61: 7.8 | AC61: 7.7 | AD61: 7.6 | AE61: 7.5 | AF61: 7.4 | AG61: 7.3 | AH61: 7.2 | AI61: 7.1 | AJ61: 7 | AK61: 6.9 | AL61: 6.8 | AM61: 6.7 | AN61: 6.6 | AO61: 6.5 | AP61: 6.4 | AQ61: 6.3 | AR61: 6.2 | AS61: 6.1 | AT61: 6 | AU61: 5.9 | AV61: 5.8 | AW61: 5.7 | AX61: 5.6 | AY61: 5.5 | AZ61: 5.4 | BA61: 5.3 | BB61: 5.2 | BC61: 5.1 | BD61: 5 | BE61: 4.9 | BF61: 4.8 | BG61: 4.7 | BH61: 4.6 | BI61: 4.5
A62: A# 62 | C62: =D62+0.1 -> 10.2 | D62: =E62+0.1 -> 10.1 | E62: =F62+0.1 -> 10 | F62: =G62+0.1 -> 9.9 | G62: =H62+0.1 -> 9.8 | H62: =I62+0.1 -> 9.7 | I62: =J62+0.1 -> 9.6 | J62: =K62+0.1 -> 9.5 | K62: =L62+0.1 -> 9.4 | L62: =M62+0.1 -> 9.3 | M62: =N62+0.1 -> 9.2 | N62: =O62+0.1 -> 9.1 | O62: =P62+0.1 -> 9 | P62: =Q62+0.1 -> 8.9 | Q62: =R62+0.1 -> 8.8 | R62: =S62+0.1 -> 8.7 | S62: =T62+0.1 -> 8.6 | T62: =U62+0.1 -> 8.5 | U62: =V62+0.1 -> 8.4 | V62: =W62+0.1 -> 8.3 | W62: =X62+0.1 -> 8.2 | X62: =Y62+0.1 -> 8.1 | Y62: 8 | Z62: 7.9 | AA62: 7.8 | AB62: 7.7 | AC62: 7.6 | AD62: 7.5 | AE62: 7.4 | AF62: 7.3 | AG62: 7.2 | AH62: 7.1 | AI62: 7 | AJ62: 6.9 | AK62: 6.8 | AL62: 6.7 | AM62: 6.6 | AN62: 6.5 | AO62: 6.4 | AP62: 6.3 | AQ62: 6.2 | AR62: 6.1 | AS62: 6 | AT62: 5.9 | AU62: 5.8 | AV62: 5.7 | AW62: 5.6 | AX62: 5.5 | AY62: 5.4 | AZ62: 5.3 | BA62: 5.2 | BB62: 5.1 | BC62: 5 | BD62: 4.9 | BE62: 4.8 | BF62: 4.7 | BG62: 4.6 | BH62: 4.5 | BI62: 4.4
A63: B 63 | C63: =D63+0.1 -> 10.1 | D63: =E63+0.1 -> 10 | E63: =F63+0.1 -> 9.9 | F63: =G63+0.1 -> 9.8 | G63: =H63+0.1 -> 9.7 | H63: =I63+0.1 -> 9.6 | I63: =J63+0.1 -> 9.5 | J63: =K63+0.1 -> 9.4 | K63: =L63+0.1 -> 9.3 | L63: =M63+0.1 -> 9.2 | M63: =N63+0.1 -> 9.1 | N63: =O63+0.1 -> 9 | O63: =P63+0.1 -> 8.9 | P63: =Q63+0.1 -> 8.8 | Q63: =R63+0.1 -> 8.7 | R63: =S63+0.1 -> 8.6 | S63: =T63+0.1 -> 8.5 | T63: =U63+0.1 -> 8.4 | U63: =V63+0.1 -> 8.3 | V63: =W63+0.1 -> 8.2 | W63: =X63+0.1 -> 8.1 | X63: =Y63+0.1 -> 8 | Y63: 7.9 | Z63: 7.8 | AA63: 7.7 | AB63: 7.6 | AC63: 7.5 | AD63: 7.4 | AE63: 7.3 | AF63: 7.2 | AG63: 7.1 | AH63: 7 | AI63: 6.9 | AJ63: 6.8 | AK63: 6.7 | AL63: 6.6 | AM63: 6.5 | AN63: 6.4 | AO63: 6.3 | AP63: 6.2 | AQ63: 6.1 | AR63: 6 | AS63: 5.9 | AT63: 5.8 | AU63: 5.7 | AV63: 5.6 | AW63: 5.5 | AX63: 5.4 | AY63: 5.3 | AZ63: 5.2 | BA63: 5.1 | BB63: 5 | BC63: 4.9 | BD63: 4.8 | BE63: 4.7 | BF63: 4.6 | BG63: 4.5 | BH63: 4.4 | BI63: 4.3
A64: C 64 | C64: =D64+0.1 -> 10 | D64: =E64+0.1 -> 9.9 | E64: =F64+0.1 -> 9.8 | F64: =G64+0.1 -> 9.7 | G64: =H64+0.1 -> 9.6 | H64: =I64+0.1 -> 9.5 | I64: =J64+0.1 -> 9.4 | J64: =K64+0.1 -> 9.3 | K64: =L64+0.1 -> 9.2 | L64: =M64+0.1 -> 9.1 | M64: =N64+0.1 -> 9 | N64: =O64+0.1 -> 8.9 | O64: =P64+0.1 -> 8.8 | P64: =Q64+0.1 -> 8.7 | Q64: =R64+0.1 -> 8.6 | R64: =S64+0.1 -> 8.5 | S64: =T64+0.1 -> 8.4 | T64: =U64+0.1 -> 8.3 | U64: =V64+0.1 -> 8.2 | V64: =W64+0.1 -> 8.1 | W64: =X64+0.1 -> 8 | X64: =Y64+0.1 -> 7.9 | Y64: 7.8 | Z64: 7.7 | AA64: 7.6 | AB64: 7.5 | AC64: 7.4 | AD64: 7.3 | AE64: 7.2 | AF64: 7.1 | AG64: 7 | AH64: 6.9 | AI64: 6.8 | AJ64: 6.7 | AK64: 6.6 | AL64: 6.5 | AM64: 6.4 | AN64: 6.3 | AO64: 6.2 | AP64: 6.1 | AQ64: 6 | AR64: 5.9 | AS64: 5.8 | AT64: 5.7 | AU64: 5.6 | AV64: 5.5 | AW64: 5.4 | AX64: 5.3 | AY64: 5.2 | AZ64: 5.1 | BA64: 5 | BB64: 4.9 | BC64: 4.8 | BD64: 4.7 | BE64: 4.6 | BF64: 4.5 | BG64: 4.4 | BH64: 4.3 | BI64: 4.2
A65: C# 65 | C65: =D65+0.1 -> 9.9 | D65: =E65+0.1 -> 9.8 | E65: =F65+0.1 -> 9.7 | F65: =G65+0.1 -> 9.6 | G65: =H65+0.1 -> 9.5 | H65: =I65+0.1 -> 9.4 | I65: =J65+0.1 -> 9.3 | J65: =K65+0.1 -> 9.2 | K65: =L65+0.1 -> 9.1 | L65: =M65+0.1 -> 9 | M65: =N65+0.1 -> 8.9 | N65: =O65+0.1 -> 8.8 | O65: =P65+0.1 -> 8.7 | P65: =Q65+0.1 -> 8.6 | Q65: =R65+0.1 -> 8.5 | R65: =S65+0.1 -> 8.4 | S65: =T65+0.1 -> 8.3 | T65: =U65+0.1 -> 8.2 | U65: =V65+0.1 -> 8.1 | V65: =W65+0.1 -> 8 | W65: =X65+0.1 -> 7.9 | X65: =Y65+0.1 -> 7.8 | Y65: =Z65+0.1 -> 7.7 | Z65: 7.6 | AA65: 7.5 | AB65: 7.4 | AC65: 7.3 | AD65: 7.2 | AE65: 7.1 | AF65: 7 | AG65: 6.9 | AH65: 6.8 | AI65: 6.7 | AJ65: 6.6 | AK65: 6.5 | AL65: 6.4 | AM65: 6.3 | AN65: 6.2 | AO65: 6.1 | AP65: 6 | AQ65: 5.9 | AR65: 5.8 | AS65: 5.7 | AT65: 5.6 | AU65: 5.5 | AV65: 5.4 | AW65: 5.3 | AX65: 5.2 | AY65: 5.1 | AZ65: 5 | BA65: 4.9 | BB65: 4.8 | BC65: 4.7 | BD65: 4.6 | BE65: 4.5 | BF65: 4.4 | BG65: 4.3 | BH65: 4.2 | BI65: 4.1
A66: D 66 | C66: =D66+0.1 -> 9.9 | D66: =E66+0.1 -> 9.8 | E66: =F66+0.1 -> 9.7 | F66: =G66+0.1 -> 9.6 | G66: =H66+0.1 -> 9.5 | H66: =I66+0.1 -> 9.4 | I66: =J66+0.1 -> 9.3 | J66: =K66+0.1 -> 9.2 | K66: =L66+0.1 -> 9.1 | L66: =M66+0.1 -> 9 | M66: =N66+0.1 -> 8.9 | N66: =O66+0.1 -> 8.8 | O66: =P66+0.1 -> 8.7 | P66: =Q66+0.1 -> 8.6 | Q66: =R66+0.1 -> 8.5 | R66: =S66+0.1 -> 8.4 | S66: =T66+0.1 -> 8.3 | T66: =U66+0.1 -> 8.2 | U66: =V66+0.1 -> 8.1 | V66: =W66+0.1 -> 8 | W66: =X66+0.1 -> 7.9 | X66: =Y66+0.1 -> 7.8 | Y66: 7.7 | Z66: =AA66+0.1 -> 7.6 | AA66: 7.5 | AB66: 7.4 | AC66: 7.3 | AD66: 7.2 | AE66: 7.1 | AF66: 7 | AG66: 6.9 | AH66: 6.8 | AI66: 6.7 | AJ66: 6.6 | AK66: 6.5 | AL66: 6.4 | AM66: 6.3 | AN66: 6.2 | AO66: 6.1 | AP66: 6 | AQ66: 5.9 | AR66: 5.8 | AS66: 5.7 | AT66: 5.6 | AU66: 5.5 | AV66: 5.4 | AW66: 5.3 | AX66: 5.2 | AY66: 5.1 | AZ66: 5 | BA66: 4.9 | BB66: 4.8 | BC66: 4.7 | BD66: 4.6 | BE66: 4.5 | BF66: 4.4 | BG66: 4.3 | BH66: 4.2 | BI66: 4.1
A67: D# 67 | C67: =D67+0.1 -> 9.8 | D67: =E67+0.1 -> 9.7 | E67: =F67+0.1 -> 9.6 | F67: =G67+0.1 -> 9.5 | G67: =H67+0.1 -> 9.4 | H67: =I67+0.1 -> 9.3 | I67: =J67+0.1 -> 9.2 | J67: =K67+0.1 -> 9.1 | K67: =L67+0.1 -> 9 | L67: =M67+0.1 -> 8.9 | M67: =N67+0.1 -> 8.8 | N67: =O67+0.1 -> 8.7 | O67: =P67+0.1 -> 8.6 | P67: =Q67+0.1 -> 8.5 | Q67: =R67+0.1 -> 8.4 | R67: =S67+0.1 -> 8.3 | S67: =T67+0.1 -> 8.2 | T67: =U67+0.1 -> 8.1 | U67: =V67+0.1 -> 8 | V67: =W67+0.1 -> 7.9 | W67: =X67+0.1 -> 7.8 | X67: =Y67+0.1 -> 7.7 | Y67: 7.6 | Z67: 7.5 | AA67: 7.4 | AB67: 7.3 | AC67: 7.2 | AD67: 7.1 | AE67: 7 | AF67: 6.9 | AG67: 6.8 | AH67: 6.7 | AI67: 6.6 | AJ67: 6.5 | AK67: 6.4 | AL67: 6.3 | AM67: 6.2 | AN67: 6.1 | AO67: 6 | AP67: 5.9 | AQ67: 5.8 | AR67: 5.7 | AS67: 5.6 | AT67: 5.5 | AU67: 5.4 | AV67: 5.3 | AW67: 5.2 | AX67: 5.1 | AY67: 5 | AZ67: 4.9 | BA67: 4.8 | BB67: 4.7 | BC67: 4.6 | BD67: 4.5 | BE67: 4.4 | BF67: 4.3 | BG67: 4.2 | BH67: 4.1 | BI67: 4
A68: E 68 | C68: =D68+0.1 -> 9.7 | D68: =E68+0.1 -> 9.6 | E68: =F68+0.1 -> 9.5 | F68: =G68+0.1 -> 9.4 | G68: =H68+0.1 -> 9.3 | H68: =I68+0.1 -> 9.2 | I68: =J68+0.1 -> 9.1 | J68: =K68+0.1 -> 9 | K68: =L68+0.1 -> 8.9 | L68: =M68+0.1 -> 8.8 | M68: =N68+0.1 -> 8.7 | N68: =O68+0.1 -> 8.6 | O68: =P68+0.1 -> 8.5 | P68: =Q68+0.1 -> 8.4 | Q68: =R68+0.1 -> 8.3 | R68: =S68+0.1 -> 8.2 | S68: =T68+0.1 -> 8.1 | T68: =U68+0.1 -> 8 | U68: =V68+0.1 -> 7.9 | V68: =W68+0.1 -> 7.8 | W68: =X68+0.1 -> 7.7 | X68: =Y68+0.1 -> 7.6 | Y68: 7.5 | Z68: 7.4 | AA68: 7.3 | AB68: 7.2 | AC68: 7.1 | AD68: 7 | AE68: 6.9 | AF68: 6.8 | AG68: 6.7 | AH68: 6.6 | AI68: 6.5 | AJ68: 6.4 | AK68: 6.3 | AL68: 6.2 | AM68: 6.1 | AN68: 6 | AO68: 5.9 | AP68: 5.8 | AQ68: 5.7 | AR68: 5.6 | AS68: 5.5 | AT68: 5.4 | AU68: 5.3 | AV68: 5.2 | AW68: 5.1 | AX68: 5 | AY68: 4.9 | AZ68: 4.8 | BA68: 4.7 | BB68: 4.6 | BC68: 4.5 | BD68: 4.4 | BE68: 4.3 | BF68: 4.2 | BG68: 4.1 | BH68: 4 | BI68: 3.9
A69: F 69 | C69: =D69+0.1 -> 9.6 | D69: =E69+0.1 -> 9.5 | E69: =F69+0.1 -> 9.4 | F69: =G69+0.1 -> 9.3 | G69: =H69+0.1 -> 9.2 | H69: =I69+0.1 -> 9.1 | I69: =J69+0.1 -> 9 | J69: =K69+0.1 -> 8.9 | K69: =L69+0.1 -> 8.8 | L69: =M69+0.1 -> 8.7 | M69: =N69+0.1 -> 8.6 | N69: =O69+0.1 -> 8.5 | O69: =P69+0.1 -> 8.4 | P69: =Q69+0.1 -> 8.3 | Q69: =R69+0.1 -> 8.2 | R69: =S69+0.1 -> 8.1 | S69: =T69+0.1 -> 8 | T69: =U69+0.1 -> 7.9 | U69: =V69+0.1 -> 7.8 | V69: =W69+0.1 -> 7.7 | W69: =X69+0.1 -> 7.6 | X69: =Y69+0.1 -> 7.5 | Y69: 7.4 | Z69: 7.3 | AA69: 7.2 | AB69: 7.1 | AC69: 7 | AD69: 6.9 | AE69: 6.8 | AF69: 6.7 | AG69: 6.6 | AH69: 6.5 | AI69: 6.4 | AJ69: 6.3 | AK69: 6.2 | AL69: 6.1 | AM69: 6 | AN69: 5.9 | AO69: 5.8 | AP69: 5.7 | AQ69: 5.6 | AR69: 5.5 | AS69: 5.4 | AT69: 5.3 | AU69: 5.2 | AV69: 5.1 | AW69: 5 | AX69: 4.9 | AY69: 4.8 | AZ69: 4.7 | BA69: 4.6 | BB69: 4.5 | BC69: 4.4 | BD69: 4.3 | BE69: 4.2 | BF69: 4.1 | BG69: 4 | BH69: 3.9 | BI69: 3.8
A70: F# 70 | C70: =D70+0.1 -> 9.5 | D70: =E70+0.1 -> 9.4 | E70: =F70+0.1 -> 9.3 | F70: =G70+0.1 -> 9.2 | G70: =H70+0.1 -> 9.1 | H70: =I70+0.1 -> 9 | I70: =J70+0.1 -> 8.9 | J70: =K70+0.1 -> 8.8 | K70: =L70+0.1 -> 8.7 | L70: =M70+0.1 -> 8.6 | M70: =N70+0.1 -> 8.5 | N70: =O70+0.1 -> 8.4 | O70: =P70+0.1 -> 8.3 | P70: =Q70+0.1 -> 8.2 | Q70: =R70+0.1 -> 8.1 | R70: =S70+0.1 -> 8 | S70: =T70+0.1 -> 7.9 | T70: =U70+0.1 -> 7.8 | U70: =V70+0.1 -> 7.7 | V70: =W70+0.1 -> 7.6 | W70: =X70+0.1 -> 7.5 | X70: =Y70+0.1 -> 7.4 | Y70: 7.3 | Z70: 7.2 | AA70: 7.1 | AB70: 7 | AC70: 6.9 | AD70: 6.8 | AE70: 6.7 | AF70: 6.6 | AG70: 6.5 | AH70: 6.4 | AI70: 6.3 | AJ70: 6.2 | AK70: 6.1 | AL70: 6 | AM70: 5.9 | AN70: 5.8 | AO70: 5.7 | AP70: 5.6 | AQ70: 5.5 | AR70: 5.4 | AS70: 5.3 | AT70: 5.2 | AU70: 5.1 | AV70: 5 | AW70: 4.9 | AX70: 4.8 | AY70: 4.7 | AZ70: 4.6 | BA70: 4.5 | BB70: 4.4 | BC70: 4.3 | BD70: 4.2 | BE70: 4.1 | BF70: 4 | BG70: 3.9 | BH70: 3.8 | BI70: 3.7
A71: G 71 | C71: =D71+0.1 -> 9.4 | D71: =E71+0.1 -> 9.3 | E71: =F71+0.1 -> 9.2 | F71: =G71+0.1 -> 9.1 | G71: =H71+0.1 -> 9 | H71: =I71+0.1 -> 8.9 | I71: =J71+0.1 -> 8.8 | J71: =K71+0.1 -> 8.7 | K71: =L71+0.1 -> 8.6 | L71: =M71+0.1 -> 8.5 | M71: =N71+0.1 -> 8.4 | N71: =O71+0.1 -> 8.3 | O71: =P71+0.1 -> 8.2 | P71: =Q71+0.1 -> 8.1 | Q71: =R71+0.1 -> 8 | R71: =S71+0.1 -> 7.9 | S71: =T71+0.1 -> 7.8 | T71: =U71+0.1 -> 7.7 | U71: =V71+0.1 -> 7.6 | V71: =W71+0.1 -> 7.5 | W71: =X71+0.1 -> 7.4 | X71: =Y71+0.1 -> 7.3 | Y71: 7.2 | Z71: 7.1 | AA71: 7 | AB71: 6.9 | AC71: 6.8 | AD71: 6.7 | AE71: 6.6 | AF71: 6.5 | AG71: 6.4 | AH71: 6.3 | AI71: 6.2 | AJ71: 6.1 | AK71: 6 | AL71: 5.9 | AM71: 5.8 | AN71: 5.7 | AO71: 5.6 | AP71: 5.5 | AQ71: 5.4 | AR71: 5.3 | AS71: 5.2 | AT71: 5.1 | AU71: 5 | AV71: 4.9 | AW71: 4.8 | AX71: 4.7 | AY71: 4.6 | AZ71: 4.5 | BA71: 4.4 | BB71: 4.3 | BC71: 4.2 | BD71: 4.1 | BE71: 4 | BF71: 3.9 | BG71: 3.8 | BH71: 3.7 | BI71: 3.6
A72: G# 72 | C72: =D72+0.1 -> 9.3 | D72: =E72+0.1 -> 9.2 | E72: =F72+0.1 -> 9.1 | F72: =G72+0.1 -> 9 | G72: =H72+0.1 -> 8.9 | H72: =I72+0.1 -> 8.8 | I72: =J72+0.1 -> 8.7 | J72: =K72+0.1 -> 8.6 | K72: =L72+0.1 -> 8.5 | L72: =M72+0.1 -> 8.4 | M72: =N72+0.1 -> 8.3 | N72: =O72+0.1 -> 8.2 | O72: =P72+0.1 -> 8.1 | P72: =Q72+0.1 -> 8 | Q72: =R72+0.1 -> 7.9 | R72: =S72+0.1 -> 7.8 | S72: =T72+0.1 -> 7.7 | T72: =U72+0.1 -> 7.6 | U72: =V72+0.1 -> 7.5 | V72: =W72+0.1 -> 7.4 | W72: =X72+0.1 -> 7.3 | X72: =Y72+0.1 -> 7.2 | Y72: 7.1 | Z72: 7 | AA72: 6.9 | AB72: 6.8 | AC72: 6.7 | AD72: 6.6 | AE72: 6.5 | AF72: 6.4 | AG72: 6.3 | AH72: 6.2 | AI72: 6.1 | AJ72: 6 | AK72: 5.9 | AL72: 5.8 | AM72: 5.7 | AN72: 5.6 | AO72: 5.5 | AP72: 5.4 | AQ72: 5.3 | AR72: 5.2 | AS72: 5.1 | AT72: 5 | AU72: 4.9 | AV72: 4.8 | AW72: 4.7 | AX72: 4.6 | AY72: 4.5 | AZ72: 4.4 | BA72: 4.3 | BB72: 4.2 | BC72: 4.1 | BD72: 4 | BE72: 3.9 | BF72: 3.8 | BG72: 3.7 | BH72: 3.6 | BI72: 3.5
A73: A 73 | C73: =D73+0.1 -> 9.2 | D73: =E73+0.1 -> 9.1 | E73: =F73+0.1 -> 9 | F73: =G73+0.1 -> 8.9 | G73: =H73+0.1 -> 8.8 | H73: =I73+0.1 -> 8.7 | I73: =J73+0.1 -> 8.6 | J73: =K73+0.1 -> 8.5 | K73: =L73+0.1 -> 8.4 | L73: =M73+0.1 -> 8.3 | M73: =N73+0.1 -> 8.2 | N73: =O73+0.1 -> 8.1 | O73: =P73+0.1 -> 8 | P73: =Q73+0.1 -> 7.9 | Q73: =R73+0.1 -> 7.8 | R73: =S73+0.1 -> 7.7 | S73: =T73+0.1 -> 7.6 | T73: =U73+0.1 -> 7.5 | U73: =V73+0.1 -> 7.4 | V73: =W73+0.1 -> 7.3 | W73: =X73+0.1 -> 7.2 | X73: =Y73+0.1 -> 7.1 | Y73: 7 | Z73: 6.9 | AA73: 6.8 | AB73: 6.7 | AC73: 6.6 | AD73: 6.5 | AE73: 6.4 | AF73: 6.3 | AG73: 6.2 | AH73: 6.1 | AI73: 6 | AJ73: 5.9 | AK73: 5.8 | AL73: 5.7 | AM73: 5.6 | AN73: 5.5 | AO73: 5.4 | AP73: 5.3 | AQ73: 5.2 | AR73: 5.1 | AS73: 5 | AT73: 4.9 | AU73: 4.8 | AV73: 4.7 | AW73: 4.6 | AX73: 4.5 | AY73: 4.4 | AZ73: 4.3 | BA73: 4.2 | BB73: 4.1 | BC73: 4 | BD73: 3.9 | BE73: 3.8 | BF73: 3.7 | BG73: 3.6 | BH73: 3.5 | BI73: 3.4
A74: A# 74 | C74: =D74+0.1 -> 9.1 | D74: =E74+0.1 -> 9 | E74: =F74+0.1 -> 8.9 | F74: =G74+0.1 -> 8.8 | G74: =H74+0.1 -> 8.7 | H74: =I74+0.1 -> 8.6 | I74: =J74+0.1 -> 8.5 | J74: =K74+0.1 -> 8.4 | K74: =L74+0.1 -> 8.3 | L74: =M74+0.1 -> 8.2 | M74: =N74+0.1 -> 8.1 | N74: =O74+0.1 -> 8 | O74: =P74+0.1 -> 7.9 | P74: =Q74+0.1 -> 7.8 | Q74: =R74+0.1 -> 7.7 | R74: =S74+0.1 -> 7.6 | S74: =T74+0.1 -> 7.5 | T74: =U74+0.1 -> 7.4 | U74: =V74+0.1 -> 7.3 | V74: =W74+0.1 -> 7.2 | W74: =X74+0.1 -> 7.1 | X74: =Y74+0.1 -> 7 | Y74: 6.9 | Z74: 6.8 | AA74: 6.7 | AB74: 6.6 | AC74: 6.5 | AD74: 6.4 | AE74: 6.3 | AF74: 6.2 | AG74: 6.1 | AH74: 6 | AI74: 5.9 | AJ74: 5.8 | AK74: 5.7 | AL74: 5.6 | AM74: 5.5 | AN74: 5.4 | AO74: 5.3 | AP74: 5.2 | AQ74: 5.1 | AR74: 5 | AS74: 4.9 | AT74: 4.8 | AU74: 4.7 | AV74: 4.6 | AW74: 4.5 | AX74: 4.4 | AY74: 4.3 | AZ74: 4.2 | BA74: 4.1 | BB74: 4 | BC74: 3.9 | BD74: 3.8 | BE74: 3.7 | BF74: 3.6 | BG74: 3.5 | BH74: 3.4 | BI74: 3.3
A75: B 75 | C75: =D75+0.1 -> 9 | D75: =E75+0.1 -> 8.9 | E75: =F75+0.1 -> 8.8 | F75: =G75+0.1 -> 8.7 | G75: =H75+0.1 -> 8.6 | H75: =I75+0.1 -> 8.5 | I75: =J75+0.1 -> 8.4 | J75: =K75+0.1 -> 8.3 | K75: =L75+0.1 -> 8.2 | L75: =M75+0.1 -> 8.1 | M75: =N75+0.1 -> 8 | N75: =O75+0.1 -> 7.9 | O75: =P75+0.1 -> 7.8 | P75: =Q75+0.1 -> 7.7 | Q75: =R75+0.1 -> 7.6 | R75: =S75+0.1 -> 7.5 | S75: =T75+0.1 -> 7.4 | T75: =U75+0.1 -> 7.3 | U75: =V75+0.1 -> 7.2 | V75: =W75+0.1 -> 7.1 | W75: =X75+0.1 -> 7 | X75: =Y75+0.1 -> 6.9 | Y75: 6.8 | Z75: 6.7 | AA75: 6.6 | AB75: 6.5 | AC75: 6.4 | AD75: 6.3 | AE75: 6.2 | AF75: 6.1 | AG75: 6 | AH75: 5.9 | AI75: 5.8 | AJ75: 5.7 | AK75: 5.6 | AL75: 5.5 | AM75: 5.4 | AN75: 5.3 | AO75: 5.2 | AP75: 5.1 | AQ75: 5 | AR75: 4.9 | AS75: 4.8 | AT75: 4.7 | AU75: 4.6 | AV75: 4.5 | AW75: 4.4 | AX75: 4.3 | AY75: 4.2 | AZ75: 4.1 | BA75: 4 | BB75: 3.9 | BC75: 3.8 | BD75: 3.7 | BE75: 3.6 | BF75: 3.5 | BG75: 3.4 | BH75: 3.3 | BI75: 3.2
A76: C 76 | C76: =D76+0.1 -> 8.9 | D76: =E76+0.1 -> 8.8 | E76: =F76+0.1 -> 8.7 | F76: =G76+0.1 -> 8.6 | G76: =H76+0.1 -> 8.5 | H76: =I76+0.1 -> 8.4 | I76: =J76+0.1 -> 8.3 | J76: =K76+0.1 -> 8.2 | K76: =L76+0.1 -> 8.1 | L76: =M76+0.1 -> 8 | M76: =N76+0.1 -> 7.9 | N76: =O76+0.1 -> 7.8 | O76: =P76+0.1 -> 7.7 | P76: =Q76+0.1 -> 7.6 | Q76: =R76+0.1 -> 7.5 | R76: =S76+0.1 -> 7.4 | S76: =T76+0.1 -> 7.3 | T76: =U76+0.1 -> 7.2 | U76: =V76+0.1 -> 7.1 | V76: =W76+0.1 -> 7 | W76: =X76+0.1 -> 6.9 | X76: =Y76+0.1 -> 6.8 | Y76: 6.7 | Z76: 6.6 | AA76: 6.5 | AB76: 6.4 | AC76: 6.3 | AD76: 6.2 | AE76: 6.1 | AF76: 6 | AG76: 5.9 | AH76: 5.8 | AI76: 5.7 | AJ76: 5.6 | AK76: 5.5 | AL76: 5.4 | AM76: 5.3 | AN76: 5.2 | AO76: 5.1 | AP76: 5 | AQ76: 4.9 | AR76: 4.8 | AS76: 4.7 | AT76: 4.6 | AU76: 4.5 | AV76: 4.4 | AW76: 4.3 | AX76: 4.2 | AY76: 4.1 | AZ76: 4 | BA76: 3.9 | BB76: 3.8 | BC76: 3.7 | BD76: 3.6 | BE76: 3.5 | BF76: 3.4 | BG76: 3.3 | BH76: 3.2 | BI76: 3.1
A77: C# 77 | C77: =D77+0.1 -> 8.8 | D77: =E77+0.1 -> 8.7 | E77: =F77+0.1 -> 8.6 | F77: =G77+0.1 -> 8.5 | G77: =H77+0.1 -> 8.4 | H77: =I77+0.1 -> 8.3 | I77: =J77+0.1 -> 8.2 | J77: =K77+0.1 -> 8.1 | K77: =L77+0.1 -> 8 | L77: =M77+0.1 -> 7.9 | M77: =N77+0.1 -> 7.8 | N77: =O77+0.1 -> 7.7 | O77: =P77+0.1 -> 7.6 | P77: =Q77+0.1 -> 7.5 | Q77: =R77+0.1 -> 7.4 | R77: =S77+0.1 -> 7.3 | S77: =T77+0.1 -> 7.2 | T77: =U77+0.1 -> 7.1 | U77: =V77+0.1 -> 7 | V77: =W77+0.1 -> 6.9 | W77: =X77+0.1 -> 6.8 | X77: =Y77+0.1 -> 6.7 | Y77: 6.6 | Z77: 6.5 | AA77: 6.4 | AB77: 6.3 | AC77: 6.2 | AD77: 6.1 | AE77: 6 | AF77: 5.9 | AG77: 5.8 | AH77: 5.7 | AI77: 5.6 | AJ77: 5.5 | AK77: 5.4 | AL77: 5.3 | AM77: 5.2 | AN77: 5.1 | AO77: 5 | AP77: 4.9 | AQ77: 4.8 | AR77: 4.7 | AS77: 4.6 | AT77: 4.5 | AU77: 4.4 | AV77: 4.3 | AW77: 4.2 | AX77: 4.1 | AY77: 4 | AZ77: 3.9 | BA77: 3.8 | BB77: 3.7 | BC77: 3.6 | BD77: 3.5 | BE77: 3.4 | BF77: 3.3 | BG77: 3.2 | BH77: 3.1 | BI77: 3
A78: D 78 | C78: =D78+0.1 -> 8.7 | D78: =E78+0.1 -> 8.6 | E78: =F78+0.1 -> 8.5 | F78: =G78+0.1 -> 8.4 | G78: =H78+0.1 -> 8.3 | H78: =I78+0.1 -> 8.2 | I78: =J78+0.1 -> 8.1 | J78: =K78+0.1 -> 8 | K78: =L78+0.1 -> 7.9 | L78: =M78+0.1 -> 7.8 | M78: =N78+0.1 -> 7.7 | N78: =O78+0.1 -> 7.6 | O78: =P78+0.1 -> 7.5 | P78: =Q78+0.1 -> 7.4 | Q78: =R78+0.1 -> 7.3 | R78: =S78+0.1 -> 7.2 | S78: =T78+0.1 -> 7.1 | T78: =U78+0.1 -> 7 | U78: =V78+0.1 -> 6.9 | V78: =W78+0.1 -> 6.8 | W78: =X78+0.1 -> 6.7 | X78: =Y78+0.1 -> 6.6 | Y78: 6.5 | Z78: 6.4 | AA78: 6.3 | AB78: 6.2 | AC78: 6.1 | AD78: 6 | AE78: 5.9 | AF78: 5.8 | AG78: 5.7 | AH78: 5.6 | AI78: 5.5 | AJ78: 5.4 | AK78: 5.3 | AL78: 5.2 | AM78: 5.1 | AN78: 5 | AO78: 4.9 | AP78: 4.8 | AQ78: 4.7 | AR78: 4.6 | AS78: 4.5 | AT78: 4.4 | AU78: 4.3 | AV78: 4.2 | AW78: 4.1 | AX78: 4 | AY78: 3.9 | AZ78: 3.8 | BA78: 3.7 | BB78: 3.6 | BC78: 3.5 | BD78: 3.4 | BE78: 3.3 | BF78: 3.2 | BG78: 3.1 | BH78: 3 | BI78: 2.9
A79: D# 79 | C79: =D79+0.1 -> 8.6 | D79: =E79+0.1 -> 8.5 | E79: =F79+0.1 -> 8.4 | F79: =G79+0.1 -> 8.3 | G79: =H79+0.1 -> 8.2 | H79: =I79+0.1 -> 8.1 | I79: =J79+0.1 -> 8 | J79: =K79+0.1 -> 7.9 | K79: =L79+0.1 -> 7.8 | L79: =M79+0.1 -> 7.7 | M79: =N79+0.1 -> 7.6 | N79: =O79+0.1 -> 7.5 | O79: =P79+0.1 -> 7.4 | P79: =Q79+0.1 -> 7.3 | Q79: =R79+0.1 -> 7.2 | R79: =S79+0.1 -> 7.1 | S79: =T79+0.1 -> 7 | T79: =U79+0.1 -> 6.9 | U79: =V79+0.1 -> 6.8 | V79: =W79+0.1 -> 6.7 | W79: =X79+0.1 -> 6.6 | X79: =Y79+0.1 -> 6.5 | Y79: 6.4 | Z79: 6.3 | AA79: 6.2 | AB79: 6.1 | AC79: 6 | AD79: 5.9 | AE79: 5.8 | AF79: 5.7 | AG79: 5.6 | AH79: 5.5 | AI79: 5.4 | AJ79: 5.3 | AK79: 5.2 | AL79: 5.1 | AM79: 5 | AN79: 4.9 | AO79: 4.8 | AP79: 4.7 | AQ79: 4.6 | AR79: 4.5 | AS79: 4.4 | AT79: 4.3 | AU79: 4.2 | AV79: 4.1 | AW79: 4 | AX79: 3.9 | AY79: 3.8 | AZ79: 3.7 | BA79: 3.6 | BB79: 3.5 | BC79: 3.4 | BD79: 3.3 | BE79: 3.2 | BF79: 3.1 | BG79: 3 | BH79: 2.9 | BI79: 2.8
A80: E 80 | C80: =D80+0.1 -> 8.5 | D80: =E80+0.1 -> 8.4 | E80: =F80+0.1 -> 8.3 | F80: =G80+0.1 -> 8.2 | G80: =H80+0.1 -> 8.1 | H80: =I80+0.1 -> 8 | I80: =J80+0.1 -> 7.9 | J80: =K80+0.1 -> 7.8 | K80: =L80+0.1 -> 7.7 | L80: =M80+0.1 -> 7.6 | M80: =N80+0.1 -> 7.5 | N80: =O80+0.1 -> 7.4 | O80: =P80+0.1 -> 7.3 | P80: =Q80+0.1 -> 7.2 | Q80: =R80+0.1 -> 7.1 | R80: =S80+0.1 -> 7 | S80: =T80+0.1 -> 6.9 | T80: =U80+0.1 -> 6.8 | U80: =V80+0.1 -> 6.7 | V80: =W80+0.1 -> 6.6 | W80: =X80+0.1 -> 6.5 | X80: =Y80+0.1 -> 6.4 | Y80: 6.3 | Z80: 6.2 | AA80: 6.1 | AB80: 6 | AC80: 5.9 | AD80: 5.8 | AE80: 5.7 | AF80: 5.6 | AG80: 5.5 | AH80: 5.4 | AI80: 5.3 | AJ80: 5.2 | AK80: 5.1 | AL80: 5 | AM80: 4.9 | AN80: 4.8 | AO80: 4.7 | AP80: 4.6 | AQ80: 4.5 | AR80: 4.4 | AS80: 4.3 | AT80: 4.2 | AU80: 4.1 | AV80: 4 | AW80: 3.9 | AX80: 3.8 | AY80: 3.7 | AZ80: 3.6 | BA80: 3.5 | BB80: 3.4 | BC80: 3.3 | BD80: 3.2 | BE80: 3.1 | BF80: 3 | BG80: 2.9 | BH80: 2.8 | BI80: 2.7
A81: F 81 | C81: =D81+0.1 -> 8.4 | D81: =E81+0.1 -> 8.3 | E81: =F81+0.1 -> 8.2 | F81: =G81+0.1 -> 8.1 | G81: =H81+0.1 -> 8 | H81: =I81+0.1 -> 7.9 | I81: =J81+0.1 -> 7.8 | J81: =K81+0.1 -> 7.7 | K81: =L81+0.1 -> 7.6 | L81: =M81+0.1 -> 7.5 | M81: =N81+0.1 -> 7.4 | N81: =O81+0.1 -> 7.3 | O81: =P81+0.1 -> 7.2 | P81: =Q81+0.1 -> 7.1 | Q81: =R81+0.1 -> 7 | R81: =S81+0.1 -> 6.9 | S81: =T81+0.1 -> 6.8 | T81: =U81+0.1 -> 6.7 | U81: =V81+0.1 -> 6.6 | V81: =W81+0.1 -> 6.5 | W81: =X81+0.1 -> 6.4 | X81: =Y81+0.1 -> 6.3 | Y81: 6.2 | Z81: 6.1 | AA81: 6 | AB81: 5.9 | AC81: 5.8 | AD81: 5.7 | AE81: 5.6 | AF81: 5.5 | AG81: 5.4 | AH81: 5.3 | AI81: 5.2 | AJ81: 5.1 | AK81: 5 | AL81: 4.9 | AM81: 4.8 | AN81: 4.7 | AO81: 4.6 | AP81: 4.5 | AQ81: 4.4 | AR81: 4.3 | AS81: 4.2 | AT81: 4.1 | AU81: 4 | AV81: 3.9 | AW81: 3.8 | AX81: 3.7 | AY81: 3.6 | AZ81: 3.5 | BA81: 3.4 | BB81: 3.3 | BC81: 3.2 | BD81: 3.1 | BE81: 3 | BF81: 2.9 | BG81: 2.8 | BH81: 2.7 | BI81: 2.6
A82: F# 82 | C82: =D82+0.1 -> 8.3 | D82: =E82+0.1 -> 8.2 | E82: =F82+0.1 -> 8.1 | F82: =G82+0.1 -> 8 | G82: =H82+0.1 -> 7.9 | H82: =I82+0.1 -> 7.8 | I82: =J82+0.1 -> 7.7 | J82: =K82+0.1 -> 7.6 | K82: =L82+0.1 -> 7.5 | L82: =M82+0.1 -> 7.4 | M82: =N82+0.1 -> 7.3 | N82: =O82+0.1 -> 7.2 | O82: =P82+0.1 -> 7.1 | P82: =Q82+0.1 -> 7 | Q82: =R82+0.1 -> 6.9 | R82: =S82+0.1 -> 6.8 | S82: =T82+0.1 -> 6.7 | T82: =U82+0.1 -> 6.6 | U82: =V82+0.1 -> 6.5 | V82: =W82+0.1 -> 6.4 | W82: =X82+0.1 -> 6.3 | X82: =Y82+0.1 -> 6.2 | Y82: 6.1 | Z82: 6 | AA82: 5.9 | AB82: 5.8 | AC82: 5.7 | AD82: 5.6 | AE82: 5.5 | AF82: 5.4 | AG82: 5.3 | AH82: 5.2 | AI82: 5.1 | AJ82: 5 | AK82: 4.9 | AL82: 4.8 | AM82: 4.7 | AN82: 4.6 | AO82: 4.5 | AP82: 4.4 | AQ82: 4.3 | AR82: 4.2 | AS82: 4.1 | AT82: 4 | AU82: 3.9 | AV82: 3.8 | AW82: 3.7 | AX82: 3.6 | AY82: 3.5 | AZ82: 3.4 | BA82: 3.3 | BB82: 3.2 | BC82: 3.1 | BD82: 3 | BE82: 2.9 | BF82: 2.8 | BG82: 2.7 | BH82: 2.6 | BI82: 2.5
A83: G 83 | C83: =D83+0.1 -> 8.2 | D83: =E83+0.1 -> 8.1 | E83: =F83+0.1 -> 8 | F83: =G83+0.1 -> 7.9 | G83: =H83+0.1 -> 7.8 | H83: =I83+0.1 -> 7.7 | I83: =J83+0.1 -> 7.6 | J83: =K83+0.1 -> 7.5 | K83: =L83+0.1 -> 7.4 | L83: =M83+0.1 -> 7.3 | M83: =N83+0.1 -> 7.2 | N83: =O83+0.1 -> 7.1 | O83: =P83+0.1 -> 7 | P83: =Q83+0.1 -> 6.9 | Q83: =R83+0.1 -> 6.8 | R83: =S83+0.1 -> 6.7 | S83: =T83+0.1 -> 6.6 | T83: =U83+0.1 -> 6.5 | U83: =V83+0.1 -> 6.4 | V83: =W83+0.1 -> 6.3 | W83: =X83+0.1 -> 6.2 | X83: =Y83+0.1 -> 6.1 | Y83: 6 | Z83: 5.9 | AA83: 5.8 | AB83: 5.7 | AC83: 5.6 | AD83: 5.5 | AE83: 5.4 | AF83: 5.3 | AG83: 5.2 | AH83: 5.1 | AI83: 5 | AJ83: 4.9 | AK83: 4.8 | AL83: 4.7 | AM83: 4.6 | AN83: 4.5 | AO83: 4.4 | AP83: 4.3 | AQ83: 4.2 | AR83: 4.1 | AS83: 4 | AT83: 3.9 | AU83: 3.8 | AV83: 3.7 | AW83: 3.6 | AX83: 3.5 | AY83: 3.4 | AZ83: 3.3 | BA83: 3.2 | BB83: 3.1 | BC83: 3 | BD83: 2.9 | BE83: 2.8 | BF83: 2.7 | BG83: 2.6 | BH83: 2.5 | BI83: 2.4
A84: G# 84 | C84: =D84+0.1 -> 8.1 | D84: =E84+0.1 -> 8 | E84: =F84+0.1 -> 7.9 | F84: =G84+0.1 -> 7.8 | G84: =H84+0.1 -> 7.7 | H84: =I84+0.1 -> 7.6 | I84: =J84+0.1 -> 7.5 | J84: =K84+0.1 -> 7.4 | K84: =L84+0.1 -> 7.3 | L84: =M84+0.1 -> 7.2 | M84: =N84+0.1 -> 7.1 | N84: =O84+0.1 -> 7 | O84: =P84+0.1 -> 6.9 | P84: =Q84+0.1 -> 6.8 | Q84: =R84+0.1 -> 6.7 | R84: =S84+0.1 -> 6.6 | S84: =T84+0.1 -> 6.5 | T84: =U84+0.1 -> 6.4 | U84: =V84+0.1 -> 6.3 | V84: =W84+0.1 -> 6.2 | W84: =X84+0.1 -> 6.1 | X84: =Y84+0.1 -> 6 | Y84: 5.9 | Z84: 5.8 | AA84: 5.7 | AB84: 5.6 | AC84: 5.5 | AD84: 5.4 | AE84: 5.3 | AF84: 5.2 | AG84: 5.1 | AH84: 5 | AI84: 4.9 | AJ84: 4.8 | AK84: 4.7 | AL84: 4.6 | AM84: 4.5 | AN84: 4.4 | AO84: 4.3 | AP84: 4.2 | AQ84: 4.1 | AR84: 4 | AS84: 3.9 | AT84: 3.8 | AU84: 3.7 | AV84: 3.6 | AW84: 3.5 | AX84: 3.4 | AY84: 3.3 | AZ84: 3.2 | BA84: 3.1 | BB84: 3 | BC84: 2.9 | BD84: 2.8 | BE84: 2.7 | BF84: 2.6 | BG84: 2.5 | BH84: 2.4 | BI84: 2.3
A85: A 85 | C85: =D85+0.1 -> 8 | D85: =E85+0.1 -> 7.9 | E85: =F85+0.1 -> 7.8 | F85: =G85+0.1 -> 7.7 | G85: =H85+0.1 -> 7.6 | H85: =I85+0.1 -> 7.5 | I85: =J85+0.1 -> 7.4 | J85: =K85+0.1 -> 7.3 | K85: =L85+0.1 -> 7.2 | L85: =M85+0.1 -> 7.1 | M85: =N85+0.1 -> 7 | N85: =O85+0.1 -> 6.9 | O85: =P85+0.1 -> 6.8 | P85: =Q85+0.1 -> 6.7 | Q85: =R85+0.1 -> 6.6 | R85: =S85+0.1 -> 6.5 | S85: =T85+0.1 -> 6.4 | T85: =U85+0.1 -> 6.3 | U85: =V85+0.1 -> 6.2 | V85: =W85+0.1 -> 6.1 | W85: =X85+0.1 -> 6 | X85: =Y85+0.1 -> 5.9 | Y85: 5.8 | Z85: 5.7 | AA85: 5.6 | AB85: 5.5 | AC85: 5.4 | AD85: 5.3 | AE85: 5.2 | AF85: 5.1 | AG85: 5 | AH85: 4.9 | AI85: 4.8 | AJ85: 4.7 | AK85: 4.6 | AL85: 4.5 | AM85: 4.4 | AN85: 4.3 | AO85: 4.2 | AP85: 4.1 | AQ85: 4 | AR85: 3.9 | AS85: 3.8 | AT85: 3.7 | AU85: 3.6 | AV85: 3.5 | AW85: 3.4 | AX85: 3.3 | AY85: 3.2 | AZ85: 3.1 | BA85: 3 | BB85: 2.9 | BC85: 2.8 | BD85: 2.7 | BE85: 2.6 | BF85: 2.5 | BG85: 2.4 | BH85: 2.3 | BI85: 2.2
A86: A# 86 | C86: =D86+0.1 -> 7.9 | D86: =E86+0.1 -> 7.8 | E86: =F86+0.1 -> 7.7 | F86: =G86+0.1 -> 7.6 | G86: =H86+0.1 -> 7.5 | H86: =I86+0.1 -> 7.4 | I86: =J86+0.1 -> 7.3 | J86: =K86+0.1 -> 7.2 | K86: =L86+0.1 -> 7.1 | L86: =M86+0.1 -> 7 | M86: =N86+0.1 -> 6.9 | N86: =O86+0.1 -> 6.8 | O86: =P86+0.1 -> 6.7 | P86: =Q86+0.1 -> 6.6 | Q86: =R86+0.1 -> 6.5 | R86: =S86+0.1 -> 6.4 | S86: =T86+0.1 -> 6.3 | T86: =U86+0.1 -> 6.2 | U86: =V86+0.1 -> 6.1 | V86: =W86+0.1 -> 6 | W86: =X86+0.1 -> 5.9 | X86: =Y86+0.1 -> 5.8 | Y86: 5.7 | Z86: 5.6 | AA86: 5.5 | AB86: 5.4 | AC86: 5.3 | AD86: 5.2 | AE86: 5.1 | AF86: 5 | AG86: 4.9 | AH86: 4.8 | AI86: 4.7 | AJ86: 4.6 | AK86: 4.5 | AL86: 4.4 | AM86: 4.3 | AN86: 4.2 | AO86: 4.1 | AP86: 4 | AQ86: 3.9 | AR86: 3.8 | AS86: 3.7 | AT86: 3.6 | AU86: 3.5 | AV86: 3.4 | AW86: 3.3 | AX86: 3.2 | AY86: 3.1 | AZ86: 3 | BA86: 2.9 | BB86: 2.8 | BC86: 2.7 | BD86: 2.6 | BE86: 2.5 | BF86: 2.4 | BG86: 2.3 | BH86: 2.2 | BI86: 2.1
A87: B 87 | C87: =D87+0.1 -> 7.8 | D87: =E87+0.1 -> 7.7 | E87: =F87+0.1 -> 7.6 | F87: =G87+0.1 -> 7.5 | G87: =H87+0.1 -> 7.4 | H87: =I87+0.1 -> 7.3 | I87: =J87+0.1 -> 7.2 | J87: =K87+0.1 -> 7.1 | K87: =L87+0.1 -> 7 | L87: =M87+0.1 -> 6.9 | M87: =N87+0.1 -> 6.8 | N87: =O87+0.1 -> 6.7 | O87: =P87+0.1 -> 6.6 | P87: =Q87+0.1 -> 6.5 | Q87: =R87+0.1 -> 6.4 | R87: =S87+0.1 -> 6.3 | S87: =T87+0.1 -> 6.2 | T87: =U87+0.1 -> 6.1 | U87: =V87+0.1 -> 6 | V87: =W87+0.1 -> 5.9 | W87: =X87+0.1 -> 5.8 | X87: =Y87+0.1 -> 5.7 | Y87: 5.6 | Z87: 5.5 | AA87: 5.4 | AB87: 5.3 | AC87: 5.2 | AD87: 5.1 | AE87: 5 | AF87: 4.9 | AG87: 4.8 | AH87: 4.7 | AI87: 4.6 | AJ87: 4.5 | AK87: 4.4 | AL87: 4.3 | AM87: 4.2 | AN87: 4.1 | AO87: 4 | AP87: 3.9 | AQ87: 3.8 | AR87: 3.7 | AS87: 3.6 | AT87: 3.5 | AU87: 3.4 | AV87: 3.3 | AW87: 3.2 | AX87: 3.1 | AY87: 3 | AZ87: 2.9 | BA87: 2.8 | BB87: 2.7 | BC87: 2.6 | BD87: 2.5 | BE87: 2.4 | BF87: 2.3 | BG87: 2.2 | BH87: 2.1 | BI87: 2
A88: C 88 | C88: =D88+0.1 -> 7.2 | D88: =E88+0.1 -> 7.1 | E88: =F88+0.1 -> 7 | F88: =G88+0.1 -> 6.9 | G88: =H88+0.1 -> 6.8 | H88: =I88+0.1 -> 6.7 | I88: =J88+0.1 -> 6.6 | J88: =K88+0.1 -> 6.5 | K88: =L88+0.1 -> 6.4 | L88: =M88+0.1 -> 6.3 | M88: =N88+0.1 -> 6.2 | N88: =O88+0.1 -> 6.1 | O88: =P88+0.1 -> 6 | P88: =Q88+0.1 -> 5.9 | Q88: =R88+0.1 -> 5.8 | R88: =S88+0.1 -> 5.7 | S88: =T88+0.1 -> 5.6 | T88: =U88+0.1 -> 5.5 | U88: =V88+0.1 -> 5.4 | V88: =W88+0.1 -> 5.3 | W88: =X88+0.1 -> 5.2 | X88: =Y88+0.1 -> 5.1 | Y88: 5 | Z88: 4.9 | AA88: 4.8 | AB88: 4.7 | AC88: 4.6 | AD88: 4.5 | AE88: 4.4 | AF88: 4.3 | AG88: 4.2 | AH88: 4.1 | AI88: 4 | AJ88: 3.9 | AK88: 3.8 | AL88: 3.7 | AM88: 3.6 | AN88: 3.5 | AO88: 3.4 | AP88: 3.3 | AQ88: 3.2 | AR88: 3.1 | AS88: 3 | AT88: 2.9 | AU88: 2.8 | AV88: 2.7 | AW88: 2.6 | AX88: 2.5 | AY88: 2.4 | AZ88: 2.3 | BA88: 2.2 | BB88: 2.1 | BC88: 2 | BD88: 1.9 | BE88: 1.8 | BF88: 1.7 | BG88: 1.6 | BH88: 1.5 | BI88: 1.4
